{"text_format":"1","workbook":"xlsx","n_sheets":13,"sheets":["0. À propos","00. Mode d'emploi","1.Portrait de base","2. Portrait offre","3. Portrait inscriptions","4. Portrait participants","5. Portrait RH et organisation","6. Portrait complet","Feuil3","7. Calendrier","Feuil1","Menus déroulants","Feuil2"],"not_rendered":{"charts":0,"images":5,"macros":0,"external_links":0,"defined_names":0,"comments":0,"pivot_tables":0},"unopened":[],"bounds":{"document_bytes":16777216,"sheet_cells":100000,"rows_first":2000,"rows_last":500,"rows_between":2000,"halvings":0,"cell_chars":16384,"cell_head_chars":4096},"cells_cut":0,"cells_raw":0,"read":"whole","date_system":"1900"}

{"sheet":"0. À propos","index":0,"n_rows":33,"n_cols":5,"rows_kept":33,"cut":false,"hidden":false,"merged":[[15,2,18,2],[11,3,12,4],[0,3,6,4]]}
[null,"Portrait des rencontres prénatales de groupe (RPG)",null,"Si vous avez des questions concernant cet outil, svp contacter Josée Lambert au josee.lambert.ccsmtl@ssss.gouv.qc.ca\n\nMerci aux personnes suivantes pour leurs contributions dans l'élaboration de cet outil:\nChristiane Fauteux, Catherine Thériault, Kim Harris et Félicia Brochu.\n\nMerci au comité aviseur inter-régional pour la révision et les commentaires concernant cet outil:\nChantal Lacroix, Zoé Brabant, Kim Harris, Annabelle Gilbert-Longchamps, Véronique Barrette, Christiane Fauteux, Marlène Mainville, Stéphani Arulthas, Alexandra Fortier, Amélie Blanchette et Geneviève Leclerc."]
[]
["Cet outil s'adresse aux répondantes régionales des DSPubliques responsables des RPG, qui peuvent l'utiliser afin de : "]
["Coordonner la planification et la mise en œuvre des recommandations du Cadre de référence  des RPG dans leur région."]
[]
["Cet outil s'adresse aussi aux gestionnaires qui planifient l'offre de RPG dans le RSSS et le milieu communautaire, afin de :"]
["Soutenir la planification locale et faciliter les collaborations entre les installations."]
[]
["Présentation des onglets :"]
["0. À propos","Informations de base sur l'outil de portrait (contexte, lexique, acronymes)."]
["0.0 Mode d'emploi","Informations sur l'utilisation de cet outil."]
["1. Portrait de base","Proposition de portrait de base des RPG. Toutes les questions de ce portrait sont directement en lien avec les orientations du Cadre de référence des RPG du MSSS. Ces questions se retrouvent également dans les onglets 2 à 5. Elles sont identifiées en vert.",null,"*** Note: Afin d'être en cohérence avec la terminologie du Cadre de référence des RPG, le terme RPG veut dire rencontres prénatales de groupe. Cependant, cela inclut tout de même une ou des rencontres en postnatal. ***"]
["2. Portrait offre","Vue d'ensemble de l'offre de RPG et ses caractéristiques."]
["3. Portrait inscriptions","Vue d'ensemble du nombre et des modalités d'inscriptions aux RPG."]
["4. Portrait participants","Vue d'ensemble du nombre et des caractéristiques des participants aux RPG."]
["5. Portrait RH et organisation","Vue d'ensemble des personnes animatrices et du soutien à leur rôle."]
["6. Portrait complet","Regroupement des onglets 2 à 5. "]
["7. Calendrier","Vue d'ensemble de l'offre selon le calendrier des RPG."]
["Menus déroulants","Contient les sources de données de tous les menus déroulants du fichier."]
[]
[]
["Lexique et explications :",null,null,"Acronymes :"]
["Découpage territorial au Québec","Dans le contexte du système de santé et de services sociaux, le territoire québécois est divisé, par décrets gouvernementaux, en 18 régions sociosanitaires (RSS). Le Québec est aussi subdivisé en 22 réseaux territoriaux de services (RTS) et en 93 réseaux locaux de services (RLS), dont le territoire local est contenu à l’intérieur d’un RSS et d’un RTS, à l’exclusion des régions du Nord-du-Québec, du Nunavik et des Terres-Cries-de-la-Baie-James. Le Québec compte également 166 territoires de CLSC qui subdivisent les RLS.",null,"CISSS  ","Centre intégré de santé et de services sociaux"]
["Inscription","Si votre système d'inscription le permet, considérer une inscription par personne donc si un formulaire d'inscription comporte la personne enceinte ET la personne qui accompagne : il faut considérer 2 inscriptions.",null,"CIUSSS","Centre intégré universitaire de santé et de services sociaux"]
["Installation","Il s'agit d'une organisation qui offre des RPG. Elles sont généralement offertes par les CLSC, les maisons de naissance (MdN), les organismes communautaires (OC), les centres d'économie sociale ou les centres de ressources périnatales (CRP).",null,"CLSC","Centre local de services communautaires"]
["Mode hybride","L'offre de rencontres de cette session de RPG comprend des rencontres en mode virtuel synchrone ainsi que des rencontres en présentiel. Dans une même session de RPG, il est question d'une alternance de rencontres entre le mode virtuel synchrone et en présentiel. On ne parle pas de rencontres où des personnes seraient en présentiel en même temps que des personnes seraient connectées à distance en virtuel.",null,"CRP","Centre de ressources périnatales"]
["Mode présentiel","Toutes les rencontres de cette session de RPG se donnent en présence des participants dans un même lieu physique.",null,"DSPublique","Direction de santé publique ou Direction régionale de santé publique "]
["Mode virtuel asynchrone","Toutes les rencontres de cette session de RPG se donnent en virtuel de manière asynchrone (enregistrées) sans possibilité d'échanges entre les participants et l'animatrice de la RPG.",null,"MdN","Maison de naissance"]
["Mode virtuel synchrone","Toutes les rencontres de cette session de RPG se donnent en virtuel de manière synchrone (en temps réel) avec la possibilité d'échanges entre les participants et l'animatrice de la RPG.",null,"RLS","Réseau local de services"]
["Participant","Dans le cadre de ce portrait, un participant = une personne. Donc si on a un couple présent à une rencontre, cela compte comme 2 participants.",null,"RPG","Rencontre prénatale de groupe"]
["Session","Regroupement de plusieurs rencontres prénatales avec des thématiques différentes dans un même bloc. Est parfois appelé série.",null,"RSSS","Réseau de la santé et des services sociaux"]
["Suivi Olo ","Accompagnement et suivi nutritionnel comprenant la remise de coupons échangeables contre du lait, des œufs, des légumes surgelés et des multivitamines.",null,"RTS","Réseau territorial de services"]
[null,null,null,"SIPPE","Services intégrés en périnatalité et petite enfance"]

{"sheet":"00. Mode d'emploi","index":1,"n_rows":25,"n_cols":5,"rows_kept":25,"cut":false,"hidden":false,"merged":[[14,3,20,3],[23,3,23,4],[15,1,18,1],[6,0,6,1],[8,0,8,1],[10,0,10,1],[8,4,10,4],[12,0,12,1],[12,3,12,4]]}
[null,"Portrait des rencontres prénatales de groupe (RPG)"]
[]
["*** Cet outil se veut modulable selon les besoins du territoire et des utilisateurs. ***"]
[]
["Guide d'utilisation",null,null,"Convertir l'outil en formulaire Forms"]
[]
["Il n'est pas nécessaire de compléter tous les onglets de ce portrait. Nous suggérons de compléter le portrait de base et de choisir les autres portraits qui conviennent à vos besoins. De plus, chaque onglet peut être modifié en ajoutant ou masquant des colonnes.",null,null,"1. Portrait de base","Cet onglet a été converti dans un formulaire Forms. Voici le lien pour y accéder: "]
[]
["Certaines cellules ont des menus déroulants pour faciliter la complétion du document.",null,null,null,"https://forms.office.com/Pages/ShareFormPage.aspx?id=KP7hBotfdUC_bK4kvhp5kk4UHhIiVtpPq7kzHvfaNF5UQU1OUjVUQkNMTjlZUEI0SDNTM09VSTBGRy4u&sharetoken=cW0oUOKsQ6iP9KTD11zX"]
[]
["Un exemple a été mis dans la première ligne des onglets 2 à 5 pour donner une idée de l'utilisation de ce portrait. Ces exemples se sont recopiés automatiquement dans l'onglet 6. Portrait complet. Cette ligne est en rose."]
[]
["Un exemple a été mis dans la première ligne de l'onglet 1. Portrait de base pour donner une idée de l'utilisation de ce portrait. Cette ligne est en violet.",null,null,"Lorsque que vous accédez au formulaire Forms, il faudra dupliquer le document et le sauvegarder pour votre région. Ceci est très important, pour éviter que toutes les régions utilisent le même formulaire, et donc, que vos données soient mélangées avec celles d'autres régions. "]
[]
["1. Portrait de base","Nous suggérons de compléter cet onglet comme portrait de base. Cet onglet est indépendant des autres onglets du fichier Excel. Les données des cellules ne seront pas recopiées dans un autre onglet.",null,"La 1ère étape est de dupliquer le document en cliquant sur l'icône Dupliquer.\n\nEnsuite, vous pourrez renommer le document."]
["2. Portrait offre","Tous ces onglets sont optionnels. Les données entrées dans les cellules de ces onglets seront automatiquement recopiées dans l'onglet 6. Portrait complet."]
["3. Portrait inscriptions"]
["4. Portrait participants"]
["5. Portrait RH et organisation"]
["6. Portrait complet","Cet onglet se remplit automatiquement lorsque les autres onglets (onglets 2 à 5) sont complétés."]
["7. Calendrier","Cet onglet a pour but de faciliter les collaborations entre les installations dans la planification et l'organisation de l'offre des RPG."]
[]
[]
["Pour masquer des colonnes non utilisées :",null,null,"Maintenant que vous avez renommé votre copie du formulaire Forms, il peut maintenant être modifié et adapté à vos besoins. Vous pouvez le conserver tel quel ou encore ajouter des questions que vous aimeriez poser à vos partenaires."]
["Sélectionnez la ou les colonne(s) que vous souhaitez masquer, faites un clique droit sur la souris, puis sélectionnez l'option pour masquer les colonnes (tel qu'illustré dans l'image à droite).\n\nCela permet de simplifier l'outil pour vos besoins.",null,null,"\nIl suffit de sélectionner une question en cliquant dessus pour que le bouton \"Insérer un nouveau\" apparaisse sous la question. \n\nCliquez sur le bouton \"Insérer un nouveau\" et choisir le type de question que vous désirez."]

{"sheet":"1.Portrait de base","index":2,"n_rows":5,"n_cols":32,"rows_kept":5,"cut":false,"hidden":false,"merged":[[1,30,1,31],[2,30,2,31],[2,28,2,29],[1,18,1,29],[0,1,0,2],[2,0,2,4],[1,0,1,17],[2,18,2,27],[2,5,2,16]]}
[null,"Portrait des rencontres prénatales de groupe (RPG)"]
["Portrait de l'offre",null,null,null,null,null,null,null,null,null,null,null,null,null,null,null,null,null,"Portrait des inscriptions",null,null,null,null,null,null,null,null,null,null,null,"Portrait des participants"]
["IDENTIFICATION DE L'INSTALLATION ET DU TERRITOIRE",null,null,null,null,"DESCRIPTION GÉNÉRALE DE L'OFFRE",null,null,null,null,null,null,null,null,null,null,null,"THÉMATIQUES","NOMBRE D'INSCRIPTIONS",null,null,null,null,null,null,null,null,null,"MOYENS POUR REJOINDRE LES CLIENTÈLES SPÉCIFIQUES CIBLÉES",null,"BESOINS DES PARTICIPANTS"]
["Indiquez les coordonnées de l'installation (CLSC, MdN, OC, CRP ou autre lieu offrant les RPG)","Indiquez le territoire CI(U)SSS (RTS)","Indiquez le type d'installation : RSSS ou communautaire","Indiquez le nom de la personne responsable des RPG dans l'installation","Indiquez les territoires de RLS  sur votre territoire CI(U)SSS auxquels l'offre de RPG s'applique","Quel est le nombre de sessions de RPG seulement en présentiel par année?","Quel est le nombre de sessions de RPG seulement en virtuel synchrone par année?","Quel est le nombre de sessions de RPG en mode hybride : présentiel ET virtuel synchrone par année?","S'il y a des RPG en mode hybride, quel est le ratio entre le nombre de rencontres en présentiel versus le nombre de rencontres en virtuel synchrone?","Combien de rencontres dans une session de RPG sont offertes en virtuel asynchrone?","Si vous donnez des sessions de RPG en présentiel ou en hybride, quel est le nombre de rencontres dans une session?","Si vous donnez des sessions de RPG en virtuel synchrone, quel est le nombre de rencontres dans une session?","À quel moment les RPG sont-elles offertes ? (jour, soir)","À quel moment les RPG sont-elles offertes ? (semaine, fin de semaine)","À partir de combien de semaines de grossesse les RPG sont-elles offertes?","Un coût est-il chargé pour participer aux RPG?","S'il y a un coût, quel est-il par session? ","Dans le cadre des sessions de RPG, y a-t-il une ou plusieurs rencontres offerte(s) en postnatal?","Combien de personnes sont inscrites à des sessions de RPG en présentiel dans cette installation par année?","Combien de personnes sont inscrites à des sessions de RPG en virtuel synchrone dans cette installation par année?","Combien de personnes sont inscrites à des sessions de RPG en mode hybride (présentiel ET virtuel synchrone) dans cette installation par année?","Quel est le nombre limite de participants par session de RPG en présentiel?","Quel est le nombre limite de participants par session de RPG en virtuel synchrone ?","Quel est le nombre limite de participants par session de RPG en mode hybride (présentiel ET virtuel synchrone) ?","Combien de demandes d'inscriptions ont été refusées par année pour les RPG en présentiel dans cette installation?","Combien de demandes d'inscriptions ont été refusées par année pour les RPG en virtuel synchrone dans cette installation?","Combien de demandes d'inscriptions ont été refusées  par année pour les RPG en mode hybride (présentiel ET virtuel synchrone) dans cette installation?","Est-ce qu'il y a des critères d'admissibilité pour les participants aux RPG (ex : primipares) Si oui, lesquels?","Y a-t-il des stratégies mises en place pour rejoindre certaines clientèles ciblées telles : père ou coparent, nouveaux arrivants, personnes vivant en contexte de précarité socio-économiques?","Si oui, quelles sont les stratégies utilisées pour rejoindre certaines clientèles ciblées telles : père ou coparent, nouveaux arrivants, personnes vivant en contexte de précarité socio-économiques?","Est-ce qu'il y a un moyen mis en place pour sonder les besoins des participants avant le début des RPG? Ex: un sondage avant le début de la première rencontre.","Est-ce qu'il y a un moyen mis en place pour sonder la satisfaction des participants après les RPG? Ex: un sondage à la fin des rencontres."]
[" 123 rue des parents","CIUSSS de l'Estrie - Centre hospitalier universitaire de Sherbrooke (05)","Org. communautaire","Josée Lambert","RLS de Sherbrooke",5,0,2,"1-2 rencontres en présence, les autres en virtuel",0,4,0,"Jour et Soir","Semaine","26 à 30 semaines","Gratuit","20 à 40$","Non","81 À 100",0,"21 À 40","21 À 25",0,"31 À 35",0,0,0,"Aucun","Non","N/A","Oui","Non"]

{"sheet":"2. Portrait offre","index":3,"n_rows":5,"n_cols":25,"rows_kept":5,"cut":false,"hidden":false,"merged":[[0,1,0,2],[2,0,2,4],[2,5,2,16],[2,17,2,21],[2,22,2,24],[1,0,1,24],[0,4,0,8]]}
[null,"Portrait des rencontres prénatales de groupe (RPG)",null,null,"Il y a 2 façons de compléter ce portrait.\n1) Remplir une ligne par installation. Cependant, il faut s'assurer que les informations inscrites dans les onglets 2,3,4 et 5 soient entrées sur le même # de ligne pour cette installation. (méthode à privilégier, car plus complète)\n2) Remplir le portrait pour l'offre globale sur le territoire en utilisant seulement une ligne."]
["Portrait de l'offre"]
["IDENTIFICATION DE L'INSTALLATION ET DU TERRITOIRE",null,null,null,null,"DESCRIPTION GÉNÉRALE DE L'OFFRE",null,null,null,null,null,null,null,null,null,null,null,"LANGUES",null,null,null,null,"THÉMATIQUES"]
["Indiquez les coordonnées de l'installation (CLSC, MdN, OC, CRP ou autre lieu offrant les RPG)","Indiquez le territoire CI(U)SSS (RTS)","Indiquez le type d'installation : RSSS ou communautaire","Indiquez le nom de la personne responsable des RPG dans l'installation","Indiquez les territoires de RLS sur votre territoire CI(U)SSS auxquels l'offre de RPG s'applique","Quel est le nombre de sessions de RPG seulement en présentiel par année?","Quel est le nombre de sessions de RPG seulement en virtuel synchrone par année?","Quel est le nombre de sessions de RPG en mode hybride : présentiel ET virtuel synchrone par année?","S'il y a des RPG en mode hybride, quel est le ratio entre le nombre de rencontres en présentiel versus le nombre de rencontres en virtuel synchrone?","Combien de rencontres dans une session de RPG sont offertes en virtuel asynchrone?","Si vous donnez des sessions de RPG en présentiel ou en hybride, quel est le nombre de rencontres dans une session?","Si vous donnez des sessions de RPG en virtuel synchrone, quel est le nombre de rencontres dans une session?","À quel moment les RPG sont-elles offertes ? (jour, soir)","À quel moment les RPG sont-elles offertes ? (semaine, fin de semaine)","À partir de combien de semaines de grossesse les RPG sont-elles offertes?","Un coût est-il chargé pour participer aux RPG? ","S'il y a un coût, quel est-il par session?","Est-ce que des RPG en anglais sont offertes?","Est-ce que des RPG en d'autres langues que le français et l'anglais sont offertes? ","Si oui, spécifiez.","Est-ce que des interprètes ou des outils permettant la traduction sont utilisés?"," Si oui, spécifiez. ","Quelles sont les thématiques principales discutées lors d'une session de RPG (offre de base) ? ","Y a-t-il des RPG complémentaires offertes à la carte, sur des thèmes spécifiques ou pour des clientèles particulières? Si oui, précisez.","Dans le cadre des sessions de RPG, y a-t-il une ou plusieurs rencontres offerte(s) en postnatal?"]
["123 rue des bébés","CIUSSS du Centre-Sud-de-l'Île-de-Montréal (06-3)","CLSC","Josée Lambert","RLS des Faubourgs–Plateau-Mont-Royal–St-Louis-du-Parc",0,0,5,"50% en présence, 50% en virtuel",2,4,0,"Jour et Soir","Semaine","26 à 30 semaines","Modulable selon revenu",null,"Non","Non",null,"Non",null,"La grossesse, la préparation à l'accouchement, les soins au nouveau-né","Non","Non"]

{"sheet":"3. Portrait inscriptions","index":4,"n_rows":5,"n_cols":17,"rows_kept":5,"cut":false,"hidden":false,"merged":[[2,0,2,11],[2,12,2,14],[1,0,1,16],[0,1,0,2],[0,4,0,8],[2,15,2,16]]}
[null,"Portrait des rencontres prénatales de groupe (RPG)",null,null,"Il y a 2 façons de compléter ce portrait.\n1) Remplir une ligne par installation. Cependant, il faut s'assurer que les informations inscrites dans les onglets 2,3,4 et 5 soient entrées sur le même # de ligne pour cette installation. (méthode à privilégier, car plus complète)\n2) Remplir le portrait pour l'offre globale sur le territoire en utilisant seulement une ligne."]
["Portrait des inscriptions"]
["NOMBRE D'INSCRIPTIONS",null,null,null,null,null,null,null,null,null,null,null,"SOURCES DE RÉFÉRENCES",null,null,"MOYENS POUR REJOINDRE LES CLIENTÈLES SPÉCIFIQUES CIBLÉES"]
["Combien de personnes sont inscrites à des sessions de RPG en présentiel dans cette installation par année?","Combien de personnes sont inscrites à des sessions de RPG en virtuel synchrone dans cette installation par année?","Combien de personnes sont inscrites à des sessions de RPG en mode hybride (présentiel ET virtuel synchrone) dans cette installation par année?","Quel est le nombre limite de participants par session de RPG en présentiel?","Quel est le nombre limite de participants par session de RPG en virtuel synchrone ?","Quel est le nombre limite de participants par session de RPG en mode hybride (présentiel ET virtuel synchrone) ?","Combien de demandes d'inscriptions ont été refusées par année pour les RPG en présentiel dans cette installation?","Combien de demandes d'inscriptions ont été refusées par année pour les RPG en virtuel synchrone dans cette installation?","Combien de demandes d'inscriptions ont été refusées  par année pour les RPG en mode hybride (présentiel ET virtuel synchrone) dans cette installation?","Quelles sont les raisons pour refuser des inscriptions?","Est-ce qu'il y a des critères d'admissibilité pour les participants aux RPG (ex : primipares) Si oui, lesquels?","Avez-vous une liste d'attente pour participer aux RPG ? Si oui, combien de personnes sont actuellement sur la liste d'attente?","De quelle manière la promotion des RPG est-elle faite?","Comment les participants ont entendu parler de votre offre de RPG?","Quelles sont les méthodes utilisées pour s'inscrire aux RPG?","Y a-t-il des stratégies mises en place pour rejoindre certaines clientèles ciblées telles : père ou coparent, nouveaux arrivants, personnes vivant en contexte de précarité socio-économiques?","Si oui, quelles sont les stratégies utilisées pour rejoindre certaines clientèles ciblées telles : père ou coparent, nouveaux arrivants, personnes vivant en contexte de précarité socio-économiques?"]
[0,0,"61 À 80",0,0,"16 À 20",0,0,"1 À 5","Groupe complet","Aucun","6 À 10","Aucune promotion","Par l'intervenante Ma Grossesse","Formulaire en ligne","Oui","Approche personnalisée avec organismes communautaires"]

{"sheet":"4. Portrait participants","index":5,"n_rows":6,"n_cols":12,"rows_kept":6,"cut":false,"hidden":false,"merged":[[2,0,2,7],[1,0,1,11],[2,10,2,11],[0,1,0,2],[0,4,0,9],[2,8,2,9]]}
[null,"Portrait des rencontres prénatales de groupe (RPG)",null,null,"Il y a 2 façons de compléter ce portrait.\n1) Remplir une ligne par installation. Cependant, il faut s'assurer que les informations inscrites dans les onglets 2,3,4 et 5 soient entrées sur le même # de ligne pour cette installation. (méthode à privilégier, car plus complète)\n2) Remplir le portrait pour l'offre globale sur le territoire en utilisant seulement une ligne."]
["Portrait des participants"]
["NOMBRE ET CARACTÉRISTIQUES DES PARTICIPANTS",null,null,null,null,null,null,null,"BESOINS DES PARTICIPANTS",null,"NIVEAU DE PARTICIPATION"]
["Combien de personnes enceintes participent aux RPG par année?","Combien de partenaires ou personnes accompagnantes participent aux RPG par année?","Combien de participants issus de l'immigration récente (moins de 5 ans) participent aux RPG par année?","Combien de participants bénéficiant du programme Olo (non SIPPE) participent aux RPG par année?","Combien de participants bénéficiant des SIPPE participent aux RPG par année?","Combien de participants francophones participent aux RPG par année?","Combien de participants anglophones participent aux RPG par année?","Combien de participants allophones participent aux RPG par année?","Est-ce qu'il y a un moyen mis en place pour sonder les besoins des participants avant le début des RPG? Ex: un sondage avant le début de la première rencontre.","Est-ce qu'il y a un moyen mis en place pour sonder la satisfaction des participants après les RPG? Ex: un sondage à la fin des rencontres.","Sur une échelle de 1 = aucun à 5 = beaucoup, quel est le niveau d'échanges entre les participants dans les RPG en présentiel?","Sur une échelle de 1 = aucun à 5 = beaucoup, quel est le niveau d'échanges entre les participants dans les RPG en virtuel synchrone?"]
["81 À 100","26 À 30","16 À 20","6 À 10","1 À 5","31 À 35","6 À 10","6 À 10","Non","Oui","4 = échanges durant les pauses, participants vont répondre et poser des questions, animatrices disponibles après pour répondre aux questions","2 = peu d'échange, participants vont seulement répondre à certaines questions"]
[null,"11 À 15",null,"6 À 10"]

{"sheet":"5. Portrait RH et organisation","index":6,"n_rows":5,"n_cols":6,"rows_kept":5,"cut":false,"hidden":false,"merged":[[2,0,2,2],[2,3,2,5],[1,0,1,5],[0,1,0,2],[0,4,0,5]]}
[null,"Portrait des rencontres prénatales de groupe (RPG)",null,null,"Il y a 2 façons de compléter ce portrait.\n1) Remplir une ligne par installation. Cependant, il faut s'assurer que les informations inscrites dans les onglets 2,3,4 et 5 soient entrées sur le même # de ligne pour cette installation. (méthode à privilégier, car plus complète)\n2) Remplir le portrait pour l'offre globale sur le territoire en utilisant seulement une ligne."]
["Portrait des ressources humaines et de l'organisation des services de RPG"]
["PERSONNES ANIMATRICES",null,null,"SOUTIEN ET FORMATION"]
["Combien de personnes animent des RPG dans l'installation au cours d'une année typique?","Quelle est la formation de base des personnes animatrices (ex : infirmière, nutritionniste, sage-femme ou autres)?","Quel est le nombre d'années d'expérience (en moyenne) des personnes animatrices?","Offrez-vous des formations aux personnes animatrices pour améliorer leurs connaissances et compétences?","Si oui, lesquelles?","Quels sont les outils utilisés pour animer les RPG ? (Ex : PPT, guide d’animation, outils d’animation, vidéos, documentation)"]
[6,"Infirmière",5,"Non",null,"PPT"]

{"sheet":"6. Portrait complet","index":7,"n_rows":22,"n_cols":60,"rows_kept":22,"cut":false,"hidden":false,"merged":[[1,0,1,24],[1,42,1,53],[2,42,2,49],[0,1,0,2],[2,0,2,4],[2,5,2,16],[2,17,2,21],[2,22,2,24],[2,40,2,41],[1,25,1,41],[1,54,1,59],[2,54,2,56],[2,57,2,59],[2,52,2,53],[2,25,2,36],[2,37,2,39],[2,50,2,51]]}
[null,"Portrait des rencontres prénatales de groupe (RPG)"]
["Portrait de l'offre",null,null,null,null,null,null,null,null,null,null,null,null,null,null,null,null,null,null,null,null,null,null,null,null,"Portrait des inscriptions",null,null,null,null,null,null,null,null,null,null,null,null,null,null,null,null,"Portrait des participants",null,null,null,null,null,null,null,null,null,null,null,"Portrait des ressources humaines et de l'organisation des services de RPG"]
["IDENTIFICATION DE L'INSTALLATION ET DU TERRITOIRE",null,null,null,null,"DESCRIPTION GÉNÉRALE DE L'OFFRE",null,null,null,null,null,null,null,null,null,null,null,"LANGUES",null,null,null,null,"THÉMATIQUES",null,null,"NOMBRE D'INSCRIPTIONS",null,null,null,null,null,null,null,null,null,null,null,"SOURCES DE RÉFÉRENCES",null,null,"MOYENS POUR REJOINDRE LES CLIENTÈLES SPÉCIFIQUES CIBLÉES",null,"NOMBRE ET CARACTÉRISTIQUES DES PARTICIPANTS",null,null,null,null,null,null,null,"BESOINS DES PARTICIPANTS",null,"NIVEAU DE PARTICIPATION",null,"PERSONNES ANIMATRICES",null,null,"SOUTIEN ET FORMATION"]
["Indiquez les coordonnées de l'installation (CLSC, MdN, OC, CRP ou autre lieu offrant les RPG)","Indiquez le territoire CI(U)SSS (RTS)","Indiquez le type d'installation : RSSS ou communautaire","Indiquez le nom de la personne responsable des RPG dans l'installation","Indiquez les territoires de RLS sur votre territoire CI(U)SSS auxquels l'offre de RPG s'applique","Quel est le nombre de sessions de RPG seulement en présentiel par année?","Quel est le nombre de sessions de RPG seulement en virtuel synchrone par année?","Quel est le nombre de sessions de RPG en mode hybride : présentiel ET virtuel synchrone par année?","S'il y a des RPG en mode hybride, quel est le ratio entre le nombre de rencontres en présentiel versus le nombre de rencontres en virtuel synchrone?","Combien de rencontres dans une session de RPG sont offertes en virtuel asynchrone?","Si vous donnez des sessions de RPG en présentiel ou en hybride, quel est le nombre de rencontres dans une session?","Si vous donnez des sessions de RPG en virtuel synchrone, quel est le nombre de rencontres dans une session?","À quel moment les RPG sont-elles offertes ? (jour, soir)","À quel moment les RPG sont-elles offertes ? (semaine, fin de semaine)","À partir de combien de semaines de grossesse les RPG sont-elles offertes?","Un coût est-il chargé pour participer aux RPG? ","S'il y a un coût, quel est-il par session?","Est-ce que des RPG en anglais sont offertes?","Est-ce que des RPG en d'autres langues que le français et l'anglais sont offertes? ","Si oui, spécifiez.","Est-ce que des interprètes ou des outils permettant la traduction sont utilisés?"," Si oui, spécifiez. ","Quelles sont les thématiques principales discutées lors d'une session de RPG (offre de base) ? ","Y a-t-il des RPG complémentaires offertes à la carte, sur des thèmes spécifiques ou pour des clientèles particulières? Si oui, précisez.","Dans le cadre des sessions de RPG, y a-t-il une ou plusieurs rencontres offerte(s) en postnatal?","Combien de personnes sont inscrites à des sessions de RPG en présentiel dans cette installation par année?","Combien de personnes sont inscrites à des sessions de RPG en virtuel synchrone dans cette installation par année?","Combien de personnes sont inscrites à des sessions de RPG en mode hybride (présentiel ET virtuel synchrone) dans cette installation par année?","Quel est le nombre limite de participants par session de RPG en présentiel?","Quel est le nombre limite de participants par session de RPG en virtuel synchrone ?","Quel est le nombre limite de participants par session de RPG en mode hybride (présentiel ET virtuel synchrone) ?","Combien de demandes d'inscriptions ont été refusées par année pour les RPG en présentiel dans cette installation?","Combien de demandes d'inscriptions ont été refusées par année pour les RPG en virtuel synchrone dans cette installation?","Combien de demandes d'inscriptions ont été refusées  par année pour les RPG en mode hybride (présentiel ET virtuel synchrone) dans cette installation?","Quelles sont les raisons pour refuser des inscriptions?","Est-ce qu'il y a des critères d'admissibilité pour les participants aux RPG (ex : primipares) Si oui, lesquels?","Avez-vous une liste d'attente pour participer aux RPG ? Si oui, combien de personnes sont actuellement sur la liste d'attente?","De quelle manière la promotion des RPG est-elle faite?","Comment les participants ont entendu parler de votre offre de RPG?","Quelles sont les méthodes utilisées pour s'inscrire aux RPG?","Y a-t-il des stratégies mises en place pour rejoindre certaines clientèles ciblées telles : père ou coparent, nouveaux arrivants, personnes vivant en contexte de précarité socio-économiques?","Si oui, quelles sont les stratégies utilisées pour rejoindre certaines clientèles ciblées telles : père ou coparent, nouveaux arrivants, personnes vivant en contexte de précarité socio-économiques?","Combien de personnes enceintes participent aux RPG par année?","Combien de partenaires ou personnes accompagnantes participent aux RPG par année?","Combien de participants issus de l'immigration récente (moins de 5 ans) participent aux RPG par année?","Combien de participants bénéficiant du programme Olo (non SIPPE) participent aux RPG par année?","Combien de participants bénéficiant des SIPPE participent aux RPG par année?","Combien de participants francophones participent aux RPG par année?","Combien de participants anglophones participent aux RPG par année?","Combien de participants allophones participent aux RPG par année?","Est-ce qu'il y a un moyen mis en place pour sonder les besoins des participants avant le début des RPG? Ex: un sondage avant le début de la première rencontre.","Est-ce qu'il y a un moyen mis en place pour sonder la satisfaction des participants après les RPG? Ex: un sondage à la fin des rencontres.","Sur une échelle de 1 = aucun à 5 = beaucoup, quel est le niveau d'échanges entre les participants dans les RPG en présentiel?","Sur une échelle de 1 = aucun à 5 = beaucoup, quel est le niveau d'échanges entre les participants dans les RPG en virtuel?","Combien de personnes animent des RPG dans l'installation au cours d'une année typique?","Quelle est la formation de base des personnes animatrices (ex : infirmière, nutritionniste, sage-femme ou autres)?","Quel est le nombre d'années d'expérience (en moyenne) des personnes animatrices?","Offrez-vous des formations aux personnes animatrices pour améliorer leurs connaissances et compétences?","Si oui, lesquelles?","Quels sont les outils utilisés pour animer les RPG ? (Ex : PPT, guide d’animation, outils d’animation, vidéos, documentation)"]
[{"$f":"Tableau4[[#This Row],[Indiquez les coordonnées de l''installation (CLSC, MdN, OC, CRP ou autre lieu offrant les RPG)]]","v":"123 rue des bébés"},{"$f":"Tableau4[[#This Row],[Indiquez le territoire CI(U)SSS (RTS)]]","v":"CIUSSS du Centre-Sud-de-l'Île-de-Montréal (06-3)"},{"$f":"Tableau4[[#This Row],[Indiquez le type d''installation : RSSS ou communautaire]]","v":"CLSC"},{"$f":"Tableau4[[#This Row],[Indiquez le nom de la personne responsable des RPG dans l''installation]]","v":"Josée Lambert"},{"$f":"Tableau4[[#This Row],[Indiquez les territoires de RLS sur votre territoire CI(U)SSS auxquels l''offre de RPG s''applique]]","v":"RLS des Faubourgs–Plateau-Mont-Royal–St-Louis-du-Parc"},{"$f":"Tableau4[[#This Row],[Quel est le nombre de sessions de RPG seulement en présentiel par année?]]","v":0},{"$f":"Tableau4[[#This Row],[Quel est le nombre de sessions de RPG seulement en virtuel synchrone par année?]]","v":0},{"$f":"Tableau4[[#This Row],[Quel est le nombre de sessions de RPG en mode hybride : présentiel ET virtuel synchrone par année?]]","v":5},{"$f":"Tableau4[[#This Row],[S''il y a des RPG en mode hybride, quel est le ratio entre le nombre de rencontres en présentiel versus le nombre de rencontres en virtuel synchrone?]]","v":"50% en présence, 50% en virtuel"},{"$f":"Tableau4[[#This Row],[Combien de rencontres dans une session de RPG sont offertes en virtuel asynchrone?]]","v":2},{"$f":"Tableau4[[#This Row],[Si vous donnez des sessions de RPG en présentiel ou en hybride, quel est le nombre de rencontres dans une session?]]","v":4},{"$f":"Tableau4[[#This Row],[Si vous donnez des sessions de RPG en virtuel synchrone, quel est le nombre de rencontres dans une session?]]","v":0},{"$f":"Tableau4[[#This Row],[À quel moment les RPG sont-elles offertes ? (jour, soir)]]","v":"Jour et Soir"},{"$f":"Tableau4[[#This Row],[À quel moment les RPG sont-elles offertes ? (semaine, fin de semaine)]]","v":"Semaine"},{"$f":"Tableau4[[#This Row],[À partir de combien de semaines de grossesse les RPG sont-elles offertes?]]","v":"26 à 30 semaines"},{"$f":"Tableau4[[#This Row],[Un coût est-il chargé pour participer aux RPG? ]]","v":"Modulable selon revenu"},{"$f":"Tableau4[[#This Row],[S''il y a un coût, quel est-il par session?]]","v":0},{"$f":"Tableau4[[#This Row],[Est-ce que des RPG en anglais sont offertes?]]","v":"Non"},{"$f":"Tableau4[[#This Row],[Est-ce que des RPG en d''autres langues que le français et l''anglais sont offertes? ]]","v":"Non"},{"$f":"Tableau4[[#This Row],[Si oui, spécifiez.]]","v":0},{"$f":"Tableau4[[#This Row],[Est-ce que des interprètes ou des outils permettant la traduction sont utilisés?]]","v":"Non"},{"$f":"Tableau4[[#This Row],[ Si oui, spécifiez. ]]","v":0},{"$f":"Tableau4[[#This Row],[Quelles sont les thématiques principales discutées lors d''une session de RPG (offre de base) ? ]]","v":"La grossesse, la préparation à l'accouchement, les soins au nouveau-né"},{"$f":"Tableau4[[#This Row],[Y a-t-il des RPG complémentaires offertes à la carte, sur des thèmes spécifiques ou pour des clientèles particulières? Si oui, précisez.]]","v":"Non"},{"$f":"Tableau4[[#This Row],[Dans le cadre des sessions de RPG, y a-t-il une ou plusieurs rencontres offerte(s) en postnatal?]]","v":"Non"},{"$f":"Tableau5[[#This Row],[Combien de personnes sont inscrites à des sessions de RPG en présentiel dans cette installation par année?]]","v":0},{"$f":"Tableau5[[#This Row],[Combien de personnes sont inscrites à des sessions de RPG en virtuel synchrone dans cette installation par année?]]","v":0},{"$f":"Tableau5[[#This Row],[Combien de personnes sont inscrites à des sessions de RPG en mode hybride (présentiel ET virtuel synchrone) dans cette installation par année?]]","v":"61 À 80"},{"$f":"Tableau5[[#This Row],[Quel est le nombre limite de participants par session de RPG en présentiel?]]","v":0},{"$f":"Tableau5[[#This Row],[Quel est le nombre limite de participants par session de RPG en virtuel synchrone ?]]","v":0},{"$f":"Tableau5[[#This Row],[Quel est le nombre limite de participants par session de RPG en mode hybride (présentiel ET virtuel synchrone) ?]]","v":"16 À 20"},{"$f":"Tableau5[[#This Row],[Combien de demandes d''inscriptions ont été refusées par année pour les RPG en présentiel dans cette installation?]]","v":0},{"$f":"Tableau5[[#This Row],[Combien de demandes d''inscriptions ont été refusées par année pour les RPG en virtuel synchrone dans cette installation?]]","v":0},{"$f":"Tableau5[[#This Row],[Combien de demandes d''inscriptions ont été refusées  par année pour les RPG en mode hybride (présentiel ET virtuel synchrone) dans cette installation?]]","v":"1 À 5"},{"$f":"Tableau5[[#This Row],[Quelles sont les raisons pour refuser des inscriptions?]]","v":"Groupe complet"},{"$f":"Tableau5[[#This Row],[Est-ce qu''il y a des critères d''admissibilité pour les participants aux RPG (ex : primipares) Si oui, lesquels?]]","v":"Aucun"},{"$f":"Tableau5[[#This Row],[Avez-vous une liste d''attente pour participer aux RPG ? Si oui, combien de personnes sont actuellement sur la liste d''attente?]]","v":"6 À 10"},{"$f":"Tableau5[[#This Row],[De quelle manière la promotion des RPG est-elle faite?]]","v":"Aucune promotion"},{"$f":"Tableau5[[#This Row],[Comment les participants ont entendu parler de votre offre de RPG?]]","v":"Par l'intervenante Ma Grossesse"},{"$f":"Tableau5[[#This Row],[Quelles sont les méthodes utilisées pour s''inscrire aux RPG?]]","v":"Formulaire en ligne"},{"$f":"Tableau5[[#This Row],[Y a-t-il des stratégies mises en place pour rejoindre certaines clientèles ciblées telles : père ou coparent, nouveaux arrivants, personnes vivant en contexte de précarité socio-économiques?]]","v":"Oui"},{"$f":"Tableau5[[#This Row],[Si oui, quelles sont les stratégies utilisées pour rejoindre certaines clientèles ciblées telles : père ou coparent, nouveaux arrivants, personnes vivant en contexte de précarité socio-économiques?]]","v":"Approche personnalisée avec organismes communautaires"},{"$f":"Tableau6[[#This Row],[Combien de personnes enceintes participent aux RPG par année?]]","v":"81 À 100"},{"$f":"Tableau6[[#This Row],[Combien de partenaires ou personnes accompagnantes participent aux RPG par année?]]","v":"26 À 30"},{"$f":"Tableau6[[#This Row],[Combien de participants issus de l''immigration récente (moins de 5 ans) participent aux RPG par année?]]","v":"16 À 20"},{"$f":"Tableau6[[#This Row],[Combien de participants bénéficiant du programme Olo (non SIPPE) participent aux RPG par année?]]","v":"6 À 10"},{"$f":"Tableau6[[#This Row],[Combien de participants bénéficiant des SIPPE participent aux RPG par année?]]","v":"1 À 5"},{"$f":"Tableau6[[#This Row],[Combien de participants francophones participent aux RPG par année?]]","v":"31 À 35"},{"$f":"Tableau6[[#This Row],[Combien de participants anglophones participent aux RPG par année?]]","v":"6 À 10"},{"$f":"Tableau6[[#This Row],[Combien de participants allophones participent aux RPG par année?]]","v":"6 À 10"},{"$f":"Tableau6[[#This Row],[Est-ce qu''il y a un moyen mis en place pour sonder les besoins des participants avant le début des RPG? Ex: un sondage avant le début de la première rencontre.]]","v":"Non"},{"$f":"Tableau6[[#This Row],[Est-ce qu''il y a un moyen mis en place pour sonder la satisfaction des participants après les RPG? Ex: un sondage à la fin des rencontres.]]","v":"Oui"},{"$f":"Tableau6[[#This Row],[Sur une échelle de 1 = aucun à 5 = beaucoup, quel est le niveau d''échanges entre les participants dans les RPG en présentiel?]]","v":"4 = échanges durant les pauses, participants vont répondre et poser des questions, animatrices disponibles après pour répondre aux questions"},{"$f":"Tableau6[[#This Row],[Sur une échelle de 1 = aucun à 5 = beaucoup, quel est le niveau d''échanges entre les participants dans les RPG en virtuel synchrone?]]","v":"2 = peu d'échange, participants vont seulement répondre à certaines questions"},{"$f":"Tableau7[[#This Row],[Combien de personnes animent des RPG dans l''installation au cours d''une année typique?]]","v":6},{"$f":"Tableau7[[#This Row],[Quelle est la formation de base des personnes animatrices (ex : infirmière, nutritionniste, sage-femme ou autres)?]]","v":"Infirmière"},{"$f":"Tableau7[[#This Row],[Quel est le nombre d''années d''expérience (en moyenne) des personnes animatrices?]]","v":5},{"$f":"Tableau7[[#This Row],[Offrez-vous des formations aux personnes animatrices pour améliorer leurs connaissances et compétences?]]","v":"Non"},{"$f":"Tableau7[[#This Row],[Si oui, lesquelles?]]","v":0},{"$f":"Tableau7[[#This Row],[Quels sont les outils utilisés pour animer les RPG ? (Ex : PPT, guide d’animation, outils d’animation, vidéos, documentation)]]","v":"PPT"}]
[{"$f":"Tableau4[[#This Row],[Indiquez les coordonnées de l''installation (CLSC, MdN, OC, CRP ou autre lieu offrant les RPG)]]","v":0},{"$f":"Tableau4[[#This Row],[Indiquez le territoire CI(U)SSS (RTS)]]","v":0},{"$f":"Tableau4[[#This Row],[Indiquez le type d''installation : RSSS ou communautaire]]","v":0},{"$f":"Tableau4[[#This Row],[Indiquez le nom de la personne responsable des RPG dans l''installation]]","v":0},{"$f":"Tableau4[[#This Row],[Indiquez les territoires de RLS sur votre territoire CI(U)SSS auxquels l''offre de RPG s''applique]]","v":0},{"$f":"Tableau4[[#This Row],[Quel est le nombre de sessions de RPG seulement en présentiel par année?]]","v":0},{"$f":"Tableau4[[#This Row],[Quel est le nombre de sessions de RPG seulement en virtuel synchrone par année?]]","v":0},{"$f":"Tableau4[[#This Row],[Quel est le nombre de sessions de RPG en mode hybride : présentiel ET virtuel synchrone par année?]]","v":0},{"$f":"Tableau4[[#This Row],[S''il y a des RPG en mode hybride, quel est le ratio entre le nombre de rencontres en présentiel versus le nombre de rencontres en virtuel synchrone?]]","v":0},{"$f":"Tableau4[[#This Row],[Combien de rencontres dans une session de RPG sont offertes en virtuel asynchrone?]]","v":0},{"$f":"Tableau4[[#This Row],[Si vous donnez des sessions de RPG en présentiel ou en hybride, quel est le nombre de rencontres dans une session?]]","v":0},{"$f":"Tableau4[[#This Row],[Si vous donnez des sessions de RPG en virtuel synchrone, quel est le nombre de rencontres dans une session?]]","v":0},{"$f":"Tableau4[[#This Row],[À quel moment les RPG sont-elles offertes ? (jour, soir)]]","v":0},{"$f":"Tableau4[[#This Row],[À quel moment les RPG sont-elles offertes ? (semaine, fin de semaine)]]","v":0},{"$f":"Tableau4[[#This Row],[À partir de combien de semaines de grossesse les RPG sont-elles offertes?]]","v":0},{"$f":"Tableau4[[#This Row],[Un coût est-il chargé pour participer aux RPG? ]]","v":0},{"$f":"Tableau4[[#This Row],[S''il y a un coût, quel est-il par session?]]","v":0},{"$f":"Tableau4[[#This Row],[Est-ce que des RPG en anglais sont offertes?]]","v":0},{"$f":"Tableau4[[#This Row],[Est-ce que des RPG en d''autres langues que le français et l''anglais sont offertes? ]]","v":0},{"$f":"Tableau4[[#This Row],[Si oui, spécifiez.]]","v":0},{"$f":"Tableau4[[#This Row],[Est-ce que des interprètes ou des outils permettant la traduction sont utilisés?]]","v":0},{"$f":"Tableau4[[#This Row],[ Si oui, spécifiez. ]]","v":0},{"$f":"Tableau4[[#This Row],[Quelles sont les thématiques principales discutées lors d''une session de RPG (offre de base) ? ]]","v":0},{"$f":"Tableau4[[#This Row],[Y a-t-il des RPG complémentaires offertes à la carte, sur des thèmes spécifiques ou pour des clientèles particulières? Si oui, précisez.]]","v":0},{"$f":"Tableau4[[#This Row],[Dans le cadre des sessions de RPG, y a-t-il une ou plusieurs rencontres offerte(s) en postnatal?]]","v":0},{"$f":"Tableau5[[#This Row],[Combien de personnes sont inscrites à des sessions de RPG en présentiel dans cette installation par année?]]","v":0},{"$f":"Tableau5[[#This Row],[Combien de personnes sont inscrites à des sessions de RPG en virtuel synchrone dans cette installation par année?]]","v":0},{"$f":"Tableau5[[#This Row],[Combien de personnes sont inscrites à des sessions de RPG en mode hybride (présentiel ET virtuel synchrone) dans cette installation par année?]]","v":0},{"$f":"Tableau5[[#This Row],[Quel est le nombre limite de participants par session de RPG en présentiel?]]","v":0},{"$f":"Tableau5[[#This Row],[Quel est le nombre limite de participants par session de RPG en virtuel synchrone ?]]","v":0},{"$f":"Tableau5[[#This Row],[Quel est le nombre limite de participants par session de RPG en mode hybride (présentiel ET virtuel synchrone) ?]]","v":0},{"$f":"Tableau5[[#This Row],[Combien de demandes d''inscriptions ont été refusées par année pour les RPG en présentiel dans cette installation?]]","v":0},{"$f":"Tableau5[[#This Row],[Combien de demandes d''inscriptions ont été refusées par année pour les RPG en virtuel synchrone dans cette installation?]]","v":0},{"$f":"Tableau5[[#This Row],[Combien de demandes d''inscriptions ont été refusées  par année pour les RPG en mode hybride (présentiel ET virtuel synchrone) dans cette installation?]]","v":0},{"$f":"Tableau5[[#This Row],[Quelles sont les raisons pour refuser des inscriptions?]]","v":0},{"$f":"Tableau5[[#This Row],[Est-ce qu''il y a des critères d''admissibilité pour les participants aux RPG (ex : primipares) Si oui, lesquels?]]","v":0},{"$f":"Tableau5[[#This Row],[Avez-vous une liste d''attente pour participer aux RPG ? Si oui, combien de personnes sont actuellement sur la liste d''attente?]]","v":0},{"$f":"Tableau5[[#This Row],[De quelle manière la promotion des RPG est-elle faite?]]","v":0},{"$f":"Tableau5[[#This Row],[Comment les participants ont entendu parler de votre offre de RPG?]]","v":0},{"$f":"Tableau5[[#This Row],[Quelles sont les méthodes utilisées pour s''inscrire aux RPG?]]","v":0},{"$f":"Tableau5[[#This Row],[Y a-t-il des stratégies mises en place pour rejoindre certaines clientèles ciblées telles : père ou coparent, nouveaux arrivants, personnes vivant en contexte de précarité socio-économiques?]]","v":0},{"$f":"Tableau5[[#This Row],[Si oui, quelles sont les stratégies utilisées pour rejoindre certaines clientèles ciblées telles : père ou coparent, nouveaux arrivants, personnes vivant en contexte de précarité socio-économiques?]]","v":0},{"$f":"Tableau6[[#This Row],[Combien de personnes enceintes participent aux RPG par année?]]","v":0},{"$f":"Tableau6[[#This Row],[Combien de partenaires ou personnes accompagnantes participent aux RPG par année?]]","v":"11 À 15"},{"$f":"Tableau6[[#This Row],[Combien de participants issus de l''immigration récente (moins de 5 ans) participent aux RPG par année?]]","v":0},{"$f":"Tableau6[[#This Row],[Combien de participants bénéficiant du programme Olo (non SIPPE) participent aux RPG par année?]]","v":"6 À 10"},{"$f":"Tableau6[[#This Row],[Combien de participants bénéficiant des SIPPE participent aux RPG par année?]]","v":0},{"$f":"Tableau6[[#This Row],[Combien de participants francophones participent aux RPG par année?]]","v":0},{"$f":"Tableau6[[#This Row],[Combien de participants anglophones participent aux RPG par année?]]","v":0},{"$f":"Tableau6[[#This Row],[Combien de participants allophones participent aux RPG par année?]]","v":0},{"$f":"Tableau6[[#This Row],[Est-ce qu''il y a un moyen mis en place pour sonder les besoins des participants avant le début des RPG? Ex: un sondage avant le début de la première rencontre.]]","v":0},{"$f":"Tableau6[[#This Row],[Est-ce qu''il y a un moyen mis en place pour sonder la satisfaction des participants après les RPG? Ex: un sondage à la fin des rencontres.]]","v":0},{"$f":"Tableau6[[#This Row],[Sur une échelle de 1 = aucun à 5 = beaucoup, quel est le niveau d''échanges entre les participants dans les RPG en présentiel?]]","v":0},{"$f":"Tableau6[[#This Row],[Sur une échelle de 1 = aucun à 5 = beaucoup, quel est le niveau d''échanges entre les participants dans les RPG en virtuel synchrone?]]","v":0},{"$f":"Tableau7[[#This Row],[Combien de personnes animent des RPG dans l''installation au cours d''une année typique?]]","v":0},{"$f":"Tableau7[[#This Row],[Quelle est la formation de base des personnes animatrices (ex : infirmière, nutritionniste, sage-femme ou autres)?]]","v":0},{"$f":"Tableau7[[#This Row],[Quel est le nombre d''années d''expérience (en moyenne) des personnes animatrices?]]","v":0},{"$f":"Tableau7[[#This Row],[Offrez-vous des formations aux personnes animatrices pour améliorer leurs connaissances et compétences?]]","v":0},{"$f":"Tableau7[[#This Row],[Si oui, lesquelles?]]","v":0},{"$f":"Tableau7[[#This Row],[Quels sont les outils utilisés pour animer les RPG ? (Ex : PPT, guide d’animation, outils d’animation, vidéos, documentation)]]","v":0}]
[{"$f":"Tableau4[[#This Row],[Indiquez les coordonnées de l''installation (CLSC, MdN, OC, CRP ou autre lieu offrant les RPG)]]","v":0},{"$f":"Tableau4[[#This Row],[Indiquez le territoire CI(U)SSS (RTS)]]","v":0},{"$f":"Tableau4[[#This Row],[Indiquez le type d''installation : RSSS ou communautaire]]","v":0},{"$f":"Tableau4[[#This Row],[Indiquez le nom de la personne responsable des RPG dans l''installation]]","v":0},{"$f":"Tableau4[[#This Row],[Indiquez les territoires de RLS sur votre territoire CI(U)SSS auxquels l''offre de RPG s''applique]]","v":0},{"$f":"Tableau4[[#This Row],[Quel est le nombre de sessions de RPG seulement en présentiel par année?]]","v":0},{"$f":"Tableau4[[#This Row],[Quel est le nombre de sessions de RPG seulement en virtuel synchrone par année?]]","v":0},{"$f":"Tableau4[[#This Row],[Quel est le nombre de sessions de RPG en mode hybride : présentiel ET virtuel synchrone par année?]]","v":0},{"$f":"Tableau4[[#This Row],[S''il y a des RPG en mode hybride, quel est le ratio entre le nombre de rencontres en présentiel versus le nombre de rencontres en virtuel synchrone?]]","v":0},{"$f":"Tableau4[[#This Row],[Combien de rencontres dans une session de RPG sont offertes en virtuel asynchrone?]]","v":0},{"$f":"Tableau4[[#This Row],[Si vous donnez des sessions de RPG en présentiel ou en hybride, quel est le nombre de rencontres dans une session?]]","v":0},{"$f":"Tableau4[[#This Row],[Si vous donnez des sessions de RPG en virtuel synchrone, quel est le nombre de rencontres dans une session?]]","v":0},{"$f":"Tableau4[[#This Row],[À quel moment les RPG sont-elles offertes ? (jour, soir)]]","v":0},{"$f":"Tableau4[[#This Row],[À quel moment les RPG sont-elles offertes ? (semaine, fin de semaine)]]","v":0},{"$f":"Tableau4[[#This Row],[À partir de combien de semaines de grossesse les RPG sont-elles offertes?]]","v":0},{"$f":"Tableau4[[#This Row],[Un coût est-il chargé pour participer aux RPG? ]]","v":0},{"$f":"Tableau4[[#This Row],[S''il y a un coût, quel est-il par session?]]","v":0},{"$f":"Tableau4[[#This Row],[Est-ce que des RPG en anglais sont offertes?]]","v":0},{"$f":"Tableau4[[#This Row],[Est-ce que des RPG en d''autres langues que le français et l''anglais sont offertes? ]]","v":0},{"$f":"Tableau4[[#This Row],[Si oui, spécifiez.]]","v":0},{"$f":"Tableau4[[#This Row],[Est-ce que des interprètes ou des outils permettant la traduction sont utilisés?]]","v":0},{"$f":"Tableau4[[#This Row],[ Si oui, spécifiez. ]]","v":0},{"$f":"Tableau4[[#This Row],[Quelles sont les thématiques principales discutées lors d''une session de RPG (offre de base) ? ]]","v":0},{"$f":"Tableau4[[#This Row],[Y a-t-il des RPG complémentaires offertes à la carte, sur des thèmes spécifiques ou pour des clientèles particulières? Si oui, précisez.]]","v":0},{"$f":"Tableau4[[#This Row],[Dans le cadre des sessions de RPG, y a-t-il une ou plusieurs rencontres offerte(s) en postnatal?]]","v":0},{"$f":"Tableau5[[#This Row],[Combien de personnes sont inscrites à des sessions de RPG en présentiel dans cette installation par année?]]","v":0},{"$f":"Tableau5[[#This Row],[Combien de personnes sont inscrites à des sessions de RPG en virtuel synchrone dans cette installation par année?]]","v":0},{"$f":"Tableau5[[#This Row],[Combien de personnes sont inscrites à des sessions de RPG en mode hybride (présentiel ET virtuel synchrone) dans cette installation par année?]]","v":0},{"$f":"Tableau5[[#This Row],[Quel est le nombre limite de participants par session de RPG en présentiel?]]","v":0},{"$f":"Tableau5[[#This Row],[Quel est le nombre limite de participants par session de RPG en virtuel synchrone ?]]","v":0},{"$f":"Tableau5[[#This Row],[Quel est le nombre limite de participants par session de RPG en mode hybride (présentiel ET virtuel synchrone) ?]]","v":0},{"$f":"Tableau5[[#This Row],[Combien de demandes d''inscriptions ont été refusées par année pour les RPG en présentiel dans cette installation?]]","v":0},{"$f":"Tableau5[[#This Row],[Combien de demandes d''inscriptions ont été refusées par année pour les RPG en virtuel synchrone dans cette installation?]]","v":0},{"$f":"Tableau5[[#This Row],[Combien de demandes d''inscriptions ont été refusées  par année pour les RPG en mode hybride (présentiel ET virtuel synchrone) dans cette installation?]]","v":0},{"$f":"Tableau5[[#This Row],[Quelles sont les raisons pour refuser des inscriptions?]]","v":0},{"$f":"Tableau5[[#This Row],[Est-ce qu''il y a des critères d''admissibilité pour les participants aux RPG (ex : primipares) Si oui, lesquels?]]","v":0},{"$f":"Tableau5[[#This Row],[Avez-vous une liste d''attente pour participer aux RPG ? Si oui, combien de personnes sont actuellement sur la liste d''attente?]]","v":0},{"$f":"Tableau5[[#This Row],[De quelle manière la promotion des RPG est-elle faite?]]","v":0},{"$f":"Tableau5[[#This Row],[Comment les participants ont entendu parler de votre offre de RPG?]]","v":0},{"$f":"Tableau5[[#This Row],[Quelles sont les méthodes utilisées pour s''inscrire aux RPG?]]","v":0},{"$f":"Tableau5[[#This Row],[Y a-t-il des stratégies mises en place pour rejoindre certaines clientèles ciblées telles : père ou coparent, nouveaux arrivants, personnes vivant en contexte de précarité socio-économiques?]]","v":0},{"$f":"Tableau5[[#This Row],[Si oui, quelles sont les stratégies utilisées pour rejoindre certaines clientèles ciblées telles : père ou coparent, nouveaux arrivants, personnes vivant en contexte de précarité socio-économiques?]]","v":0},{"$f":"Tableau6[[#This Row],[Combien de personnes enceintes participent aux RPG par année?]]","v":0},{"$f":"Tableau6[[#This Row],[Combien de partenaires ou personnes accompagnantes participent aux RPG par année?]]","v":0},{"$f":"Tableau6[[#This Row],[Combien de participants issus de l''immigration récente (moins de 5 ans) participent aux RPG par année?]]","v":0},{"$f":"Tableau6[[#This Row],[Combien de participants bénéficiant du programme Olo (non SIPPE) participent aux RPG par année?]]","v":0},{"$f":"Tableau6[[#This Row],[Combien de participants bénéficiant des SIPPE participent aux RPG par année?]]","v":0},{"$f":"Tableau6[[#This Row],[Combien de participants francophones participent aux RPG par année?]]","v":0},{"$f":"Tableau6[[#This Row],[Combien de participants anglophones participent aux RPG par année?]]","v":0},{"$f":"Tableau6[[#This Row],[Combien de participants allophones participent aux RPG par année?]]","v":0},{"$f":"Tableau6[[#This Row],[Est-ce qu''il y a un moyen mis en place pour sonder les besoins des participants avant le début des RPG? Ex: un sondage avant le début de la première rencontre.]]","v":0},{"$f":"Tableau6[[#This Row],[Est-ce qu''il y a un moyen mis en place pour sonder la satisfaction des participants après les RPG? Ex: un sondage à la fin des rencontres.]]","v":0},{"$f":"Tableau6[[#This Row],[Sur une échelle de 1 = aucun à 5 = beaucoup, quel est le niveau d''échanges entre les participants dans les RPG en présentiel?]]","v":0},{"$f":"Tableau6[[#This Row],[Sur une échelle de 1 = aucun à 5 = beaucoup, quel est le niveau d''échanges entre les participants dans les RPG en virtuel synchrone?]]","v":0},{"$f":"Tableau7[[#This Row],[Combien de personnes animent des RPG dans l''installation au cours d''une année typique?]]","v":0},{"$f":"Tableau7[[#This Row],[Quelle est la formation de base des personnes animatrices (ex : infirmière, nutritionniste, sage-femme ou autres)?]]","v":0},{"$f":"Tableau7[[#This Row],[Quel est le nombre d''années d''expérience (en moyenne) des personnes animatrices?]]","v":0},{"$f":"Tableau7[[#This Row],[Offrez-vous des formations aux personnes animatrices pour améliorer leurs connaissances et compétences?]]","v":0},{"$f":"Tableau7[[#This Row],[Si oui, lesquelles?]]","v":0},{"$f":"Tableau7[[#This Row],[Quels sont les outils utilisés pour animer les RPG ? (Ex : PPT, guide d’animation, outils d’animation, vidéos, documentation)]]","v":0}]
[{"$f":"Tableau4[[#This Row],[Indiquez les coordonnées de l''installation (CLSC, MdN, OC, CRP ou autre lieu offrant les RPG)]]","v":0},{"$f":"Tableau4[[#This Row],[Indiquez le territoire CI(U)SSS (RTS)]]","v":0},{"$f":"Tableau4[[#This Row],[Indiquez le type d''installation : RSSS ou communautaire]]","v":0},{"$f":"Tableau4[[#This Row],[Indiquez le nom de la personne responsable des RPG dans l''installation]]","v":0},{"$f":"Tableau4[[#This Row],[Indiquez les territoires de RLS sur votre territoire CI(U)SSS auxquels l''offre de RPG s''applique]]","v":0},{"$f":"Tableau4[[#This Row],[Quel est le nombre de sessions de RPG seulement en présentiel par année?]]","v":0},{"$f":"Tableau4[[#This Row],[Quel est le nombre de sessions de RPG seulement en virtuel synchrone par année?]]","v":0},{"$f":"Tableau4[[#This Row],[Quel est le nombre de sessions de RPG en mode hybride : présentiel ET virtuel synchrone par année?]]","v":0},{"$f":"Tableau4[[#This Row],[S''il y a des RPG en mode hybride, quel est le ratio entre le nombre de rencontres en présentiel versus le nombre de rencontres en virtuel synchrone?]]","v":0},{"$f":"Tableau4[[#This Row],[Combien de rencontres dans une session de RPG sont offertes en virtuel asynchrone?]]","v":0},{"$f":"Tableau4[[#This Row],[Si vous donnez des sessions de RPG en présentiel ou en hybride, quel est le nombre de rencontres dans une session?]]","v":0},{"$f":"Tableau4[[#This Row],[Si vous donnez des sessions de RPG en virtuel synchrone, quel est le nombre de rencontres dans une session?]]","v":0},{"$f":"Tableau4[[#This Row],[À quel moment les RPG sont-elles offertes ? (jour, soir)]]","v":0},{"$f":"Tableau4[[#This Row],[À quel moment les RPG sont-elles offertes ? (semaine, fin de semaine)]]","v":0},{"$f":"Tableau4[[#This Row],[À partir de combien de semaines de grossesse les RPG sont-elles offertes?]]","v":0},{"$f":"Tableau4[[#This Row],[Un coût est-il chargé pour participer aux RPG? ]]","v":0},{"$f":"Tableau4[[#This Row],[S''il y a un coût, quel est-il par session?]]","v":0},{"$f":"Tableau4[[#This Row],[Est-ce que des RPG en anglais sont offertes?]]","v":0},{"$f":"Tableau4[[#This Row],[Est-ce que des RPG en d''autres langues que le français et l''anglais sont offertes? ]]","v":0},{"$f":"Tableau4[[#This Row],[Si oui, spécifiez.]]","v":0},{"$f":"Tableau4[[#This Row],[Est-ce que des interprètes ou des outils permettant la traduction sont utilisés?]]","v":0},{"$f":"Tableau4[[#This Row],[ Si oui, spécifiez. ]]","v":0},{"$f":"Tableau4[[#This Row],[Quelles sont les thématiques principales discutées lors d''une session de RPG (offre de base) ? ]]","v":0},{"$f":"Tableau4[[#This Row],[Y a-t-il des RPG complémentaires offertes à la carte, sur des thèmes spécifiques ou pour des clientèles particulières? Si oui, précisez.]]","v":0},{"$f":"Tableau4[[#This Row],[Dans le cadre des sessions de RPG, y a-t-il une ou plusieurs rencontres offerte(s) en postnatal?]]","v":0},{"$f":"Tableau5[[#This Row],[Combien de personnes sont inscrites à des sessions de RPG en présentiel dans cette installation par année?]]","v":0},{"$f":"Tableau5[[#This Row],[Combien de personnes sont inscrites à des sessions de RPG en virtuel synchrone dans cette installation par année?]]","v":0},{"$f":"Tableau5[[#This Row],[Combien de personnes sont inscrites à des sessions de RPG en mode hybride (présentiel ET virtuel synchrone) dans cette installation par année?]]","v":0},{"$f":"Tableau5[[#This Row],[Quel est le nombre limite de participants par session de RPG en présentiel?]]","v":0},{"$f":"Tableau5[[#This Row],[Quel est le nombre limite de participants par session de RPG en virtuel synchrone ?]]","v":0},{"$f":"Tableau5[[#This Row],[Quel est le nombre limite de participants par session de RPG en mode hybride (présentiel ET virtuel synchrone) ?]]","v":0},{"$f":"Tableau5[[#This Row],[Combien de demandes d''inscriptions ont été refusées par année pour les RPG en présentiel dans cette installation?]]","v":0},{"$f":"Tableau5[[#This Row],[Combien de demandes d''inscriptions ont été refusées par année pour les RPG en virtuel synchrone dans cette installation?]]","v":0},{"$f":"Tableau5[[#This Row],[Combien de demandes d''inscriptions ont été refusées  par année pour les RPG en mode hybride (présentiel ET virtuel synchrone) dans cette installation?]]","v":0},{"$f":"Tableau5[[#This Row],[Quelles sont les raisons pour refuser des inscriptions?]]","v":0},{"$f":"Tableau5[[#This Row],[Est-ce qu''il y a des critères d''admissibilité pour les participants aux RPG (ex : primipares) Si oui, lesquels?]]","v":0},{"$f":"Tableau5[[#This Row],[Avez-vous une liste d''attente pour participer aux RPG ? Si oui, combien de personnes sont actuellement sur la liste d''attente?]]","v":0},{"$f":"Tableau5[[#This Row],[De quelle manière la promotion des RPG est-elle faite?]]","v":0},{"$f":"Tableau5[[#This Row],[Comment les participants ont entendu parler de votre offre de RPG?]]","v":0},{"$f":"Tableau5[[#This Row],[Quelles sont les méthodes utilisées pour s''inscrire aux RPG?]]","v":0},{"$f":"Tableau5[[#This Row],[Y a-t-il des stratégies mises en place pour rejoindre certaines clientèles ciblées telles : père ou coparent, nouveaux arrivants, personnes vivant en contexte de précarité socio-économiques?]]","v":0},{"$f":"Tableau5[[#This Row],[Si oui, quelles sont les stratégies utilisées pour rejoindre certaines clientèles ciblées telles : père ou coparent, nouveaux arrivants, personnes vivant en contexte de précarité socio-économiques?]]","v":0},{"$f":"Tableau6[[#This Row],[Combien de personnes enceintes participent aux RPG par année?]]","v":0},{"$f":"Tableau6[[#This Row],[Combien de partenaires ou personnes accompagnantes participent aux RPG par année?]]","v":0},{"$f":"Tableau6[[#This Row],[Combien de participants issus de l''immigration récente (moins de 5 ans) participent aux RPG par année?]]","v":0},{"$f":"Tableau6[[#This Row],[Combien de participants bénéficiant du programme Olo (non SIPPE) participent aux RPG par année?]]","v":0},{"$f":"Tableau6[[#This Row],[Combien de participants bénéficiant des SIPPE participent aux RPG par année?]]","v":0},{"$f":"Tableau6[[#This Row],[Combien de participants francophones participent aux RPG par année?]]","v":0},{"$f":"Tableau6[[#This Row],[Combien de participants anglophones participent aux RPG par année?]]","v":0},{"$f":"Tableau6[[#This Row],[Combien de participants allophones participent aux RPG par année?]]","v":0},{"$f":"Tableau6[[#This Row],[Est-ce qu''il y a un moyen mis en place pour sonder les besoins des participants avant le début des RPG? Ex: un sondage avant le début de la première rencontre.]]","v":0},{"$f":"Tableau6[[#This Row],[Est-ce qu''il y a un moyen mis en place pour sonder la satisfaction des participants après les RPG? Ex: un sondage à la fin des rencontres.]]","v":0},{"$f":"Tableau6[[#This Row],[Sur une échelle de 1 = aucun à 5 = beaucoup, quel est le niveau d''échanges entre les participants dans les RPG en présentiel?]]","v":0},{"$f":"Tableau6[[#This Row],[Sur une échelle de 1 = aucun à 5 = beaucoup, quel est le niveau d''échanges entre les participants dans les RPG en virtuel synchrone?]]","v":0},{"$f":"Tableau7[[#This Row],[Combien de personnes animent des RPG dans l''installation au cours d''une année typique?]]","v":0},{"$f":"Tableau7[[#This Row],[Quelle est la formation de base des personnes animatrices (ex : infirmière, nutritionniste, sage-femme ou autres)?]]","v":0},{"$f":"Tableau7[[#This Row],[Quel est le nombre d''années d''expérience (en moyenne) des personnes animatrices?]]","v":0},{"$f":"Tableau7[[#This Row],[Offrez-vous des formations aux personnes animatrices pour améliorer leurs connaissances et compétences?]]","v":0},{"$f":"Tableau7[[#This Row],[Si oui, lesquelles?]]","v":0},{"$f":"Tableau7[[#This Row],[Quels sont les outils utilisés pour animer les RPG ? (Ex : PPT, guide d’animation, outils d’animation, vidéos, documentation)]]","v":0}]
[{"$f":"Tableau4[[#This Row],[Indiquez les coordonnées de l''installation (CLSC, MdN, OC, CRP ou autre lieu offrant les RPG)]]","v":0},{"$f":"Tableau4[[#This Row],[Indiquez le territoire CI(U)SSS (RTS)]]","v":0},{"$f":"Tableau4[[#This Row],[Indiquez le type d''installation : RSSS ou communautaire]]","v":0},{"$f":"Tableau4[[#This Row],[Indiquez le nom de la personne responsable des RPG dans l''installation]]","v":0},{"$f":"Tableau4[[#This Row],[Indiquez les territoires de RLS sur votre territoire CI(U)SSS auxquels l''offre de RPG s''applique]]","v":0},{"$f":"Tableau4[[#This Row],[Quel est le nombre de sessions de RPG seulement en présentiel par année?]]","v":0},{"$f":"Tableau4[[#This Row],[Quel est le nombre de sessions de RPG seulement en virtuel synchrone par année?]]","v":0},{"$f":"Tableau4[[#This Row],[Quel est le nombre de sessions de RPG en mode hybride : présentiel ET virtuel synchrone par année?]]","v":0},{"$f":"Tableau4[[#This Row],[S''il y a des RPG en mode hybride, quel est le ratio entre le nombre de rencontres en présentiel versus le nombre de rencontres en virtuel synchrone?]]","v":0},{"$f":"Tableau4[[#This Row],[Combien de rencontres dans une session de RPG sont offertes en virtuel asynchrone?]]","v":0},{"$f":"Tableau4[[#This Row],[Si vous donnez des sessions de RPG en présentiel ou en hybride, quel est le nombre de rencontres dans une session?]]","v":0},{"$f":"Tableau4[[#This Row],[Si vous donnez des sessions de RPG en virtuel synchrone, quel est le nombre de rencontres dans une session?]]","v":0},{"$f":"Tableau4[[#This Row],[À quel moment les RPG sont-elles offertes ? (jour, soir)]]","v":0},{"$f":"Tableau4[[#This Row],[À quel moment les RPG sont-elles offertes ? (semaine, fin de semaine)]]","v":0},{"$f":"Tableau4[[#This Row],[À partir de combien de semaines de grossesse les RPG sont-elles offertes?]]","v":0},{"$f":"Tableau4[[#This Row],[Un coût est-il chargé pour participer aux RPG? ]]","v":0},{"$f":"Tableau4[[#This Row],[S''il y a un coût, quel est-il par session?]]","v":0},{"$f":"Tableau4[[#This Row],[Est-ce que des RPG en anglais sont offertes?]]","v":0},{"$f":"Tableau4[[#This Row],[Est-ce que des RPG en d''autres langues que le français et l''anglais sont offertes? ]]","v":0},{"$f":"Tableau4[[#This Row],[Si oui, spécifiez.]]","v":0},{"$f":"Tableau4[[#This Row],[Est-ce que des interprètes ou des outils permettant la traduction sont utilisés?]]","v":0},{"$f":"Tableau4[[#This Row],[ Si oui, spécifiez. ]]","v":0},{"$f":"Tableau4[[#This Row],[Quelles sont les thématiques principales discutées lors d''une session de RPG (offre de base) ? ]]","v":0},{"$f":"Tableau4[[#This Row],[Y a-t-il des RPG complémentaires offertes à la carte, sur des thèmes spécifiques ou pour des clientèles particulières? Si oui, précisez.]]","v":0},{"$f":"Tableau4[[#This Row],[Dans le cadre des sessions de RPG, y a-t-il une ou plusieurs rencontres offerte(s) en postnatal?]]","v":0},{"$f":"Tableau5[[#This Row],[Combien de personnes sont inscrites à des sessions de RPG en présentiel dans cette installation par année?]]","v":0},{"$f":"Tableau5[[#This Row],[Combien de personnes sont inscrites à des sessions de RPG en virtuel synchrone dans cette installation par année?]]","v":0},{"$f":"Tableau5[[#This Row],[Combien de personnes sont inscrites à des sessions de RPG en mode hybride (présentiel ET virtuel synchrone) dans cette installation par année?]]","v":0},{"$f":"Tableau5[[#This Row],[Quel est le nombre limite de participants par session de RPG en présentiel?]]","v":0},{"$f":"Tableau5[[#This Row],[Quel est le nombre limite de participants par session de RPG en virtuel synchrone ?]]","v":0},{"$f":"Tableau5[[#This Row],[Quel est le nombre limite de participants par session de RPG en mode hybride (présentiel ET virtuel synchrone) ?]]","v":0},{"$f":"Tableau5[[#This Row],[Combien de demandes d''inscriptions ont été refusées par année pour les RPG en présentiel dans cette installation?]]","v":0},{"$f":"Tableau5[[#This Row],[Combien de demandes d''inscriptions ont été refusées par année pour les RPG en virtuel synchrone dans cette installation?]]","v":0},{"$f":"Tableau5[[#This Row],[Combien de demandes d''inscriptions ont été refusées  par année pour les RPG en mode hybride (présentiel ET virtuel synchrone) dans cette installation?]]","v":0},{"$f":"Tableau5[[#This Row],[Quelles sont les raisons pour refuser des inscriptions?]]","v":0},{"$f":"Tableau5[[#This Row],[Est-ce qu''il y a des critères d''admissibilité pour les participants aux RPG (ex : primipares) Si oui, lesquels?]]","v":0},{"$f":"Tableau5[[#This Row],[Avez-vous une liste d''attente pour participer aux RPG ? Si oui, combien de personnes sont actuellement sur la liste d''attente?]]","v":0},{"$f":"Tableau5[[#This Row],[De quelle manière la promotion des RPG est-elle faite?]]","v":0},{"$f":"Tableau5[[#This Row],[Comment les participants ont entendu parler de votre offre de RPG?]]","v":0},{"$f":"Tableau5[[#This Row],[Quelles sont les méthodes utilisées pour s''inscrire aux RPG?]]","v":0},{"$f":"Tableau5[[#This Row],[Y a-t-il des stratégies mises en place pour rejoindre certaines clientèles ciblées telles : père ou coparent, nouveaux arrivants, personnes vivant en contexte de précarité socio-économiques?]]","v":0},{"$f":"Tableau5[[#This Row],[Si oui, quelles sont les stratégies utilisées pour rejoindre certaines clientèles ciblées telles : père ou coparent, nouveaux arrivants, personnes vivant en contexte de précarité socio-économiques?]]","v":0},{"$f":"Tableau6[[#This Row],[Combien de personnes enceintes participent aux RPG par année?]]","v":0},{"$f":"Tableau6[[#This Row],[Combien de partenaires ou personnes accompagnantes participent aux RPG par année?]]","v":0},{"$f":"Tableau6[[#This Row],[Combien de participants issus de l''immigration récente (moins de 5 ans) participent aux RPG par année?]]","v":0},{"$f":"Tableau6[[#This Row],[Combien de participants bénéficiant du programme Olo (non SIPPE) participent aux RPG par année?]]","v":0},{"$f":"Tableau6[[#This Row],[Combien de participants bénéficiant des SIPPE participent aux RPG par année?]]","v":0},{"$f":"Tableau6[[#This Row],[Combien de participants francophones participent aux RPG par année?]]","v":0},{"$f":"Tableau6[[#This Row],[Combien de participants anglophones participent aux RPG par année?]]","v":0},{"$f":"Tableau6[[#This Row],[Combien de participants allophones participent aux RPG par année?]]","v":0},{"$f":"Tableau6[[#This Row],[Est-ce qu''il y a un moyen mis en place pour sonder les besoins des participants avant le début des RPG? Ex: un sondage avant le début de la première rencontre.]]","v":0},{"$f":"Tableau6[[#This Row],[Est-ce qu''il y a un moyen mis en place pour sonder la satisfaction des participants après les RPG? Ex: un sondage à la fin des rencontres.]]","v":0},{"$f":"Tableau6[[#This Row],[Sur une échelle de 1 = aucun à 5 = beaucoup, quel est le niveau d''échanges entre les participants dans les RPG en présentiel?]]","v":0},{"$f":"Tableau6[[#This Row],[Sur une échelle de 1 = aucun à 5 = beaucoup, quel est le niveau d''échanges entre les participants dans les RPG en virtuel synchrone?]]","v":0},{"$f":"Tableau7[[#This Row],[Combien de personnes animent des RPG dans l''installation au cours d''une année typique?]]","v":0},{"$f":"Tableau7[[#This Row],[Quelle est la formation de base des personnes animatrices (ex : infirmière, nutritionniste, sage-femme ou autres)?]]","v":0},{"$f":"Tableau7[[#This Row],[Quel est le nombre d''années d''expérience (en moyenne) des personnes animatrices?]]","v":0},{"$f":"Tableau7[[#This Row],[Offrez-vous des formations aux personnes animatrices pour améliorer leurs connaissances et compétences?]]","v":0},{"$f":"Tableau7[[#This Row],[Si oui, lesquelles?]]","v":0},{"$f":"Tableau7[[#This Row],[Quels sont les outils utilisés pour animer les RPG ? (Ex : PPT, guide d’animation, outils d’animation, vidéos, documentation)]]","v":0}]
[{"$f":"Tableau4[[#This Row],[Indiquez les coordonnées de l''installation (CLSC, MdN, OC, CRP ou autre lieu offrant les RPG)]]","v":0},{"$f":"Tableau4[[#This Row],[Indiquez le territoire CI(U)SSS (RTS)]]","v":0},{"$f":"Tableau4[[#This Row],[Indiquez le type d''installation : RSSS ou communautaire]]","v":0},{"$f":"Tableau4[[#This Row],[Indiquez le nom de la personne responsable des RPG dans l''installation]]","v":0},{"$f":"Tableau4[[#This Row],[Indiquez les territoires de RLS sur votre territoire CI(U)SSS auxquels l''offre de RPG s''applique]]","v":0},{"$f":"Tableau4[[#This Row],[Quel est le nombre de sessions de RPG seulement en présentiel par année?]]","v":0},{"$f":"Tableau4[[#This Row],[Quel est le nombre de sessions de RPG seulement en virtuel synchrone par année?]]","v":0},{"$f":"Tableau4[[#This Row],[Quel est le nombre de sessions de RPG en mode hybride : présentiel ET virtuel synchrone par année?]]","v":0},{"$f":"Tableau4[[#This Row],[S''il y a des RPG en mode hybride, quel est le ratio entre le nombre de rencontres en présentiel versus le nombre de rencontres en virtuel synchrone?]]","v":0},{"$f":"Tableau4[[#This Row],[Combien de rencontres dans une session de RPG sont offertes en virtuel asynchrone?]]","v":0},{"$f":"Tableau4[[#This Row],[Si vous donnez des sessions de RPG en présentiel ou en hybride, quel est le nombre de rencontres dans une session?]]","v":0},{"$f":"Tableau4[[#This Row],[Si vous donnez des sessions de RPG en virtuel synchrone, quel est le nombre de rencontres dans une session?]]","v":0},{"$f":"Tableau4[[#This Row],[À quel moment les RPG sont-elles offertes ? (jour, soir)]]","v":0},{"$f":"Tableau4[[#This Row],[À quel moment les RPG sont-elles offertes ? (semaine, fin de semaine)]]","v":0},{"$f":"Tableau4[[#This Row],[À partir de combien de semaines de grossesse les RPG sont-elles offertes?]]","v":0},{"$f":"Tableau4[[#This Row],[Un coût est-il chargé pour participer aux RPG? ]]","v":0},{"$f":"Tableau4[[#This Row],[S''il y a un coût, quel est-il par session?]]","v":0},{"$f":"Tableau4[[#This Row],[Est-ce que des RPG en anglais sont offertes?]]","v":0},{"$f":"Tableau4[[#This Row],[Est-ce que des RPG en d''autres langues que le français et l''anglais sont offertes? ]]","v":0},{"$f":"Tableau4[[#This Row],[Si oui, spécifiez.]]","v":0},{"$f":"Tableau4[[#This Row],[Est-ce que des interprètes ou des outils permettant la traduction sont utilisés?]]","v":0},{"$f":"Tableau4[[#This Row],[ Si oui, spécifiez. ]]","v":0},{"$f":"Tableau4[[#This Row],[Quelles sont les thématiques principales discutées lors d''une session de RPG (offre de base) ? ]]","v":0},{"$f":"Tableau4[[#This Row],[Y a-t-il des RPG complémentaires offertes à la carte, sur des thèmes spécifiques ou pour des clientèles particulières? Si oui, précisez.]]","v":0},{"$f":"Tableau4[[#This Row],[Dans le cadre des sessions de RPG, y a-t-il une ou plusieurs rencontres offerte(s) en postnatal?]]","v":0},{"$f":"Tableau5[[#This Row],[Combien de personnes sont inscrites à des sessions de RPG en présentiel dans cette installation par année?]]","v":0},{"$f":"Tableau5[[#This Row],[Combien de personnes sont inscrites à des sessions de RPG en virtuel synchrone dans cette installation par année?]]","v":0},{"$f":"Tableau5[[#This Row],[Combien de personnes sont inscrites à des sessions de RPG en mode hybride (présentiel ET virtuel synchrone) dans cette installation par année?]]","v":0},{"$f":"Tableau5[[#This Row],[Quel est le nombre limite de participants par session de RPG en présentiel?]]","v":0},{"$f":"Tableau5[[#This Row],[Quel est le nombre limite de participants par session de RPG en virtuel synchrone ?]]","v":0},{"$f":"Tableau5[[#This Row],[Quel est le nombre limite de participants par session de RPG en mode hybride (présentiel ET virtuel synchrone) ?]]","v":0},{"$f":"Tableau5[[#This Row],[Combien de demandes d''inscriptions ont été refusées par année pour les RPG en présentiel dans cette installation?]]","v":0},{"$f":"Tableau5[[#This Row],[Combien de demandes d''inscriptions ont été refusées par année pour les RPG en virtuel synchrone dans cette installation?]]","v":0},{"$f":"Tableau5[[#This Row],[Combien de demandes d''inscriptions ont été refusées  par année pour les RPG en mode hybride (présentiel ET virtuel synchrone) dans cette installation?]]","v":0},{"$f":"Tableau5[[#This Row],[Quelles sont les raisons pour refuser des inscriptions?]]","v":0},{"$f":"Tableau5[[#This Row],[Est-ce qu''il y a des critères d''admissibilité pour les participants aux RPG (ex : primipares) Si oui, lesquels?]]","v":0},{"$f":"Tableau5[[#This Row],[Avez-vous une liste d''attente pour participer aux RPG ? Si oui, combien de personnes sont actuellement sur la liste d''attente?]]","v":0},{"$f":"Tableau5[[#This Row],[De quelle manière la promotion des RPG est-elle faite?]]","v":0},{"$f":"Tableau5[[#This Row],[Comment les participants ont entendu parler de votre offre de RPG?]]","v":0},{"$f":"Tableau5[[#This Row],[Quelles sont les méthodes utilisées pour s''inscrire aux RPG?]]","v":0},{"$f":"Tableau5[[#This Row],[Y a-t-il des stratégies mises en place pour rejoindre certaines clientèles ciblées telles : père ou coparent, nouveaux arrivants, personnes vivant en contexte de précarité socio-économiques?]]","v":0},{"$f":"Tableau5[[#This Row],[Si oui, quelles sont les stratégies utilisées pour rejoindre certaines clientèles ciblées telles : père ou coparent, nouveaux arrivants, personnes vivant en contexte de précarité socio-économiques?]]","v":0},{"$f":"Tableau6[[#This Row],[Combien de personnes enceintes participent aux RPG par année?]]","v":0},{"$f":"Tableau6[[#This Row],[Combien de partenaires ou personnes accompagnantes participent aux RPG par année?]]","v":0},{"$f":"Tableau6[[#This Row],[Combien de participants issus de l''immigration récente (moins de 5 ans) participent aux RPG par année?]]","v":0},{"$f":"Tableau6[[#This Row],[Combien de participants bénéficiant du programme Olo (non SIPPE) participent aux RPG par année?]]","v":0},{"$f":"Tableau6[[#This Row],[Combien de participants bénéficiant des SIPPE participent aux RPG par année?]]","v":0},{"$f":"Tableau6[[#This Row],[Combien de participants francophones participent aux RPG par année?]]","v":0},{"$f":"Tableau6[[#This Row],[Combien de participants anglophones participent aux RPG par année?]]","v":0},{"$f":"Tableau6[[#This Row],[Combien de participants allophones participent aux RPG par année?]]","v":0},{"$f":"Tableau6[[#This Row],[Est-ce qu''il y a un moyen mis en place pour sonder les besoins des participants avant le début des RPG? Ex: un sondage avant le début de la première rencontre.]]","v":0},{"$f":"Tableau6[[#This Row],[Est-ce qu''il y a un moyen mis en place pour sonder la satisfaction des participants après les RPG? Ex: un sondage à la fin des rencontres.]]","v":0},{"$f":"Tableau6[[#This Row],[Sur une échelle de 1 = aucun à 5 = beaucoup, quel est le niveau d''échanges entre les participants dans les RPG en présentiel?]]","v":0},{"$f":"Tableau6[[#This Row],[Sur une échelle de 1 = aucun à 5 = beaucoup, quel est le niveau d''échanges entre les participants dans les RPG en virtuel synchrone?]]","v":0},{"$f":"Tableau7[[#This Row],[Combien de personnes animent des RPG dans l''installation au cours d''une année typique?]]","v":0},{"$f":"Tableau7[[#This Row],[Quelle est la formation de base des personnes animatrices (ex : infirmière, nutritionniste, sage-femme ou autres)?]]","v":0},{"$f":"Tableau7[[#This Row],[Quel est le nombre d''années d''expérience (en moyenne) des personnes animatrices?]]","v":0},{"$f":"Tableau7[[#This Row],[Offrez-vous des formations aux personnes animatrices pour améliorer leurs connaissances et compétences?]]","v":0},{"$f":"Tableau7[[#This Row],[Si oui, lesquelles?]]","v":0},{"$f":"Tableau7[[#This Row],[Quels sont les outils utilisés pour animer les RPG ? (Ex : PPT, guide d’animation, outils d’animation, vidéos, documentation)]]","v":0}]
[{"$f":"Tableau4[[#This Row],[Indiquez les coordonnées de l''installation (CLSC, MdN, OC, CRP ou autre lieu offrant les RPG)]]","v":0},{"$f":"Tableau4[[#This Row],[Indiquez le territoire CI(U)SSS (RTS)]]","v":0},{"$f":"Tableau4[[#This Row],[Indiquez le type d''installation : RSSS ou communautaire]]","v":0},{"$f":"Tableau4[[#This Row],[Indiquez le nom de la personne responsable des RPG dans l''installation]]","v":0},{"$f":"Tableau4[[#This Row],[Indiquez les territoires de RLS sur votre territoire CI(U)SSS auxquels l''offre de RPG s''applique]]","v":0},{"$f":"Tableau4[[#This Row],[Quel est le nombre de sessions de RPG seulement en présentiel par année?]]","v":0},{"$f":"Tableau4[[#This Row],[Quel est le nombre de sessions de RPG seulement en virtuel synchrone par année?]]","v":0},{"$f":"Tableau4[[#This Row],[Quel est le nombre de sessions de RPG en mode hybride : présentiel ET virtuel synchrone par année?]]","v":0},{"$f":"Tableau4[[#This Row],[S''il y a des RPG en mode hybride, quel est le ratio entre le nombre de rencontres en présentiel versus le nombre de rencontres en virtuel synchrone?]]","v":0},{"$f":"Tableau4[[#This Row],[Combien de rencontres dans une session de RPG sont offertes en virtuel asynchrone?]]","v":0},{"$f":"Tableau4[[#This Row],[Si vous donnez des sessions de RPG en présentiel ou en hybride, quel est le nombre de rencontres dans une session?]]","v":0},{"$f":"Tableau4[[#This Row],[Si vous donnez des sessions de RPG en virtuel synchrone, quel est le nombre de rencontres dans une session?]]","v":0},{"$f":"Tableau4[[#This Row],[À quel moment les RPG sont-elles offertes ? (jour, soir)]]","v":0},{"$f":"Tableau4[[#This Row],[À quel moment les RPG sont-elles offertes ? (semaine, fin de semaine)]]","v":0},{"$f":"Tableau4[[#This Row],[À partir de combien de semaines de grossesse les RPG sont-elles offertes?]]","v":0},{"$f":"Tableau4[[#This Row],[Un coût est-il chargé pour participer aux RPG? ]]","v":0},{"$f":"Tableau4[[#This Row],[S''il y a un coût, quel est-il par session?]]","v":0},{"$f":"Tableau4[[#This Row],[Est-ce que des RPG en anglais sont offertes?]]","v":0},{"$f":"Tableau4[[#This Row],[Est-ce que des RPG en d''autres langues que le français et l''anglais sont offertes? ]]","v":0},{"$f":"Tableau4[[#This Row],[Si oui, spécifiez.]]","v":0},{"$f":"Tableau4[[#This Row],[Est-ce que des interprètes ou des outils permettant la traduction sont utilisés?]]","v":0},{"$f":"Tableau4[[#This Row],[ Si oui, spécifiez. ]]","v":0},{"$f":"Tableau4[[#This Row],[Quelles sont les thématiques principales discutées lors d''une session de RPG (offre de base) ? ]]","v":0},{"$f":"Tableau4[[#This Row],[Y a-t-il des RPG complémentaires offertes à la carte, sur des thèmes spécifiques ou pour des clientèles particulières? Si oui, précisez.]]","v":0},{"$f":"Tableau4[[#This Row],[Dans le cadre des sessions de RPG, y a-t-il une ou plusieurs rencontres offerte(s) en postnatal?]]","v":0},{"$f":"Tableau5[[#This Row],[Combien de personnes sont inscrites à des sessions de RPG en présentiel dans cette installation par année?]]","v":0},{"$f":"Tableau5[[#This Row],[Combien de personnes sont inscrites à des sessions de RPG en virtuel synchrone dans cette installation par année?]]","v":0},{"$f":"Tableau5[[#This Row],[Combien de personnes sont inscrites à des sessions de RPG en mode hybride (présentiel ET virtuel synchrone) dans cette installation par année?]]","v":0},{"$f":"Tableau5[[#This Row],[Quel est le nombre limite de participants par session de RPG en présentiel?]]","v":0},{"$f":"Tableau5[[#This Row],[Quel est le nombre limite de participants par session de RPG en virtuel synchrone ?]]","v":0},{"$f":"Tableau5[[#This Row],[Quel est le nombre limite de participants par session de RPG en mode hybride (présentiel ET virtuel synchrone) ?]]","v":0},{"$f":"Tableau5[[#This Row],[Combien de demandes d''inscriptions ont été refusées par année pour les RPG en présentiel dans cette installation?]]","v":0},{"$f":"Tableau5[[#This Row],[Combien de demandes d''inscriptions ont été refusées par année pour les RPG en virtuel synchrone dans cette installation?]]","v":0},{"$f":"Tableau5[[#This Row],[Combien de demandes d''inscriptions ont été refusées  par année pour les RPG en mode hybride (présentiel ET virtuel synchrone) dans cette installation?]]","v":0},{"$f":"Tableau5[[#This Row],[Quelles sont les raisons pour refuser des inscriptions?]]","v":0},{"$f":"Tableau5[[#This Row],[Est-ce qu''il y a des critères d''admissibilité pour les participants aux RPG (ex : primipares) Si oui, lesquels?]]","v":0},{"$f":"Tableau5[[#This Row],[Avez-vous une liste d''attente pour participer aux RPG ? Si oui, combien de personnes sont actuellement sur la liste d''attente?]]","v":0},{"$f":"Tableau5[[#This Row],[De quelle manière la promotion des RPG est-elle faite?]]","v":0},{"$f":"Tableau5[[#This Row],[Comment les participants ont entendu parler de votre offre de RPG?]]","v":0},{"$f":"Tableau5[[#This Row],[Quelles sont les méthodes utilisées pour s''inscrire aux RPG?]]","v":0},{"$f":"Tableau5[[#This Row],[Y a-t-il des stratégies mises en place pour rejoindre certaines clientèles ciblées telles : père ou coparent, nouveaux arrivants, personnes vivant en contexte de précarité socio-économiques?]]","v":0},{"$f":"Tableau5[[#This Row],[Si oui, quelles sont les stratégies utilisées pour rejoindre certaines clientèles ciblées telles : père ou coparent, nouveaux arrivants, personnes vivant en contexte de précarité socio-économiques?]]","v":0},{"$f":"Tableau6[[#This Row],[Combien de personnes enceintes participent aux RPG par année?]]","v":0},{"$f":"Tableau6[[#This Row],[Combien de partenaires ou personnes accompagnantes participent aux RPG par année?]]","v":0},{"$f":"Tableau6[[#This Row],[Combien de participants issus de l''immigration récente (moins de 5 ans) participent aux RPG par année?]]","v":0},{"$f":"Tableau6[[#This Row],[Combien de participants bénéficiant du programme Olo (non SIPPE) participent aux RPG par année?]]","v":0},{"$f":"Tableau6[[#This Row],[Combien de participants bénéficiant des SIPPE participent aux RPG par année?]]","v":0},{"$f":"Tableau6[[#This Row],[Combien de participants francophones participent aux RPG par année?]]","v":0},{"$f":"Tableau6[[#This Row],[Combien de participants anglophones participent aux RPG par année?]]","v":0},{"$f":"Tableau6[[#This Row],[Combien de participants allophones participent aux RPG par année?]]","v":0},{"$f":"Tableau6[[#This Row],[Est-ce qu''il y a un moyen mis en place pour sonder les besoins des participants avant le début des RPG? Ex: un sondage avant le début de la première rencontre.]]","v":0},{"$f":"Tableau6[[#This Row],[Est-ce qu''il y a un moyen mis en place pour sonder la satisfaction des participants après les RPG? Ex: un sondage à la fin des rencontres.]]","v":0},{"$f":"Tableau6[[#This Row],[Sur une échelle de 1 = aucun à 5 = beaucoup, quel est le niveau d''échanges entre les participants dans les RPG en présentiel?]]","v":0},{"$f":"Tableau6[[#This Row],[Sur une échelle de 1 = aucun à 5 = beaucoup, quel est le niveau d''échanges entre les participants dans les RPG en virtuel synchrone?]]","v":0},{"$f":"Tableau7[[#This Row],[Combien de personnes animent des RPG dans l''installation au cours d''une année typique?]]","v":0},{"$f":"Tableau7[[#This Row],[Quelle est la formation de base des personnes animatrices (ex : infirmière, nutritionniste, sage-femme ou autres)?]]","v":0},{"$f":"Tableau7[[#This Row],[Quel est le nombre d''années d''expérience (en moyenne) des personnes animatrices?]]","v":0},{"$f":"Tableau7[[#This Row],[Offrez-vous des formations aux personnes animatrices pour améliorer leurs connaissances et compétences?]]","v":0},{"$f":"Tableau7[[#This Row],[Si oui, lesquelles?]]","v":0},{"$f":"Tableau7[[#This Row],[Quels sont les outils utilisés pour animer les RPG ? (Ex : PPT, guide d’animation, outils d’animation, vidéos, documentation)]]","v":0}]
[{"$f":"Tableau4[[#This Row],[Indiquez les coordonnées de l''installation (CLSC, MdN, OC, CRP ou autre lieu offrant les RPG)]]","v":0},{"$f":"Tableau4[[#This Row],[Indiquez le territoire CI(U)SSS (RTS)]]","v":0},{"$f":"Tableau4[[#This Row],[Indiquez le type d''installation : RSSS ou communautaire]]","v":0},{"$f":"Tableau4[[#This Row],[Indiquez le nom de la personne responsable des RPG dans l''installation]]","v":0},{"$f":"Tableau4[[#This Row],[Indiquez les territoires de RLS sur votre territoire CI(U)SSS auxquels l''offre de RPG s''applique]]","v":0},{"$f":"Tableau4[[#This Row],[Quel est le nombre de sessions de RPG seulement en présentiel par année?]]","v":0},{"$f":"Tableau4[[#This Row],[Quel est le nombre de sessions de RPG seulement en virtuel synchrone par année?]]","v":0},{"$f":"Tableau4[[#This Row],[Quel est le nombre de sessions de RPG en mode hybride : présentiel ET virtuel synchrone par année?]]","v":0},{"$f":"Tableau4[[#This Row],[S''il y a des RPG en mode hybride, quel est le ratio entre le nombre de rencontres en présentiel versus le nombre de rencontres en virtuel synchrone?]]","v":0},{"$f":"Tableau4[[#This Row],[Combien de rencontres dans une session de RPG sont offertes en virtuel asynchrone?]]","v":0},{"$f":"Tableau4[[#This Row],[Si vous donnez des sessions de RPG en présentiel ou en hybride, quel est le nombre de rencontres dans une session?]]","v":0},{"$f":"Tableau4[[#This Row],[Si vous donnez des sessions de RPG en virtuel synchrone, quel est le nombre de rencontres dans une session?]]","v":0},{"$f":"Tableau4[[#This Row],[À quel moment les RPG sont-elles offertes ? (jour, soir)]]","v":0},{"$f":"Tableau4[[#This Row],[À quel moment les RPG sont-elles offertes ? (semaine, fin de semaine)]]","v":0},{"$f":"Tableau4[[#This Row],[À partir de combien de semaines de grossesse les RPG sont-elles offertes?]]","v":0},{"$f":"Tableau4[[#This Row],[Un coût est-il chargé pour participer aux RPG? ]]","v":0},{"$f":"Tableau4[[#This Row],[S''il y a un coût, quel est-il par session?]]","v":0},{"$f":"Tableau4[[#This Row],[Est-ce que des RPG en anglais sont offertes?]]","v":0},{"$f":"Tableau4[[#This Row],[Est-ce que des RPG en d''autres langues que le français et l''anglais sont offertes? ]]","v":0},{"$f":"Tableau4[[#This Row],[Si oui, spécifiez.]]","v":0},{"$f":"Tableau4[[#This Row],[Est-ce que des interprètes ou des outils permettant la traduction sont utilisés?]]","v":0},{"$f":"Tableau4[[#This Row],[ Si oui, spécifiez. ]]","v":0},{"$f":"Tableau4[[#This Row],[Quelles sont les thématiques principales discutées lors d''une session de RPG (offre de base) ? ]]","v":0},{"$f":"Tableau4[[#This Row],[Y a-t-il des RPG complémentaires offertes à la carte, sur des thèmes spécifiques ou pour des clientèles particulières? Si oui, précisez.]]","v":0},{"$f":"Tableau4[[#This Row],[Dans le cadre des sessions de RPG, y a-t-il une ou plusieurs rencontres offerte(s) en postnatal?]]","v":0},{"$f":"Tableau5[[#This Row],[Combien de personnes sont inscrites à des sessions de RPG en présentiel dans cette installation par année?]]","v":0},{"$f":"Tableau5[[#This Row],[Combien de personnes sont inscrites à des sessions de RPG en virtuel synchrone dans cette installation par année?]]","v":0},{"$f":"Tableau5[[#This Row],[Combien de personnes sont inscrites à des sessions de RPG en mode hybride (présentiel ET virtuel synchrone) dans cette installation par année?]]","v":0},{"$f":"Tableau5[[#This Row],[Quel est le nombre limite de participants par session de RPG en présentiel?]]","v":0},{"$f":"Tableau5[[#This Row],[Quel est le nombre limite de participants par session de RPG en virtuel synchrone ?]]","v":0},{"$f":"Tableau5[[#This Row],[Quel est le nombre limite de participants par session de RPG en mode hybride (présentiel ET virtuel synchrone) ?]]","v":0},{"$f":"Tableau5[[#This Row],[Combien de demandes d''inscriptions ont été refusées par année pour les RPG en présentiel dans cette installation?]]","v":0},{"$f":"Tableau5[[#This Row],[Combien de demandes d''inscriptions ont été refusées par année pour les RPG en virtuel synchrone dans cette installation?]]","v":0},{"$f":"Tableau5[[#This Row],[Combien de demandes d''inscriptions ont été refusées  par année pour les RPG en mode hybride (présentiel ET virtuel synchrone) dans cette installation?]]","v":0},{"$f":"Tableau5[[#This Row],[Quelles sont les raisons pour refuser des inscriptions?]]","v":0},{"$f":"Tableau5[[#This Row],[Est-ce qu''il y a des critères d''admissibilité pour les participants aux RPG (ex : primipares) Si oui, lesquels?]]","v":0},{"$f":"Tableau5[[#This Row],[Avez-vous une liste d''attente pour participer aux RPG ? Si oui, combien de personnes sont actuellement sur la liste d''attente?]]","v":0},{"$f":"Tableau5[[#This Row],[De quelle manière la promotion des RPG est-elle faite?]]","v":0},{"$f":"Tableau5[[#This Row],[Comment les participants ont entendu parler de votre offre de RPG?]]","v":0},{"$f":"Tableau5[[#This Row],[Quelles sont les méthodes utilisées pour s''inscrire aux RPG?]]","v":0},{"$f":"Tableau5[[#This Row],[Y a-t-il des stratégies mises en place pour rejoindre certaines clientèles ciblées telles : père ou coparent, nouveaux arrivants, personnes vivant en contexte de précarité socio-économiques?]]","v":0},{"$f":"Tableau5[[#This Row],[Si oui, quelles sont les stratégies utilisées pour rejoindre certaines clientèles ciblées telles : père ou coparent, nouveaux arrivants, personnes vivant en contexte de précarité socio-économiques?]]","v":0},{"$f":"Tableau6[[#This Row],[Combien de personnes enceintes participent aux RPG par année?]]","v":0},{"$f":"Tableau6[[#This Row],[Combien de partenaires ou personnes accompagnantes participent aux RPG par année?]]","v":0},{"$f":"Tableau6[[#This Row],[Combien de participants issus de l''immigration récente (moins de 5 ans) participent aux RPG par année?]]","v":0},{"$f":"Tableau6[[#This Row],[Combien de participants bénéficiant du programme Olo (non SIPPE) participent aux RPG par année?]]","v":0},{"$f":"Tableau6[[#This Row],[Combien de participants bénéficiant des SIPPE participent aux RPG par année?]]","v":0},{"$f":"Tableau6[[#This Row],[Combien de participants francophones participent aux RPG par année?]]","v":0},{"$f":"Tableau6[[#This Row],[Combien de participants anglophones participent aux RPG par année?]]","v":0},{"$f":"Tableau6[[#This Row],[Combien de participants allophones participent aux RPG par année?]]","v":0},{"$f":"Tableau6[[#This Row],[Est-ce qu''il y a un moyen mis en place pour sonder les besoins des participants avant le début des RPG? Ex: un sondage avant le début de la première rencontre.]]","v":0},{"$f":"Tableau6[[#This Row],[Est-ce qu''il y a un moyen mis en place pour sonder la satisfaction des participants après les RPG? Ex: un sondage à la fin des rencontres.]]","v":0},{"$f":"Tableau6[[#This Row],[Sur une échelle de 1 = aucun à 5 = beaucoup, quel est le niveau d''échanges entre les participants dans les RPG en présentiel?]]","v":0},{"$f":"Tableau6[[#This Row],[Sur une échelle de 1 = aucun à 5 = beaucoup, quel est le niveau d''échanges entre les participants dans les RPG en virtuel synchrone?]]","v":0},{"$f":"Tableau7[[#This Row],[Combien de personnes animent des RPG dans l''installation au cours d''une année typique?]]","v":0},{"$f":"Tableau7[[#This Row],[Quelle est la formation de base des personnes animatrices (ex : infirmière, nutritionniste, sage-femme ou autres)?]]","v":0},{"$f":"Tableau7[[#This Row],[Quel est le nombre d''années d''expérience (en moyenne) des personnes animatrices?]]","v":0},{"$f":"Tableau7[[#This Row],[Offrez-vous des formations aux personnes animatrices pour améliorer leurs connaissances et compétences?]]","v":0},{"$f":"Tableau7[[#This Row],[Si oui, lesquelles?]]","v":0},{"$f":"Tableau7[[#This Row],[Quels sont les outils utilisés pour animer les RPG ? (Ex : PPT, guide d’animation, outils d’animation, vidéos, documentation)]]","v":0}]
[{"$f":"Tableau4[[#This Row],[Indiquez les coordonnées de l''installation (CLSC, MdN, OC, CRP ou autre lieu offrant les RPG)]]","v":0},{"$f":"Tableau4[[#This Row],[Indiquez le territoire CI(U)SSS (RTS)]]","v":0},{"$f":"Tableau4[[#This Row],[Indiquez le type d''installation : RSSS ou communautaire]]","v":0},{"$f":"Tableau4[[#This Row],[Indiquez le nom de la personne responsable des RPG dans l''installation]]","v":0},{"$f":"Tableau4[[#This Row],[Indiquez les territoires de RLS sur votre territoire CI(U)SSS auxquels l''offre de RPG s''applique]]","v":0},{"$f":"Tableau4[[#This Row],[Quel est le nombre de sessions de RPG seulement en présentiel par année?]]","v":0},{"$f":"Tableau4[[#This Row],[Quel est le nombre de sessions de RPG seulement en virtuel synchrone par année?]]","v":0},{"$f":"Tableau4[[#This Row],[Quel est le nombre de sessions de RPG en mode hybride : présentiel ET virtuel synchrone par année?]]","v":0},{"$f":"Tableau4[[#This Row],[S''il y a des RPG en mode hybride, quel est le ratio entre le nombre de rencontres en présentiel versus le nombre de rencontres en virtuel synchrone?]]","v":0},{"$f":"Tableau4[[#This Row],[Combien de rencontres dans une session de RPG sont offertes en virtuel asynchrone?]]","v":0},{"$f":"Tableau4[[#This Row],[Si vous donnez des sessions de RPG en présentiel ou en hybride, quel est le nombre de rencontres dans une session?]]","v":0},{"$f":"Tableau4[[#This Row],[Si vous donnez des sessions de RPG en virtuel synchrone, quel est le nombre de rencontres dans une session?]]","v":0},{"$f":"Tableau4[[#This Row],[À quel moment les RPG sont-elles offertes ? (jour, soir)]]","v":0},{"$f":"Tableau4[[#This Row],[À quel moment les RPG sont-elles offertes ? (semaine, fin de semaine)]]","v":0},{"$f":"Tableau4[[#This Row],[À partir de combien de semaines de grossesse les RPG sont-elles offertes?]]","v":0},{"$f":"Tableau4[[#This Row],[Un coût est-il chargé pour participer aux RPG? ]]","v":0},{"$f":"Tableau4[[#This Row],[S''il y a un coût, quel est-il par session?]]","v":0},{"$f":"Tableau4[[#This Row],[Est-ce que des RPG en anglais sont offertes?]]","v":0},{"$f":"Tableau4[[#This Row],[Est-ce que des RPG en d''autres langues que le français et l''anglais sont offertes? ]]","v":0},{"$f":"Tableau4[[#This Row],[Si oui, spécifiez.]]","v":0},{"$f":"Tableau4[[#This Row],[Est-ce que des interprètes ou des outils permettant la traduction sont utilisés?]]","v":0},{"$f":"Tableau4[[#This Row],[ Si oui, spécifiez. ]]","v":0},{"$f":"Tableau4[[#This Row],[Quelles sont les thématiques principales discutées lors d''une session de RPG (offre de base) ? ]]","v":0},{"$f":"Tableau4[[#This Row],[Y a-t-il des RPG complémentaires offertes à la carte, sur des thèmes spécifiques ou pour des clientèles particulières? Si oui, précisez.]]","v":0},{"$f":"Tableau4[[#This Row],[Dans le cadre des sessions de RPG, y a-t-il une ou plusieurs rencontres offerte(s) en postnatal?]]","v":0},{"$f":"Tableau5[[#This Row],[Combien de personnes sont inscrites à des sessions de RPG en présentiel dans cette installation par année?]]","v":0},{"$f":"Tableau5[[#This Row],[Combien de personnes sont inscrites à des sessions de RPG en virtuel synchrone dans cette installation par année?]]","v":0},{"$f":"Tableau5[[#This Row],[Combien de personnes sont inscrites à des sessions de RPG en mode hybride (présentiel ET virtuel synchrone) dans cette installation par année?]]","v":0},{"$f":"Tableau5[[#This Row],[Quel est le nombre limite de participants par session de RPG en présentiel?]]","v":0},{"$f":"Tableau5[[#This Row],[Quel est le nombre limite de participants par session de RPG en virtuel synchrone ?]]","v":0},{"$f":"Tableau5[[#This Row],[Quel est le nombre limite de participants par session de RPG en mode hybride (présentiel ET virtuel synchrone) ?]]","v":0},{"$f":"Tableau5[[#This Row],[Combien de demandes d''inscriptions ont été refusées par année pour les RPG en présentiel dans cette installation?]]","v":0},{"$f":"Tableau5[[#This Row],[Combien de demandes d''inscriptions ont été refusées par année pour les RPG en virtuel synchrone dans cette installation?]]","v":0},{"$f":"Tableau5[[#This Row],[Combien de demandes d''inscriptions ont été refusées  par année pour les RPG en mode hybride (présentiel ET virtuel synchrone) dans cette installation?]]","v":0},{"$f":"Tableau5[[#This Row],[Quelles sont les raisons pour refuser des inscriptions?]]","v":0},{"$f":"Tableau5[[#This Row],[Est-ce qu''il y a des critères d''admissibilité pour les participants aux RPG (ex : primipares) Si oui, lesquels?]]","v":0},{"$f":"Tableau5[[#This Row],[Avez-vous une liste d''attente pour participer aux RPG ? Si oui, combien de personnes sont actuellement sur la liste d''attente?]]","v":0},{"$f":"Tableau5[[#This Row],[De quelle manière la promotion des RPG est-elle faite?]]","v":0},{"$f":"Tableau5[[#This Row],[Comment les participants ont entendu parler de votre offre de RPG?]]","v":0},{"$f":"Tableau5[[#This Row],[Quelles sont les méthodes utilisées pour s''inscrire aux RPG?]]","v":0},{"$f":"Tableau5[[#This Row],[Y a-t-il des stratégies mises en place pour rejoindre certaines clientèles ciblées telles : père ou coparent, nouveaux arrivants, personnes vivant en contexte de précarité socio-économiques?]]","v":0},{"$f":"Tableau5[[#This Row],[Si oui, quelles sont les stratégies utilisées pour rejoindre certaines clientèles ciblées telles : père ou coparent, nouveaux arrivants, personnes vivant en contexte de précarité socio-économiques?]]","v":0},{"$f":"Tableau6[[#This Row],[Combien de personnes enceintes participent aux RPG par année?]]","v":0},{"$f":"Tableau6[[#This Row],[Combien de partenaires ou personnes accompagnantes participent aux RPG par année?]]","v":0},{"$f":"Tableau6[[#This Row],[Combien de participants issus de l''immigration récente (moins de 5 ans) participent aux RPG par année?]]","v":0},{"$f":"Tableau6[[#This Row],[Combien de participants bénéficiant du programme Olo (non SIPPE) participent aux RPG par année?]]","v":0},{"$f":"Tableau6[[#This Row],[Combien de participants bénéficiant des SIPPE participent aux RPG par année?]]","v":0},{"$f":"Tableau6[[#This Row],[Combien de participants francophones participent aux RPG par année?]]","v":0},{"$f":"Tableau6[[#This Row],[Combien de participants anglophones participent aux RPG par année?]]","v":0},{"$f":"Tableau6[[#This Row],[Combien de participants allophones participent aux RPG par année?]]","v":0},{"$f":"Tableau6[[#This Row],[Est-ce qu''il y a un moyen mis en place pour sonder les besoins des participants avant le début des RPG? Ex: un sondage avant le début de la première rencontre.]]","v":0},{"$f":"Tableau6[[#This Row],[Est-ce qu''il y a un moyen mis en place pour sonder la satisfaction des participants après les RPG? Ex: un sondage à la fin des rencontres.]]","v":0},{"$f":"Tableau6[[#This Row],[Sur une échelle de 1 = aucun à 5 = beaucoup, quel est le niveau d''échanges entre les participants dans les RPG en présentiel?]]","v":0},{"$f":"Tableau6[[#This Row],[Sur une échelle de 1 = aucun à 5 = beaucoup, quel est le niveau d''échanges entre les participants dans les RPG en virtuel synchrone?]]","v":0},{"$f":"Tableau7[[#This Row],[Combien de personnes animent des RPG dans l''installation au cours d''une année typique?]]","v":0},{"$f":"Tableau7[[#This Row],[Quelle est la formation de base des personnes animatrices (ex : infirmière, nutritionniste, sage-femme ou autres)?]]","v":0},{"$f":"Tableau7[[#This Row],[Quel est le nombre d''années d''expérience (en moyenne) des personnes animatrices?]]","v":0},{"$f":"Tableau7[[#This Row],[Offrez-vous des formations aux personnes animatrices pour améliorer leurs connaissances et compétences?]]","v":0},{"$f":"Tableau7[[#This Row],[Si oui, lesquelles?]]","v":0},{"$f":"Tableau7[[#This Row],[Quels sont les outils utilisés pour animer les RPG ? (Ex : PPT, guide d’animation, outils d’animation, vidéos, documentation)]]","v":0}]
[{"$f":"Tableau4[[#This Row],[Indiquez les coordonnées de l''installation (CLSC, MdN, OC, CRP ou autre lieu offrant les RPG)]]","v":0},{"$f":"Tableau4[[#This Row],[Indiquez le territoire CI(U)SSS (RTS)]]","v":0},{"$f":"Tableau4[[#This Row],[Indiquez le type d''installation : RSSS ou communautaire]]","v":0},{"$f":"Tableau4[[#This Row],[Indiquez le nom de la personne responsable des RPG dans l''installation]]","v":0},{"$f":"Tableau4[[#This Row],[Indiquez les territoires de RLS sur votre territoire CI(U)SSS auxquels l''offre de RPG s''applique]]","v":0},{"$f":"Tableau4[[#This Row],[Quel est le nombre de sessions de RPG seulement en présentiel par année?]]","v":0},{"$f":"Tableau4[[#This Row],[Quel est le nombre de sessions de RPG seulement en virtuel synchrone par année?]]","v":0},{"$f":"Tableau4[[#This Row],[Quel est le nombre de sessions de RPG en mode hybride : présentiel ET virtuel synchrone par année?]]","v":0},{"$f":"Tableau4[[#This Row],[S''il y a des RPG en mode hybride, quel est le ratio entre le nombre de rencontres en présentiel versus le nombre de rencontres en virtuel synchrone?]]","v":0},{"$f":"Tableau4[[#This Row],[Combien de rencontres dans une session de RPG sont offertes en virtuel asynchrone?]]","v":0},{"$f":"Tableau4[[#This Row],[Si vous donnez des sessions de RPG en présentiel ou en hybride, quel est le nombre de rencontres dans une session?]]","v":0},{"$f":"Tableau4[[#This Row],[Si vous donnez des sessions de RPG en virtuel synchrone, quel est le nombre de rencontres dans une session?]]","v":0},{"$f":"Tableau4[[#This Row],[À quel moment les RPG sont-elles offertes ? (jour, soir)]]","v":0},{"$f":"Tableau4[[#This Row],[À quel moment les RPG sont-elles offertes ? (semaine, fin de semaine)]]","v":0},{"$f":"Tableau4[[#This Row],[À partir de combien de semaines de grossesse les RPG sont-elles offertes?]]","v":0},{"$f":"Tableau4[[#This Row],[Un coût est-il chargé pour participer aux RPG? ]]","v":0},{"$f":"Tableau4[[#This Row],[S''il y a un coût, quel est-il par session?]]","v":0},{"$f":"Tableau4[[#This Row],[Est-ce que des RPG en anglais sont offertes?]]","v":0},{"$f":"Tableau4[[#This Row],[Est-ce que des RPG en d''autres langues que le français et l''anglais sont offertes? ]]","v":0},{"$f":"Tableau4[[#This Row],[Si oui, spécifiez.]]","v":0},{"$f":"Tableau4[[#This Row],[Est-ce que des interprètes ou des outils permettant la traduction sont utilisés?]]","v":0},{"$f":"Tableau4[[#This Row],[ Si oui, spécifiez. ]]","v":0},{"$f":"Tableau4[[#This Row],[Quelles sont les thématiques principales discutées lors d''une session de RPG (offre de base) ? ]]","v":0},{"$f":"Tableau4[[#This Row],[Y a-t-il des RPG complémentaires offertes à la carte, sur des thèmes spécifiques ou pour des clientèles particulières? Si oui, précisez.]]","v":0},{"$f":"Tableau4[[#This Row],[Dans le cadre des sessions de RPG, y a-t-il une ou plusieurs rencontres offerte(s) en postnatal?]]","v":0},{"$f":"Tableau5[[#This Row],[Combien de personnes sont inscrites à des sessions de RPG en présentiel dans cette installation par année?]]","v":0},{"$f":"Tableau5[[#This Row],[Combien de personnes sont inscrites à des sessions de RPG en virtuel synchrone dans cette installation par année?]]","v":0},{"$f":"Tableau5[[#This Row],[Combien de personnes sont inscrites à des sessions de RPG en mode hybride (présentiel ET virtuel synchrone) dans cette installation par année?]]","v":0},{"$f":"Tableau5[[#This Row],[Quel est le nombre limite de participants par session de RPG en présentiel?]]","v":0},{"$f":"Tableau5[[#This Row],[Quel est le nombre limite de participants par session de RPG en virtuel synchrone ?]]","v":0},{"$f":"Tableau5[[#This Row],[Quel est le nombre limite de participants par session de RPG en mode hybride (présentiel ET virtuel synchrone) ?]]","v":0},{"$f":"Tableau5[[#This Row],[Combien de demandes d''inscriptions ont été refusées par année pour les RPG en présentiel dans cette installation?]]","v":0},{"$f":"Tableau5[[#This Row],[Combien de demandes d''inscriptions ont été refusées par année pour les RPG en virtuel synchrone dans cette installation?]]","v":0},{"$f":"Tableau5[[#This Row],[Combien de demandes d''inscriptions ont été refusées  par année pour les RPG en mode hybride (présentiel ET virtuel synchrone) dans cette installation?]]","v":0},{"$f":"Tableau5[[#This Row],[Quelles sont les raisons pour refuser des inscriptions?]]","v":0},{"$f":"Tableau5[[#This Row],[Est-ce qu''il y a des critères d''admissibilité pour les participants aux RPG (ex : primipares) Si oui, lesquels?]]","v":0},{"$f":"Tableau5[[#This Row],[Avez-vous une liste d''attente pour participer aux RPG ? Si oui, combien de personnes sont actuellement sur la liste d''attente?]]","v":0},{"$f":"Tableau5[[#This Row],[De quelle manière la promotion des RPG est-elle faite?]]","v":0},{"$f":"Tableau5[[#This Row],[Comment les participants ont entendu parler de votre offre de RPG?]]","v":0},{"$f":"Tableau5[[#This Row],[Quelles sont les méthodes utilisées pour s''inscrire aux RPG?]]","v":0},{"$f":"Tableau5[[#This Row],[Y a-t-il des stratégies mises en place pour rejoindre certaines clientèles ciblées telles : père ou coparent, nouveaux arrivants, personnes vivant en contexte de précarité socio-économiques?]]","v":0},{"$f":"Tableau5[[#This Row],[Si oui, quelles sont les stratégies utilisées pour rejoindre certaines clientèles ciblées telles : père ou coparent, nouveaux arrivants, personnes vivant en contexte de précarité socio-économiques?]]","v":0},{"$f":"Tableau6[[#This Row],[Combien de personnes enceintes participent aux RPG par année?]]","v":0},{"$f":"Tableau6[[#This Row],[Combien de partenaires ou personnes accompagnantes participent aux RPG par année?]]","v":0},{"$f":"Tableau6[[#This Row],[Combien de participants issus de l''immigration récente (moins de 5 ans) participent aux RPG par année?]]","v":0},{"$f":"Tableau6[[#This Row],[Combien de participants bénéficiant du programme Olo (non SIPPE) participent aux RPG par année?]]","v":0},{"$f":"Tableau6[[#This Row],[Combien de participants bénéficiant des SIPPE participent aux RPG par année?]]","v":0},{"$f":"Tableau6[[#This Row],[Combien de participants francophones participent aux RPG par année?]]","v":0},{"$f":"Tableau6[[#This Row],[Combien de participants anglophones participent aux RPG par année?]]","v":0},{"$f":"Tableau6[[#This Row],[Combien de participants allophones participent aux RPG par année?]]","v":0},{"$f":"Tableau6[[#This Row],[Est-ce qu''il y a un moyen mis en place pour sonder les besoins des participants avant le début des RPG? Ex: un sondage avant le début de la première rencontre.]]","v":0},{"$f":"Tableau6[[#This Row],[Est-ce qu''il y a un moyen mis en place pour sonder la satisfaction des participants après les RPG? Ex: un sondage à la fin des rencontres.]]","v":0},{"$f":"Tableau6[[#This Row],[Sur une échelle de 1 = aucun à 5 = beaucoup, quel est le niveau d''échanges entre les participants dans les RPG en présentiel?]]","v":0},{"$f":"Tableau6[[#This Row],[Sur une échelle de 1 = aucun à 5 = beaucoup, quel est le niveau d''échanges entre les participants dans les RPG en virtuel synchrone?]]","v":0},{"$f":"Tableau7[[#This Row],[Combien de personnes animent des RPG dans l''installation au cours d''une année typique?]]","v":0},{"$f":"Tableau7[[#This Row],[Quelle est la formation de base des personnes animatrices (ex : infirmière, nutritionniste, sage-femme ou autres)?]]","v":0},{"$f":"Tableau7[[#This Row],[Quel est le nombre d''années d''expérience (en moyenne) des personnes animatrices?]]","v":0},{"$f":"Tableau7[[#This Row],[Offrez-vous des formations aux personnes animatrices pour améliorer leurs connaissances et compétences?]]","v":0},{"$f":"Tableau7[[#This Row],[Si oui, lesquelles?]]","v":0},{"$f":"Tableau7[[#This Row],[Quels sont les outils utilisés pour animer les RPG ? (Ex : PPT, guide d’animation, outils d’animation, vidéos, documentation)]]","v":0}]
[{"$f":"Tableau4[[#This Row],[Indiquez les coordonnées de l''installation (CLSC, MdN, OC, CRP ou autre lieu offrant les RPG)]]","v":0},{"$f":"Tableau4[[#This Row],[Indiquez le territoire CI(U)SSS (RTS)]]","v":0},{"$f":"Tableau4[[#This Row],[Indiquez le type d''installation : RSSS ou communautaire]]","v":0},{"$f":"Tableau4[[#This Row],[Indiquez le nom de la personne responsable des RPG dans l''installation]]","v":0},{"$f":"Tableau4[[#This Row],[Indiquez les territoires de RLS sur votre territoire CI(U)SSS auxquels l''offre de RPG s''applique]]","v":0},{"$f":"Tableau4[[#This Row],[Quel est le nombre de sessions de RPG seulement en présentiel par année?]]","v":0},{"$f":"Tableau4[[#This Row],[Quel est le nombre de sessions de RPG seulement en virtuel synchrone par année?]]","v":0},{"$f":"Tableau4[[#This Row],[Quel est le nombre de sessions de RPG en mode hybride : présentiel ET virtuel synchrone par année?]]","v":0},{"$f":"Tableau4[[#This Row],[S''il y a des RPG en mode hybride, quel est le ratio entre le nombre de rencontres en présentiel versus le nombre de rencontres en virtuel synchrone?]]","v":0},{"$f":"Tableau4[[#This Row],[Combien de rencontres dans une session de RPG sont offertes en virtuel asynchrone?]]","v":0},{"$f":"Tableau4[[#This Row],[Si vous donnez des sessions de RPG en présentiel ou en hybride, quel est le nombre de rencontres dans une session?]]","v":0},{"$f":"Tableau4[[#This Row],[Si vous donnez des sessions de RPG en virtuel synchrone, quel est le nombre de rencontres dans une session?]]","v":0},{"$f":"Tableau4[[#This Row],[À quel moment les RPG sont-elles offertes ? (jour, soir)]]","v":0},{"$f":"Tableau4[[#This Row],[À quel moment les RPG sont-elles offertes ? (semaine, fin de semaine)]]","v":0},{"$f":"Tableau4[[#This Row],[À partir de combien de semaines de grossesse les RPG sont-elles offertes?]]","v":0},{"$f":"Tableau4[[#This Row],[Un coût est-il chargé pour participer aux RPG? ]]","v":0},{"$f":"Tableau4[[#This Row],[S''il y a un coût, quel est-il par session?]]","v":0},{"$f":"Tableau4[[#This Row],[Est-ce que des RPG en anglais sont offertes?]]","v":0},{"$f":"Tableau4[[#This Row],[Est-ce que des RPG en d''autres langues que le français et l''anglais sont offertes? ]]","v":0},{"$f":"Tableau4[[#This Row],[Si oui, spécifiez.]]","v":0},{"$f":"Tableau4[[#This Row],[Est-ce que des interprètes ou des outils permettant la traduction sont utilisés?]]","v":0},{"$f":"Tableau4[[#This Row],[ Si oui, spécifiez. ]]","v":0},{"$f":"Tableau4[[#This Row],[Quelles sont les thématiques principales discutées lors d''une session de RPG (offre de base) ? ]]","v":0},{"$f":"Tableau4[[#This Row],[Y a-t-il des RPG complémentaires offertes à la carte, sur des thèmes spécifiques ou pour des clientèles particulières? Si oui, précisez.]]","v":0},{"$f":"Tableau4[[#This Row],[Dans le cadre des sessions de RPG, y a-t-il une ou plusieurs rencontres offerte(s) en postnatal?]]","v":0},{"$f":"Tableau5[[#This Row],[Combien de personnes sont inscrites à des sessions de RPG en présentiel dans cette installation par année?]]","v":0},{"$f":"Tableau5[[#This Row],[Combien de personnes sont inscrites à des sessions de RPG en virtuel synchrone dans cette installation par année?]]","v":0},{"$f":"Tableau5[[#This Row],[Combien de personnes sont inscrites à des sessions de RPG en mode hybride (présentiel ET virtuel synchrone) dans cette installation par année?]]","v":0},{"$f":"Tableau5[[#This Row],[Quel est le nombre limite de participants par session de RPG en présentiel?]]","v":0},{"$f":"Tableau5[[#This Row],[Quel est le nombre limite de participants par session de RPG en virtuel synchrone ?]]","v":0},{"$f":"Tableau5[[#This Row],[Quel est le nombre limite de participants par session de RPG en mode hybride (présentiel ET virtuel synchrone) ?]]","v":0},{"$f":"Tableau5[[#This Row],[Combien de demandes d''inscriptions ont été refusées par année pour les RPG en présentiel dans cette installation?]]","v":0},{"$f":"Tableau5[[#This Row],[Combien de demandes d''inscriptions ont été refusées par année pour les RPG en virtuel synchrone dans cette installation?]]","v":0},{"$f":"Tableau5[[#This Row],[Combien de demandes d''inscriptions ont été refusées  par année pour les RPG en mode hybride (présentiel ET virtuel synchrone) dans cette installation?]]","v":0},{"$f":"Tableau5[[#This Row],[Quelles sont les raisons pour refuser des inscriptions?]]","v":0},{"$f":"Tableau5[[#This Row],[Est-ce qu''il y a des critères d''admissibilité pour les participants aux RPG (ex : primipares) Si oui, lesquels?]]","v":0},{"$f":"Tableau5[[#This Row],[Avez-vous une liste d''attente pour participer aux RPG ? Si oui, combien de personnes sont actuellement sur la liste d''attente?]]","v":0},{"$f":"Tableau5[[#This Row],[De quelle manière la promotion des RPG est-elle faite?]]","v":0},{"$f":"Tableau5[[#This Row],[Comment les participants ont entendu parler de votre offre de RPG?]]","v":0},{"$f":"Tableau5[[#This Row],[Quelles sont les méthodes utilisées pour s''inscrire aux RPG?]]","v":0},{"$f":"Tableau5[[#This Row],[Y a-t-il des stratégies mises en place pour rejoindre certaines clientèles ciblées telles : père ou coparent, nouveaux arrivants, personnes vivant en contexte de précarité socio-économiques?]]","v":0},{"$f":"Tableau5[[#This Row],[Si oui, quelles sont les stratégies utilisées pour rejoindre certaines clientèles ciblées telles : père ou coparent, nouveaux arrivants, personnes vivant en contexte de précarité socio-économiques?]]","v":0},{"$f":"Tableau6[[#This Row],[Combien de personnes enceintes participent aux RPG par année?]]","v":0},{"$f":"Tableau6[[#This Row],[Combien de partenaires ou personnes accompagnantes participent aux RPG par année?]]","v":0},{"$f":"Tableau6[[#This Row],[Combien de participants issus de l''immigration récente (moins de 5 ans) participent aux RPG par année?]]","v":0},{"$f":"Tableau6[[#This Row],[Combien de participants bénéficiant du programme Olo (non SIPPE) participent aux RPG par année?]]","v":0},{"$f":"Tableau6[[#This Row],[Combien de participants bénéficiant des SIPPE participent aux RPG par année?]]","v":0},{"$f":"Tableau6[[#This Row],[Combien de participants francophones participent aux RPG par année?]]","v":0},{"$f":"Tableau6[[#This Row],[Combien de participants anglophones participent aux RPG par année?]]","v":0},{"$f":"Tableau6[[#This Row],[Combien de participants allophones participent aux RPG par année?]]","v":0},{"$f":"Tableau6[[#This Row],[Est-ce qu''il y a un moyen mis en place pour sonder les besoins des participants avant le début des RPG? Ex: un sondage avant le début de la première rencontre.]]","v":0},{"$f":"Tableau6[[#This Row],[Est-ce qu''il y a un moyen mis en place pour sonder la satisfaction des participants après les RPG? Ex: un sondage à la fin des rencontres.]]","v":0},{"$f":"Tableau6[[#This Row],[Sur une échelle de 1 = aucun à 5 = beaucoup, quel est le niveau d''échanges entre les participants dans les RPG en présentiel?]]","v":0},{"$f":"Tableau6[[#This Row],[Sur une échelle de 1 = aucun à 5 = beaucoup, quel est le niveau d''échanges entre les participants dans les RPG en virtuel synchrone?]]","v":0},{"$f":"Tableau7[[#This Row],[Combien de personnes animent des RPG dans l''installation au cours d''une année typique?]]","v":0},{"$f":"Tableau7[[#This Row],[Quelle est la formation de base des personnes animatrices (ex : infirmière, nutritionniste, sage-femme ou autres)?]]","v":0},{"$f":"Tableau7[[#This Row],[Quel est le nombre d''années d''expérience (en moyenne) des personnes animatrices?]]","v":0},{"$f":"Tableau7[[#This Row],[Offrez-vous des formations aux personnes animatrices pour améliorer leurs connaissances et compétences?]]","v":0},{"$f":"Tableau7[[#This Row],[Si oui, lesquelles?]]","v":0},{"$f":"Tableau7[[#This Row],[Quels sont les outils utilisés pour animer les RPG ? (Ex : PPT, guide d’animation, outils d’animation, vidéos, documentation)]]","v":0}]
[{"$f":"Tableau4[[#This Row],[Indiquez les coordonnées de l''installation (CLSC, MdN, OC, CRP ou autre lieu offrant les RPG)]]","v":0},{"$f":"Tableau4[[#This Row],[Indiquez le territoire CI(U)SSS (RTS)]]","v":0},{"$f":"Tableau4[[#This Row],[Indiquez le type d''installation : RSSS ou communautaire]]","v":0},{"$f":"Tableau4[[#This Row],[Indiquez le nom de la personne responsable des RPG dans l''installation]]","v":0},{"$f":"Tableau4[[#This Row],[Indiquez les territoires de RLS sur votre territoire CI(U)SSS auxquels l''offre de RPG s''applique]]","v":0},{"$f":"Tableau4[[#This Row],[Quel est le nombre de sessions de RPG seulement en présentiel par année?]]","v":0},{"$f":"Tableau4[[#This Row],[Quel est le nombre de sessions de RPG seulement en virtuel synchrone par année?]]","v":0},{"$f":"Tableau4[[#This Row],[Quel est le nombre de sessions de RPG en mode hybride : présentiel ET virtuel synchrone par année?]]","v":0},{"$f":"Tableau4[[#This Row],[S''il y a des RPG en mode hybride, quel est le ratio entre le nombre de rencontres en présentiel versus le nombre de rencontres en virtuel synchrone?]]","v":0},{"$f":"Tableau4[[#This Row],[Combien de rencontres dans une session de RPG sont offertes en virtuel asynchrone?]]","v":0},{"$f":"Tableau4[[#This Row],[Si vous donnez des sessions de RPG en présentiel ou en hybride, quel est le nombre de rencontres dans une session?]]","v":0},{"$f":"Tableau4[[#This Row],[Si vous donnez des sessions de RPG en virtuel synchrone, quel est le nombre de rencontres dans une session?]]","v":0},{"$f":"Tableau4[[#This Row],[À quel moment les RPG sont-elles offertes ? (jour, soir)]]","v":0},{"$f":"Tableau4[[#This Row],[À quel moment les RPG sont-elles offertes ? (semaine, fin de semaine)]]","v":0},{"$f":"Tableau4[[#This Row],[À partir de combien de semaines de grossesse les RPG sont-elles offertes?]]","v":0},{"$f":"Tableau4[[#This Row],[Un coût est-il chargé pour participer aux RPG? ]]","v":0},{"$f":"Tableau4[[#This Row],[S''il y a un coût, quel est-il par session?]]","v":0},{"$f":"Tableau4[[#This Row],[Est-ce que des RPG en anglais sont offertes?]]","v":0},{"$f":"Tableau4[[#This Row],[Est-ce que des RPG en d''autres langues que le français et l''anglais sont offertes? ]]","v":0},{"$f":"Tableau4[[#This Row],[Si oui, spécifiez.]]","v":0},{"$f":"Tableau4[[#This Row],[Est-ce que des interprètes ou des outils permettant la traduction sont utilisés?]]","v":0},{"$f":"Tableau4[[#This Row],[ Si oui, spécifiez. ]]","v":0},{"$f":"Tableau4[[#This Row],[Quelles sont les thématiques principales discutées lors d''une session de RPG (offre de base) ? ]]","v":0},{"$f":"Tableau4[[#This Row],[Y a-t-il des RPG complémentaires offertes à la carte, sur des thèmes spécifiques ou pour des clientèles particulières? Si oui, précisez.]]","v":0},{"$f":"Tableau4[[#This Row],[Dans le cadre des sessions de RPG, y a-t-il une ou plusieurs rencontres offerte(s) en postnatal?]]","v":0},{"$f":"Tableau5[[#This Row],[Combien de personnes sont inscrites à des sessions de RPG en présentiel dans cette installation par année?]]","v":0},{"$f":"Tableau5[[#This Row],[Combien de personnes sont inscrites à des sessions de RPG en virtuel synchrone dans cette installation par année?]]","v":0},{"$f":"Tableau5[[#This Row],[Combien de personnes sont inscrites à des sessions de RPG en mode hybride (présentiel ET virtuel synchrone) dans cette installation par année?]]","v":0},{"$f":"Tableau5[[#This Row],[Quel est le nombre limite de participants par session de RPG en présentiel?]]","v":0},{"$f":"Tableau5[[#This Row],[Quel est le nombre limite de participants par session de RPG en virtuel synchrone ?]]","v":0},{"$f":"Tableau5[[#This Row],[Quel est le nombre limite de participants par session de RPG en mode hybride (présentiel ET virtuel synchrone) ?]]","v":0},{"$f":"Tableau5[[#This Row],[Combien de demandes d''inscriptions ont été refusées par année pour les RPG en présentiel dans cette installation?]]","v":0},{"$f":"Tableau5[[#This Row],[Combien de demandes d''inscriptions ont été refusées par année pour les RPG en virtuel synchrone dans cette installation?]]","v":0},{"$f":"Tableau5[[#This Row],[Combien de demandes d''inscriptions ont été refusées  par année pour les RPG en mode hybride (présentiel ET virtuel synchrone) dans cette installation?]]","v":0},{"$f":"Tableau5[[#This Row],[Quelles sont les raisons pour refuser des inscriptions?]]","v":0},{"$f":"Tableau5[[#This Row],[Est-ce qu''il y a des critères d''admissibilité pour les participants aux RPG (ex : primipares) Si oui, lesquels?]]","v":0},{"$f":"Tableau5[[#This Row],[Avez-vous une liste d''attente pour participer aux RPG ? Si oui, combien de personnes sont actuellement sur la liste d''attente?]]","v":0},{"$f":"Tableau5[[#This Row],[De quelle manière la promotion des RPG est-elle faite?]]","v":0},{"$f":"Tableau5[[#This Row],[Comment les participants ont entendu parler de votre offre de RPG?]]","v":0},{"$f":"Tableau5[[#This Row],[Quelles sont les méthodes utilisées pour s''inscrire aux RPG?]]","v":0},{"$f":"Tableau5[[#This Row],[Y a-t-il des stratégies mises en place pour rejoindre certaines clientèles ciblées telles : père ou coparent, nouveaux arrivants, personnes vivant en contexte de précarité socio-économiques?]]","v":0},{"$f":"Tableau5[[#This Row],[Si oui, quelles sont les stratégies utilisées pour rejoindre certaines clientèles ciblées telles : père ou coparent, nouveaux arrivants, personnes vivant en contexte de précarité socio-économiques?]]","v":0},{"$f":"Tableau6[[#This Row],[Combien de personnes enceintes participent aux RPG par année?]]","v":0},{"$f":"Tableau6[[#This Row],[Combien de partenaires ou personnes accompagnantes participent aux RPG par année?]]","v":0},{"$f":"Tableau6[[#This Row],[Combien de participants issus de l''immigration récente (moins de 5 ans) participent aux RPG par année?]]","v":0},{"$f":"Tableau6[[#This Row],[Combien de participants bénéficiant du programme Olo (non SIPPE) participent aux RPG par année?]]","v":0},{"$f":"Tableau6[[#This Row],[Combien de participants bénéficiant des SIPPE participent aux RPG par année?]]","v":0},{"$f":"Tableau6[[#This Row],[Combien de participants francophones participent aux RPG par année?]]","v":0},{"$f":"Tableau6[[#This Row],[Combien de participants anglophones participent aux RPG par année?]]","v":0},{"$f":"Tableau6[[#This Row],[Combien de participants allophones participent aux RPG par année?]]","v":0},{"$f":"Tableau6[[#This Row],[Est-ce qu''il y a un moyen mis en place pour sonder les besoins des participants avant le début des RPG? Ex: un sondage avant le début de la première rencontre.]]","v":0},{"$f":"Tableau6[[#This Row],[Est-ce qu''il y a un moyen mis en place pour sonder la satisfaction des participants après les RPG? Ex: un sondage à la fin des rencontres.]]","v":0},{"$f":"Tableau6[[#This Row],[Sur une échelle de 1 = aucun à 5 = beaucoup, quel est le niveau d''échanges entre les participants dans les RPG en présentiel?]]","v":0},{"$f":"Tableau6[[#This Row],[Sur une échelle de 1 = aucun à 5 = beaucoup, quel est le niveau d''échanges entre les participants dans les RPG en virtuel synchrone?]]","v":0},{"$f":"Tableau7[[#This Row],[Combien de personnes animent des RPG dans l''installation au cours d''une année typique?]]","v":0},{"$f":"Tableau7[[#This Row],[Quelle est la formation de base des personnes animatrices (ex : infirmière, nutritionniste, sage-femme ou autres)?]]","v":0},{"$f":"Tableau7[[#This Row],[Quel est le nombre d''années d''expérience (en moyenne) des personnes animatrices?]]","v":0},{"$f":"Tableau7[[#This Row],[Offrez-vous des formations aux personnes animatrices pour améliorer leurs connaissances et compétences?]]","v":0},{"$f":"Tableau7[[#This Row],[Si oui, lesquelles?]]","v":0},{"$f":"Tableau7[[#This Row],[Quels sont les outils utilisés pour animer les RPG ? (Ex : PPT, guide d’animation, outils d’animation, vidéos, documentation)]]","v":0}]
[{"$f":"Tableau4[[#This Row],[Indiquez les coordonnées de l''installation (CLSC, MdN, OC, CRP ou autre lieu offrant les RPG)]]","v":0},{"$f":"Tableau4[[#This Row],[Indiquez le territoire CI(U)SSS (RTS)]]","v":0},{"$f":"Tableau4[[#This Row],[Indiquez le type d''installation : RSSS ou communautaire]]","v":0},{"$f":"Tableau4[[#This Row],[Indiquez le nom de la personne responsable des RPG dans l''installation]]","v":0},{"$f":"Tableau4[[#This Row],[Indiquez les territoires de RLS sur votre territoire CI(U)SSS auxquels l''offre de RPG s''applique]]","v":0},{"$f":"Tableau4[[#This Row],[Quel est le nombre de sessions de RPG seulement en présentiel par année?]]","v":0},{"$f":"Tableau4[[#This Row],[Quel est le nombre de sessions de RPG seulement en virtuel synchrone par année?]]","v":0},{"$f":"Tableau4[[#This Row],[Quel est le nombre de sessions de RPG en mode hybride : présentiel ET virtuel synchrone par année?]]","v":0},{"$f":"Tableau4[[#This Row],[S''il y a des RPG en mode hybride, quel est le ratio entre le nombre de rencontres en présentiel versus le nombre de rencontres en virtuel synchrone?]]","v":0},{"$f":"Tableau4[[#This Row],[Combien de rencontres dans une session de RPG sont offertes en virtuel asynchrone?]]","v":0},{"$f":"Tableau4[[#This Row],[Si vous donnez des sessions de RPG en présentiel ou en hybride, quel est le nombre de rencontres dans une session?]]","v":0},{"$f":"Tableau4[[#This Row],[Si vous donnez des sessions de RPG en virtuel synchrone, quel est le nombre de rencontres dans une session?]]","v":0},{"$f":"Tableau4[[#This Row],[À quel moment les RPG sont-elles offertes ? (jour, soir)]]","v":0},{"$f":"Tableau4[[#This Row],[À quel moment les RPG sont-elles offertes ? (semaine, fin de semaine)]]","v":0},{"$f":"Tableau4[[#This Row],[À partir de combien de semaines de grossesse les RPG sont-elles offertes?]]","v":0},{"$f":"Tableau4[[#This Row],[Un coût est-il chargé pour participer aux RPG? ]]","v":0},{"$f":"Tableau4[[#This Row],[S''il y a un coût, quel est-il par session?]]","v":0},{"$f":"Tableau4[[#This Row],[Est-ce que des RPG en anglais sont offertes?]]","v":0},{"$f":"Tableau4[[#This Row],[Est-ce que des RPG en d''autres langues que le français et l''anglais sont offertes? ]]","v":0},{"$f":"Tableau4[[#This Row],[Si oui, spécifiez.]]","v":0},{"$f":"Tableau4[[#This Row],[Est-ce que des interprètes ou des outils permettant la traduction sont utilisés?]]","v":0},{"$f":"Tableau4[[#This Row],[ Si oui, spécifiez. ]]","v":0},{"$f":"Tableau4[[#This Row],[Quelles sont les thématiques principales discutées lors d''une session de RPG (offre de base) ? ]]","v":0},{"$f":"Tableau4[[#This Row],[Y a-t-il des RPG complémentaires offertes à la carte, sur des thèmes spécifiques ou pour des clientèles particulières? Si oui, précisez.]]","v":0},{"$f":"Tableau4[[#This Row],[Dans le cadre des sessions de RPG, y a-t-il une ou plusieurs rencontres offerte(s) en postnatal?]]","v":0},{"$f":"Tableau5[[#This Row],[Combien de personnes sont inscrites à des sessions de RPG en présentiel dans cette installation par année?]]","v":0},{"$f":"Tableau5[[#This Row],[Combien de personnes sont inscrites à des sessions de RPG en virtuel synchrone dans cette installation par année?]]","v":0},{"$f":"Tableau5[[#This Row],[Combien de personnes sont inscrites à des sessions de RPG en mode hybride (présentiel ET virtuel synchrone) dans cette installation par année?]]","v":0},{"$f":"Tableau5[[#This Row],[Quel est le nombre limite de participants par session de RPG en présentiel?]]","v":0},{"$f":"Tableau5[[#This Row],[Quel est le nombre limite de participants par session de RPG en virtuel synchrone ?]]","v":0},{"$f":"Tableau5[[#This Row],[Quel est le nombre limite de participants par session de RPG en mode hybride (présentiel ET virtuel synchrone) ?]]","v":0},{"$f":"Tableau5[[#This Row],[Combien de demandes d''inscriptions ont été refusées par année pour les RPG en présentiel dans cette installation?]]","v":0},{"$f":"Tableau5[[#This Row],[Combien de demandes d''inscriptions ont été refusées par année pour les RPG en virtuel synchrone dans cette installation?]]","v":0},{"$f":"Tableau5[[#This Row],[Combien de demandes d''inscriptions ont été refusées  par année pour les RPG en mode hybride (présentiel ET virtuel synchrone) dans cette installation?]]","v":0},{"$f":"Tableau5[[#This Row],[Quelles sont les raisons pour refuser des inscriptions?]]","v":0},{"$f":"Tableau5[[#This Row],[Est-ce qu''il y a des critères d''admissibilité pour les participants aux RPG (ex : primipares) Si oui, lesquels?]]","v":0},{"$f":"Tableau5[[#This Row],[Avez-vous une liste d''attente pour participer aux RPG ? Si oui, combien de personnes sont actuellement sur la liste d''attente?]]","v":0},{"$f":"Tableau5[[#This Row],[De quelle manière la promotion des RPG est-elle faite?]]","v":0},{"$f":"Tableau5[[#This Row],[Comment les participants ont entendu parler de votre offre de RPG?]]","v":0},{"$f":"Tableau5[[#This Row],[Quelles sont les méthodes utilisées pour s''inscrire aux RPG?]]","v":0},{"$f":"Tableau5[[#This Row],[Y a-t-il des stratégies mises en place pour rejoindre certaines clientèles ciblées telles : père ou coparent, nouveaux arrivants, personnes vivant en contexte de précarité socio-économiques?]]","v":0},{"$f":"Tableau5[[#This Row],[Si oui, quelles sont les stratégies utilisées pour rejoindre certaines clientèles ciblées telles : père ou coparent, nouveaux arrivants, personnes vivant en contexte de précarité socio-économiques?]]","v":0},{"$f":"Tableau6[[#This Row],[Combien de personnes enceintes participent aux RPG par année?]]","v":0},{"$f":"Tableau6[[#This Row],[Combien de partenaires ou personnes accompagnantes participent aux RPG par année?]]","v":0},{"$f":"Tableau6[[#This Row],[Combien de participants issus de l''immigration récente (moins de 5 ans) participent aux RPG par année?]]","v":0},{"$f":"Tableau6[[#This Row],[Combien de participants bénéficiant du programme Olo (non SIPPE) participent aux RPG par année?]]","v":0},{"$f":"Tableau6[[#This Row],[Combien de participants bénéficiant des SIPPE participent aux RPG par année?]]","v":0},{"$f":"Tableau6[[#This Row],[Combien de participants francophones participent aux RPG par année?]]","v":0},{"$f":"Tableau6[[#This Row],[Combien de participants anglophones participent aux RPG par année?]]","v":0},{"$f":"Tableau6[[#This Row],[Combien de participants allophones participent aux RPG par année?]]","v":0},{"$f":"Tableau6[[#This Row],[Est-ce qu''il y a un moyen mis en place pour sonder les besoins des participants avant le début des RPG? Ex: un sondage avant le début de la première rencontre.]]","v":0},{"$f":"Tableau6[[#This Row],[Est-ce qu''il y a un moyen mis en place pour sonder la satisfaction des participants après les RPG? Ex: un sondage à la fin des rencontres.]]","v":0},{"$f":"Tableau6[[#This Row],[Sur une échelle de 1 = aucun à 5 = beaucoup, quel est le niveau d''échanges entre les participants dans les RPG en présentiel?]]","v":0},{"$f":"Tableau6[[#This Row],[Sur une échelle de 1 = aucun à 5 = beaucoup, quel est le niveau d''échanges entre les participants dans les RPG en virtuel synchrone?]]","v":0},{"$f":"Tableau7[[#This Row],[Combien de personnes animent des RPG dans l''installation au cours d''une année typique?]]","v":0},{"$f":"Tableau7[[#This Row],[Quelle est la formation de base des personnes animatrices (ex : infirmière, nutritionniste, sage-femme ou autres)?]]","v":0},{"$f":"Tableau7[[#This Row],[Quel est le nombre d''années d''expérience (en moyenne) des personnes animatrices?]]","v":0},{"$f":"Tableau7[[#This Row],[Offrez-vous des formations aux personnes animatrices pour améliorer leurs connaissances et compétences?]]","v":0},{"$f":"Tableau7[[#This Row],[Si oui, lesquelles?]]","v":0},{"$f":"Tableau7[[#This Row],[Quels sont les outils utilisés pour animer les RPG ? (Ex : PPT, guide d’animation, outils d’animation, vidéos, documentation)]]","v":0}]
[{"$f":"Tableau4[[#This Row],[Indiquez les coordonnées de l''installation (CLSC, MdN, OC, CRP ou autre lieu offrant les RPG)]]","v":0},{"$f":"Tableau4[[#This Row],[Indiquez le territoire CI(U)SSS (RTS)]]","v":0},{"$f":"Tableau4[[#This Row],[Indiquez le type d''installation : RSSS ou communautaire]]","v":0},{"$f":"Tableau4[[#This Row],[Indiquez le nom de la personne responsable des RPG dans l''installation]]","v":0},{"$f":"Tableau4[[#This Row],[Indiquez les territoires de RLS sur votre territoire CI(U)SSS auxquels l''offre de RPG s''applique]]","v":0},{"$f":"Tableau4[[#This Row],[Quel est le nombre de sessions de RPG seulement en présentiel par année?]]","v":0},{"$f":"Tableau4[[#This Row],[Quel est le nombre de sessions de RPG seulement en virtuel synchrone par année?]]","v":0},{"$f":"Tableau4[[#This Row],[Quel est le nombre de sessions de RPG en mode hybride : présentiel ET virtuel synchrone par année?]]","v":0},{"$f":"Tableau4[[#This Row],[S''il y a des RPG en mode hybride, quel est le ratio entre le nombre de rencontres en présentiel versus le nombre de rencontres en virtuel synchrone?]]","v":0},{"$f":"Tableau4[[#This Row],[Combien de rencontres dans une session de RPG sont offertes en virtuel asynchrone?]]","v":0},{"$f":"Tableau4[[#This Row],[Si vous donnez des sessions de RPG en présentiel ou en hybride, quel est le nombre de rencontres dans une session?]]","v":0},{"$f":"Tableau4[[#This Row],[Si vous donnez des sessions de RPG en virtuel synchrone, quel est le nombre de rencontres dans une session?]]","v":0},{"$f":"Tableau4[[#This Row],[À quel moment les RPG sont-elles offertes ? (jour, soir)]]","v":0},{"$f":"Tableau4[[#This Row],[À quel moment les RPG sont-elles offertes ? (semaine, fin de semaine)]]","v":0},{"$f":"Tableau4[[#This Row],[À partir de combien de semaines de grossesse les RPG sont-elles offertes?]]","v":0},{"$f":"Tableau4[[#This Row],[Un coût est-il chargé pour participer aux RPG? ]]","v":0},{"$f":"Tableau4[[#This Row],[S''il y a un coût, quel est-il par session?]]","v":0},{"$f":"Tableau4[[#This Row],[Est-ce que des RPG en anglais sont offertes?]]","v":0},{"$f":"Tableau4[[#This Row],[Est-ce que des RPG en d''autres langues que le français et l''anglais sont offertes? ]]","v":0},{"$f":"Tableau4[[#This Row],[Si oui, spécifiez.]]","v":0},{"$f":"Tableau4[[#This Row],[Est-ce que des interprètes ou des outils permettant la traduction sont utilisés?]]","v":0},{"$f":"Tableau4[[#This Row],[ Si oui, spécifiez. ]]","v":0},{"$f":"Tableau4[[#This Row],[Quelles sont les thématiques principales discutées lors d''une session de RPG (offre de base) ? ]]","v":0},{"$f":"Tableau4[[#This Row],[Y a-t-il des RPG complémentaires offertes à la carte, sur des thèmes spécifiques ou pour des clientèles particulières? Si oui, précisez.]]","v":0},{"$f":"Tableau4[[#This Row],[Dans le cadre des sessions de RPG, y a-t-il une ou plusieurs rencontres offerte(s) en postnatal?]]","v":0},{"$f":"Tableau5[[#This Row],[Combien de personnes sont inscrites à des sessions de RPG en présentiel dans cette installation par année?]]","v":0},{"$f":"Tableau5[[#This Row],[Combien de personnes sont inscrites à des sessions de RPG en virtuel synchrone dans cette installation par année?]]","v":0},{"$f":"Tableau5[[#This Row],[Combien de personnes sont inscrites à des sessions de RPG en mode hybride (présentiel ET virtuel synchrone) dans cette installation par année?]]","v":0},{"$f":"Tableau5[[#This Row],[Quel est le nombre limite de participants par session de RPG en présentiel?]]","v":0},{"$f":"Tableau5[[#This Row],[Quel est le nombre limite de participants par session de RPG en virtuel synchrone ?]]","v":0},{"$f":"Tableau5[[#This Row],[Quel est le nombre limite de participants par session de RPG en mode hybride (présentiel ET virtuel synchrone) ?]]","v":0},{"$f":"Tableau5[[#This Row],[Combien de demandes d''inscriptions ont été refusées par année pour les RPG en présentiel dans cette installation?]]","v":0},{"$f":"Tableau5[[#This Row],[Combien de demandes d''inscriptions ont été refusées par année pour les RPG en virtuel synchrone dans cette installation?]]","v":0},{"$f":"Tableau5[[#This Row],[Combien de demandes d''inscriptions ont été refusées  par année pour les RPG en mode hybride (présentiel ET virtuel synchrone) dans cette installation?]]","v":0},{"$f":"Tableau5[[#This Row],[Quelles sont les raisons pour refuser des inscriptions?]]","v":0},{"$f":"Tableau5[[#This Row],[Est-ce qu''il y a des critères d''admissibilité pour les participants aux RPG (ex : primipares) Si oui, lesquels?]]","v":0},{"$f":"Tableau5[[#This Row],[Avez-vous une liste d''attente pour participer aux RPG ? Si oui, combien de personnes sont actuellement sur la liste d''attente?]]","v":0},{"$f":"Tableau5[[#This Row],[De quelle manière la promotion des RPG est-elle faite?]]","v":0},{"$f":"Tableau5[[#This Row],[Comment les participants ont entendu parler de votre offre de RPG?]]","v":0},{"$f":"Tableau5[[#This Row],[Quelles sont les méthodes utilisées pour s''inscrire aux RPG?]]","v":0},{"$f":"Tableau5[[#This Row],[Y a-t-il des stratégies mises en place pour rejoindre certaines clientèles ciblées telles : père ou coparent, nouveaux arrivants, personnes vivant en contexte de précarité socio-économiques?]]","v":0},{"$f":"Tableau5[[#This Row],[Si oui, quelles sont les stratégies utilisées pour rejoindre certaines clientèles ciblées telles : père ou coparent, nouveaux arrivants, personnes vivant en contexte de précarité socio-économiques?]]","v":0},{"$f":"Tableau6[[#This Row],[Combien de personnes enceintes participent aux RPG par année?]]","v":0},{"$f":"Tableau6[[#This Row],[Combien de partenaires ou personnes accompagnantes participent aux RPG par année?]]","v":0},{"$f":"Tableau6[[#This Row],[Combien de participants issus de l''immigration récente (moins de 5 ans) participent aux RPG par année?]]","v":0},{"$f":"Tableau6[[#This Row],[Combien de participants bénéficiant du programme Olo (non SIPPE) participent aux RPG par année?]]","v":0},{"$f":"Tableau6[[#This Row],[Combien de participants bénéficiant des SIPPE participent aux RPG par année?]]","v":0},{"$f":"Tableau6[[#This Row],[Combien de participants francophones participent aux RPG par année?]]","v":0},{"$f":"Tableau6[[#This Row],[Combien de participants anglophones participent aux RPG par année?]]","v":0},{"$f":"Tableau6[[#This Row],[Combien de participants allophones participent aux RPG par année?]]","v":0},{"$f":"Tableau6[[#This Row],[Est-ce qu''il y a un moyen mis en place pour sonder les besoins des participants avant le début des RPG? Ex: un sondage avant le début de la première rencontre.]]","v":0},{"$f":"Tableau6[[#This Row],[Est-ce qu''il y a un moyen mis en place pour sonder la satisfaction des participants après les RPG? Ex: un sondage à la fin des rencontres.]]","v":0},{"$f":"Tableau6[[#This Row],[Sur une échelle de 1 = aucun à 5 = beaucoup, quel est le niveau d''échanges entre les participants dans les RPG en présentiel?]]","v":0},{"$f":"Tableau6[[#This Row],[Sur une échelle de 1 = aucun à 5 = beaucoup, quel est le niveau d''échanges entre les participants dans les RPG en virtuel synchrone?]]","v":0},{"$f":"Tableau7[[#This Row],[Combien de personnes animent des RPG dans l''installation au cours d''une année typique?]]","v":0},{"$f":"Tableau7[[#This Row],[Quelle est la formation de base des personnes animatrices (ex : infirmière, nutritionniste, sage-femme ou autres)?]]","v":0},{"$f":"Tableau7[[#This Row],[Quel est le nombre d''années d''expérience (en moyenne) des personnes animatrices?]]","v":0},{"$f":"Tableau7[[#This Row],[Offrez-vous des formations aux personnes animatrices pour améliorer leurs connaissances et compétences?]]","v":0},{"$f":"Tableau7[[#This Row],[Si oui, lesquelles?]]","v":0},{"$f":"Tableau7[[#This Row],[Quels sont les outils utilisés pour animer les RPG ? (Ex : PPT, guide d’animation, outils d’animation, vidéos, documentation)]]","v":0}]
[{"$f":"Tableau4[[#This Row],[Indiquez les coordonnées de l''installation (CLSC, MdN, OC, CRP ou autre lieu offrant les RPG)]]","v":0},{"$f":"Tableau4[[#This Row],[Indiquez le territoire CI(U)SSS (RTS)]]","v":0},{"$f":"Tableau4[[#This Row],[Indiquez le type d''installation : RSSS ou communautaire]]","v":0},{"$f":"Tableau4[[#This Row],[Indiquez le nom de la personne responsable des RPG dans l''installation]]","v":0},{"$f":"Tableau4[[#This Row],[Indiquez les territoires de RLS sur votre territoire CI(U)SSS auxquels l''offre de RPG s''applique]]","v":0},{"$f":"Tableau4[[#This Row],[Quel est le nombre de sessions de RPG seulement en présentiel par année?]]","v":0},{"$f":"Tableau4[[#This Row],[Quel est le nombre de sessions de RPG seulement en virtuel synchrone par année?]]","v":0},{"$f":"Tableau4[[#This Row],[Quel est le nombre de sessions de RPG en mode hybride : présentiel ET virtuel synchrone par année?]]","v":0},{"$f":"Tableau4[[#This Row],[S''il y a des RPG en mode hybride, quel est le ratio entre le nombre de rencontres en présentiel versus le nombre de rencontres en virtuel synchrone?]]","v":0},{"$f":"Tableau4[[#This Row],[Combien de rencontres dans une session de RPG sont offertes en virtuel asynchrone?]]","v":0},{"$f":"Tableau4[[#This Row],[Si vous donnez des sessions de RPG en présentiel ou en hybride, quel est le nombre de rencontres dans une session?]]","v":0},{"$f":"Tableau4[[#This Row],[Si vous donnez des sessions de RPG en virtuel synchrone, quel est le nombre de rencontres dans une session?]]","v":0},{"$f":"Tableau4[[#This Row],[À quel moment les RPG sont-elles offertes ? (jour, soir)]]","v":0},{"$f":"Tableau4[[#This Row],[À quel moment les RPG sont-elles offertes ? (semaine, fin de semaine)]]","v":0},{"$f":"Tableau4[[#This Row],[À partir de combien de semaines de grossesse les RPG sont-elles offertes?]]","v":0},{"$f":"Tableau4[[#This Row],[Un coût est-il chargé pour participer aux RPG? ]]","v":0},{"$f":"Tableau4[[#This Row],[S''il y a un coût, quel est-il par session?]]","v":0},{"$f":"Tableau4[[#This Row],[Est-ce que des RPG en anglais sont offertes?]]","v":0},{"$f":"Tableau4[[#This Row],[Est-ce que des RPG en d''autres langues que le français et l''anglais sont offertes? ]]","v":0},{"$f":"Tableau4[[#This Row],[Si oui, spécifiez.]]","v":0},{"$f":"Tableau4[[#This Row],[Est-ce que des interprètes ou des outils permettant la traduction sont utilisés?]]","v":0},{"$f":"Tableau4[[#This Row],[ Si oui, spécifiez. ]]","v":0},{"$f":"Tableau4[[#This Row],[Quelles sont les thématiques principales discutées lors d''une session de RPG (offre de base) ? ]]","v":0},{"$f":"Tableau4[[#This Row],[Y a-t-il des RPG complémentaires offertes à la carte, sur des thèmes spécifiques ou pour des clientèles particulières? Si oui, précisez.]]","v":0},{"$f":"Tableau4[[#This Row],[Dans le cadre des sessions de RPG, y a-t-il une ou plusieurs rencontres offerte(s) en postnatal?]]","v":0},{"$f":"Tableau5[[#This Row],[Combien de personnes sont inscrites à des sessions de RPG en présentiel dans cette installation par année?]]","v":0},{"$f":"Tableau5[[#This Row],[Combien de personnes sont inscrites à des sessions de RPG en virtuel synchrone dans cette installation par année?]]","v":0},{"$f":"Tableau5[[#This Row],[Combien de personnes sont inscrites à des sessions de RPG en mode hybride (présentiel ET virtuel synchrone) dans cette installation par année?]]","v":0},{"$f":"Tableau5[[#This Row],[Quel est le nombre limite de participants par session de RPG en présentiel?]]","v":0},{"$f":"Tableau5[[#This Row],[Quel est le nombre limite de participants par session de RPG en virtuel synchrone ?]]","v":0},{"$f":"Tableau5[[#This Row],[Quel est le nombre limite de participants par session de RPG en mode hybride (présentiel ET virtuel synchrone) ?]]","v":0},{"$f":"Tableau5[[#This Row],[Combien de demandes d''inscriptions ont été refusées par année pour les RPG en présentiel dans cette installation?]]","v":0},{"$f":"Tableau5[[#This Row],[Combien de demandes d''inscriptions ont été refusées par année pour les RPG en virtuel synchrone dans cette installation?]]","v":0},{"$f":"Tableau5[[#This Row],[Combien de demandes d''inscriptions ont été refusées  par année pour les RPG en mode hybride (présentiel ET virtuel synchrone) dans cette installation?]]","v":0},{"$f":"Tableau5[[#This Row],[Quelles sont les raisons pour refuser des inscriptions?]]","v":0},{"$f":"Tableau5[[#This Row],[Est-ce qu''il y a des critères d''admissibilité pour les participants aux RPG (ex : primipares) Si oui, lesquels?]]","v":0},{"$f":"Tableau5[[#This Row],[Avez-vous une liste d''attente pour participer aux RPG ? Si oui, combien de personnes sont actuellement sur la liste d''attente?]]","v":0},{"$f":"Tableau5[[#This Row],[De quelle manière la promotion des RPG est-elle faite?]]","v":0},{"$f":"Tableau5[[#This Row],[Comment les participants ont entendu parler de votre offre de RPG?]]","v":0},{"$f":"Tableau5[[#This Row],[Quelles sont les méthodes utilisées pour s''inscrire aux RPG?]]","v":0},{"$f":"Tableau5[[#This Row],[Y a-t-il des stratégies mises en place pour rejoindre certaines clientèles ciblées telles : père ou coparent, nouveaux arrivants, personnes vivant en contexte de précarité socio-économiques?]]","v":0},{"$f":"Tableau5[[#This Row],[Si oui, quelles sont les stratégies utilisées pour rejoindre certaines clientèles ciblées telles : père ou coparent, nouveaux arrivants, personnes vivant en contexte de précarité socio-économiques?]]","v":0},{"$f":"Tableau6[[#This Row],[Combien de personnes enceintes participent aux RPG par année?]]","v":0},{"$f":"Tableau6[[#This Row],[Combien de partenaires ou personnes accompagnantes participent aux RPG par année?]]","v":0},{"$f":"Tableau6[[#This Row],[Combien de participants issus de l''immigration récente (moins de 5 ans) participent aux RPG par année?]]","v":0},{"$f":"Tableau6[[#This Row],[Combien de participants bénéficiant du programme Olo (non SIPPE) participent aux RPG par année?]]","v":0},{"$f":"Tableau6[[#This Row],[Combien de participants bénéficiant des SIPPE participent aux RPG par année?]]","v":0},{"$f":"Tableau6[[#This Row],[Combien de participants francophones participent aux RPG par année?]]","v":0},{"$f":"Tableau6[[#This Row],[Combien de participants anglophones participent aux RPG par année?]]","v":0},{"$f":"Tableau6[[#This Row],[Combien de participants allophones participent aux RPG par année?]]","v":0},{"$f":"Tableau6[[#This Row],[Est-ce qu''il y a un moyen mis en place pour sonder les besoins des participants avant le début des RPG? Ex: un sondage avant le début de la première rencontre.]]","v":0},{"$f":"Tableau6[[#This Row],[Est-ce qu''il y a un moyen mis en place pour sonder la satisfaction des participants après les RPG? Ex: un sondage à la fin des rencontres.]]","v":0},{"$f":"Tableau6[[#This Row],[Sur une échelle de 1 = aucun à 5 = beaucoup, quel est le niveau d''échanges entre les participants dans les RPG en présentiel?]]","v":0},{"$f":"Tableau6[[#This Row],[Sur une échelle de 1 = aucun à 5 = beaucoup, quel est le niveau d''échanges entre les participants dans les RPG en virtuel synchrone?]]","v":0},{"$f":"Tableau7[[#This Row],[Combien de personnes animent des RPG dans l''installation au cours d''une année typique?]]","v":0},{"$f":"Tableau7[[#This Row],[Quelle est la formation de base des personnes animatrices (ex : infirmière, nutritionniste, sage-femme ou autres)?]]","v":0},{"$f":"Tableau7[[#This Row],[Quel est le nombre d''années d''expérience (en moyenne) des personnes animatrices?]]","v":0},{"$f":"Tableau7[[#This Row],[Offrez-vous des formations aux personnes animatrices pour améliorer leurs connaissances et compétences?]]","v":0},{"$f":"Tableau7[[#This Row],[Si oui, lesquelles?]]","v":0},{"$f":"Tableau7[[#This Row],[Quels sont les outils utilisés pour animer les RPG ? (Ex : PPT, guide d’animation, outils d’animation, vidéos, documentation)]]","v":0}]
[{"$f":"Tableau4[[#This Row],[Indiquez les coordonnées de l''installation (CLSC, MdN, OC, CRP ou autre lieu offrant les RPG)]]","v":0},{"$f":"Tableau4[[#This Row],[Indiquez le territoire CI(U)SSS (RTS)]]","v":0},{"$f":"Tableau4[[#This Row],[Indiquez le type d''installation : RSSS ou communautaire]]","v":0},{"$f":"Tableau4[[#This Row],[Indiquez le nom de la personne responsable des RPG dans l''installation]]","v":0},{"$f":"Tableau4[[#This Row],[Indiquez les territoires de RLS sur votre territoire CI(U)SSS auxquels l''offre de RPG s''applique]]","v":0},{"$f":"Tableau4[[#This Row],[Quel est le nombre de sessions de RPG seulement en présentiel par année?]]","v":0},{"$f":"Tableau4[[#This Row],[Quel est le nombre de sessions de RPG seulement en virtuel synchrone par année?]]","v":0},{"$f":"Tableau4[[#This Row],[Quel est le nombre de sessions de RPG en mode hybride : présentiel ET virtuel synchrone par année?]]","v":0},{"$f":"Tableau4[[#This Row],[S''il y a des RPG en mode hybride, quel est le ratio entre le nombre de rencontres en présentiel versus le nombre de rencontres en virtuel synchrone?]]","v":0},{"$f":"Tableau4[[#This Row],[Combien de rencontres dans une session de RPG sont offertes en virtuel asynchrone?]]","v":0},{"$f":"Tableau4[[#This Row],[Si vous donnez des sessions de RPG en présentiel ou en hybride, quel est le nombre de rencontres dans une session?]]","v":0},{"$f":"Tableau4[[#This Row],[Si vous donnez des sessions de RPG en virtuel synchrone, quel est le nombre de rencontres dans une session?]]","v":0},{"$f":"Tableau4[[#This Row],[À quel moment les RPG sont-elles offertes ? (jour, soir)]]","v":0},{"$f":"Tableau4[[#This Row],[À quel moment les RPG sont-elles offertes ? (semaine, fin de semaine)]]","v":0},{"$f":"Tableau4[[#This Row],[À partir de combien de semaines de grossesse les RPG sont-elles offertes?]]","v":0},{"$f":"Tableau4[[#This Row],[Un coût est-il chargé pour participer aux RPG? ]]","v":0},{"$f":"Tableau4[[#This Row],[S''il y a un coût, quel est-il par session?]]","v":0},{"$f":"Tableau4[[#This Row],[Est-ce que des RPG en anglais sont offertes?]]","v":0},{"$f":"Tableau4[[#This Row],[Est-ce que des RPG en d''autres langues que le français et l''anglais sont offertes? ]]","v":0},{"$f":"Tableau4[[#This Row],[Si oui, spécifiez.]]","v":0},{"$f":"Tableau4[[#This Row],[Est-ce que des interprètes ou des outils permettant la traduction sont utilisés?]]","v":0},{"$f":"Tableau4[[#This Row],[ Si oui, spécifiez. ]]","v":0},{"$f":"Tableau4[[#This Row],[Quelles sont les thématiques principales discutées lors d''une session de RPG (offre de base) ? ]]","v":0},{"$f":"Tableau4[[#This Row],[Y a-t-il des RPG complémentaires offertes à la carte, sur des thèmes spécifiques ou pour des clientèles particulières? Si oui, précisez.]]","v":0},{"$f":"Tableau4[[#This Row],[Dans le cadre des sessions de RPG, y a-t-il une ou plusieurs rencontres offerte(s) en postnatal?]]","v":0},{"$f":"Tableau5[[#This Row],[Combien de personnes sont inscrites à des sessions de RPG en présentiel dans cette installation par année?]]","v":0},{"$f":"Tableau5[[#This Row],[Combien de personnes sont inscrites à des sessions de RPG en virtuel synchrone dans cette installation par année?]]","v":0},{"$f":"Tableau5[[#This Row],[Combien de personnes sont inscrites à des sessions de RPG en mode hybride (présentiel ET virtuel synchrone) dans cette installation par année?]]","v":0},{"$f":"Tableau5[[#This Row],[Quel est le nombre limite de participants par session de RPG en présentiel?]]","v":0},{"$f":"Tableau5[[#This Row],[Quel est le nombre limite de participants par session de RPG en virtuel synchrone ?]]","v":0},{"$f":"Tableau5[[#This Row],[Quel est le nombre limite de participants par session de RPG en mode hybride (présentiel ET virtuel synchrone) ?]]","v":0},{"$f":"Tableau5[[#This Row],[Combien de demandes d''inscriptions ont été refusées par année pour les RPG en présentiel dans cette installation?]]","v":0},{"$f":"Tableau5[[#This Row],[Combien de demandes d''inscriptions ont été refusées par année pour les RPG en virtuel synchrone dans cette installation?]]","v":0},{"$f":"Tableau5[[#This Row],[Combien de demandes d''inscriptions ont été refusées  par année pour les RPG en mode hybride (présentiel ET virtuel synchrone) dans cette installation?]]","v":0},{"$f":"Tableau5[[#This Row],[Quelles sont les raisons pour refuser des inscriptions?]]","v":0},{"$f":"Tableau5[[#This Row],[Est-ce qu''il y a des critères d''admissibilité pour les participants aux RPG (ex : primipares) Si oui, lesquels?]]","v":0},{"$f":"Tableau5[[#This Row],[Avez-vous une liste d''attente pour participer aux RPG ? Si oui, combien de personnes sont actuellement sur la liste d''attente?]]","v":0},{"$f":"Tableau5[[#This Row],[De quelle manière la promotion des RPG est-elle faite?]]","v":0},{"$f":"Tableau5[[#This Row],[Comment les participants ont entendu parler de votre offre de RPG?]]","v":0},{"$f":"Tableau5[[#This Row],[Quelles sont les méthodes utilisées pour s''inscrire aux RPG?]]","v":0},{"$f":"Tableau5[[#This Row],[Y a-t-il des stratégies mises en place pour rejoindre certaines clientèles ciblées telles : père ou coparent, nouveaux arrivants, personnes vivant en contexte de précarité socio-économiques?]]","v":0},{"$f":"Tableau5[[#This Row],[Si oui, quelles sont les stratégies utilisées pour rejoindre certaines clientèles ciblées telles : père ou coparent, nouveaux arrivants, personnes vivant en contexte de précarité socio-économiques?]]","v":0},{"$f":"Tableau6[[#This Row],[Combien de personnes enceintes participent aux RPG par année?]]","v":0},{"$f":"Tableau6[[#This Row],[Combien de partenaires ou personnes accompagnantes participent aux RPG par année?]]","v":0},{"$f":"Tableau6[[#This Row],[Combien de participants issus de l''immigration récente (moins de 5 ans) participent aux RPG par année?]]","v":0},{"$f":"Tableau6[[#This Row],[Combien de participants bénéficiant du programme Olo (non SIPPE) participent aux RPG par année?]]","v":0},{"$f":"Tableau6[[#This Row],[Combien de participants bénéficiant des SIPPE participent aux RPG par année?]]","v":0},{"$f":"Tableau6[[#This Row],[Combien de participants francophones participent aux RPG par année?]]","v":0},{"$f":"Tableau6[[#This Row],[Combien de participants anglophones participent aux RPG par année?]]","v":0},{"$f":"Tableau6[[#This Row],[Combien de participants allophones participent aux RPG par année?]]","v":0},{"$f":"Tableau6[[#This Row],[Est-ce qu''il y a un moyen mis en place pour sonder les besoins des participants avant le début des RPG? Ex: un sondage avant le début de la première rencontre.]]","v":0},{"$f":"Tableau6[[#This Row],[Est-ce qu''il y a un moyen mis en place pour sonder la satisfaction des participants après les RPG? Ex: un sondage à la fin des rencontres.]]","v":0},{"$f":"Tableau6[[#This Row],[Sur une échelle de 1 = aucun à 5 = beaucoup, quel est le niveau d''échanges entre les participants dans les RPG en présentiel?]]","v":0},{"$f":"Tableau6[[#This Row],[Sur une échelle de 1 = aucun à 5 = beaucoup, quel est le niveau d''échanges entre les participants dans les RPG en virtuel synchrone?]]","v":0},{"$f":"Tableau7[[#This Row],[Combien de personnes animent des RPG dans l''installation au cours d''une année typique?]]","v":0},{"$f":"Tableau7[[#This Row],[Quelle est la formation de base des personnes animatrices (ex : infirmière, nutritionniste, sage-femme ou autres)?]]","v":0},{"$f":"Tableau7[[#This Row],[Quel est le nombre d''années d''expérience (en moyenne) des personnes animatrices?]]","v":0},{"$f":"Tableau7[[#This Row],[Offrez-vous des formations aux personnes animatrices pour améliorer leurs connaissances et compétences?]]","v":0},{"$f":"Tableau7[[#This Row],[Si oui, lesquelles?]]","v":0},{"$f":"Tableau7[[#This Row],[Quels sont les outils utilisés pour animer les RPG ? (Ex : PPT, guide d’animation, outils d’animation, vidéos, documentation)]]","v":0}]
[{"$f":"Tableau4[[#This Row],[Indiquez les coordonnées de l''installation (CLSC, MdN, OC, CRP ou autre lieu offrant les RPG)]]","v":0},{"$f":"Tableau4[[#This Row],[Indiquez le territoire CI(U)SSS (RTS)]]","v":0},{"$f":"Tableau4[[#This Row],[Indiquez le type d''installation : RSSS ou communautaire]]","v":0},{"$f":"Tableau4[[#This Row],[Indiquez le nom de la personne responsable des RPG dans l''installation]]","v":0},{"$f":"Tableau4[[#This Row],[Indiquez les territoires de RLS sur votre territoire CI(U)SSS auxquels l''offre de RPG s''applique]]","v":0},{"$f":"Tableau4[[#This Row],[Quel est le nombre de sessions de RPG seulement en présentiel par année?]]","v":0},{"$f":"Tableau4[[#This Row],[Quel est le nombre de sessions de RPG seulement en virtuel synchrone par année?]]","v":0},{"$f":"Tableau4[[#This Row],[Quel est le nombre de sessions de RPG en mode hybride : présentiel ET virtuel synchrone par année?]]","v":0},{"$f":"Tableau4[[#This Row],[S''il y a des RPG en mode hybride, quel est le ratio entre le nombre de rencontres en présentiel versus le nombre de rencontres en virtuel synchrone?]]","v":0},{"$f":"Tableau4[[#This Row],[Combien de rencontres dans une session de RPG sont offertes en virtuel asynchrone?]]","v":0},{"$f":"Tableau4[[#This Row],[Si vous donnez des sessions de RPG en présentiel ou en hybride, quel est le nombre de rencontres dans une session?]]","v":0},{"$f":"Tableau4[[#This Row],[Si vous donnez des sessions de RPG en virtuel synchrone, quel est le nombre de rencontres dans une session?]]","v":0},{"$f":"Tableau4[[#This Row],[À quel moment les RPG sont-elles offertes ? (jour, soir)]]","v":0},{"$f":"Tableau4[[#This Row],[À quel moment les RPG sont-elles offertes ? (semaine, fin de semaine)]]","v":0},{"$f":"Tableau4[[#This Row],[À partir de combien de semaines de grossesse les RPG sont-elles offertes?]]","v":0},{"$f":"Tableau4[[#This Row],[Un coût est-il chargé pour participer aux RPG? ]]","v":0},{"$f":"Tableau4[[#This Row],[S''il y a un coût, quel est-il par session?]]","v":0},{"$f":"Tableau4[[#This Row],[Est-ce que des RPG en anglais sont offertes?]]","v":0},{"$f":"Tableau4[[#This Row],[Est-ce que des RPG en d''autres langues que le français et l''anglais sont offertes? ]]","v":0},{"$f":"Tableau4[[#This Row],[Si oui, spécifiez.]]","v":0},{"$f":"Tableau4[[#This Row],[Est-ce que des interprètes ou des outils permettant la traduction sont utilisés?]]","v":0},{"$f":"Tableau4[[#This Row],[ Si oui, spécifiez. ]]","v":0},{"$f":"Tableau4[[#This Row],[Quelles sont les thématiques principales discutées lors d''une session de RPG (offre de base) ? ]]","v":0},{"$f":"Tableau4[[#This Row],[Y a-t-il des RPG complémentaires offertes à la carte, sur des thèmes spécifiques ou pour des clientèles particulières? Si oui, précisez.]]","v":0},{"$f":"Tableau4[[#This Row],[Dans le cadre des sessions de RPG, y a-t-il une ou plusieurs rencontres offerte(s) en postnatal?]]","v":0},{"$f":"Tableau5[[#This Row],[Combien de personnes sont inscrites à des sessions de RPG en présentiel dans cette installation par année?]]","v":0},{"$f":"Tableau5[[#This Row],[Combien de personnes sont inscrites à des sessions de RPG en virtuel synchrone dans cette installation par année?]]","v":0},{"$f":"Tableau5[[#This Row],[Combien de personnes sont inscrites à des sessions de RPG en mode hybride (présentiel ET virtuel synchrone) dans cette installation par année?]]","v":0},{"$f":"Tableau5[[#This Row],[Quel est le nombre limite de participants par session de RPG en présentiel?]]","v":0},{"$f":"Tableau5[[#This Row],[Quel est le nombre limite de participants par session de RPG en virtuel synchrone ?]]","v":0},{"$f":"Tableau5[[#This Row],[Quel est le nombre limite de participants par session de RPG en mode hybride (présentiel ET virtuel synchrone) ?]]","v":0},{"$f":"Tableau5[[#This Row],[Combien de demandes d''inscriptions ont été refusées par année pour les RPG en présentiel dans cette installation?]]","v":0},{"$f":"Tableau5[[#This Row],[Combien de demandes d''inscriptions ont été refusées par année pour les RPG en virtuel synchrone dans cette installation?]]","v":0},{"$f":"Tableau5[[#This Row],[Combien de demandes d''inscriptions ont été refusées  par année pour les RPG en mode hybride (présentiel ET virtuel synchrone) dans cette installation?]]","v":0},{"$f":"Tableau5[[#This Row],[Quelles sont les raisons pour refuser des inscriptions?]]","v":0},{"$f":"Tableau5[[#This Row],[Est-ce qu''il y a des critères d''admissibilité pour les participants aux RPG (ex : primipares) Si oui, lesquels?]]","v":0},{"$f":"Tableau5[[#This Row],[Avez-vous une liste d''attente pour participer aux RPG ? Si oui, combien de personnes sont actuellement sur la liste d''attente?]]","v":0},{"$f":"Tableau5[[#This Row],[De quelle manière la promotion des RPG est-elle faite?]]","v":0},{"$f":"Tableau5[[#This Row],[Comment les participants ont entendu parler de votre offre de RPG?]]","v":0},{"$f":"Tableau5[[#This Row],[Quelles sont les méthodes utilisées pour s''inscrire aux RPG?]]","v":0},{"$f":"Tableau5[[#This Row],[Y a-t-il des stratégies mises en place pour rejoindre certaines clientèles ciblées telles : père ou coparent, nouveaux arrivants, personnes vivant en contexte de précarité socio-économiques?]]","v":0},{"$f":"Tableau5[[#This Row],[Si oui, quelles sont les stratégies utilisées pour rejoindre certaines clientèles ciblées telles : père ou coparent, nouveaux arrivants, personnes vivant en contexte de précarité socio-économiques?]]","v":0},{"$f":"Tableau6[[#This Row],[Combien de personnes enceintes participent aux RPG par année?]]","v":0},{"$f":"Tableau6[[#This Row],[Combien de partenaires ou personnes accompagnantes participent aux RPG par année?]]","v":0},{"$f":"Tableau6[[#This Row],[Combien de participants issus de l''immigration récente (moins de 5 ans) participent aux RPG par année?]]","v":0},{"$f":"Tableau6[[#This Row],[Combien de participants bénéficiant du programme Olo (non SIPPE) participent aux RPG par année?]]","v":0},{"$f":"Tableau6[[#This Row],[Combien de participants bénéficiant des SIPPE participent aux RPG par année?]]","v":0},{"$f":"Tableau6[[#This Row],[Combien de participants francophones participent aux RPG par année?]]","v":0},{"$f":"Tableau6[[#This Row],[Combien de participants anglophones participent aux RPG par année?]]","v":0},{"$f":"Tableau6[[#This Row],[Combien de participants allophones participent aux RPG par année?]]","v":0},{"$f":"Tableau6[[#This Row],[Est-ce qu''il y a un moyen mis en place pour sonder les besoins des participants avant le début des RPG? Ex: un sondage avant le début de la première rencontre.]]","v":0},{"$f":"Tableau6[[#This Row],[Est-ce qu''il y a un moyen mis en place pour sonder la satisfaction des participants après les RPG? Ex: un sondage à la fin des rencontres.]]","v":0},{"$f":"Tableau6[[#This Row],[Sur une échelle de 1 = aucun à 5 = beaucoup, quel est le niveau d''échanges entre les participants dans les RPG en présentiel?]]","v":0},{"$f":"Tableau6[[#This Row],[Sur une échelle de 1 = aucun à 5 = beaucoup, quel est le niveau d''échanges entre les participants dans les RPG en virtuel synchrone?]]","v":0},{"$f":"Tableau7[[#This Row],[Combien de personnes animent des RPG dans l''installation au cours d''une année typique?]]","v":0},{"$f":"Tableau7[[#This Row],[Quelle est la formation de base des personnes animatrices (ex : infirmière, nutritionniste, sage-femme ou autres)?]]","v":0},{"$f":"Tableau7[[#This Row],[Quel est le nombre d''années d''expérience (en moyenne) des personnes animatrices?]]","v":0},{"$f":"Tableau7[[#This Row],[Offrez-vous des formations aux personnes animatrices pour améliorer leurs connaissances et compétences?]]","v":0},{"$f":"Tableau7[[#This Row],[Si oui, lesquelles?]]","v":0},{"$f":"Tableau7[[#This Row],[Quels sont les outils utilisés pour animer les RPG ? (Ex : PPT, guide d’animation, outils d’animation, vidéos, documentation)]]","v":0}]
[{"$f":"Tableau4[[#This Row],[Indiquez les coordonnées de l''installation (CLSC, MdN, OC, CRP ou autre lieu offrant les RPG)]]","v":0},{"$f":"Tableau4[[#This Row],[Indiquez le territoire CI(U)SSS (RTS)]]","v":0},{"$f":"Tableau4[[#This Row],[Indiquez le type d''installation : RSSS ou communautaire]]","v":0},{"$f":"Tableau4[[#This Row],[Indiquez le nom de la personne responsable des RPG dans l''installation]]","v":0},{"$f":"Tableau4[[#This Row],[Indiquez les territoires de RLS sur votre territoire CI(U)SSS auxquels l''offre de RPG s''applique]]","v":0},{"$f":"Tableau4[[#This Row],[Quel est le nombre de sessions de RPG seulement en présentiel par année?]]","v":0},{"$f":"Tableau4[[#This Row],[Quel est le nombre de sessions de RPG seulement en virtuel synchrone par année?]]","v":0},{"$f":"Tableau4[[#This Row],[Quel est le nombre de sessions de RPG en mode hybride : présentiel ET virtuel synchrone par année?]]","v":0},{"$f":"Tableau4[[#This Row],[S''il y a des RPG en mode hybride, quel est le ratio entre le nombre de rencontres en présentiel versus le nombre de rencontres en virtuel synchrone?]]","v":0},{"$f":"Tableau4[[#This Row],[Combien de rencontres dans une session de RPG sont offertes en virtuel asynchrone?]]","v":0},{"$f":"Tableau4[[#This Row],[Si vous donnez des sessions de RPG en présentiel ou en hybride, quel est le nombre de rencontres dans une session?]]","v":0},{"$f":"Tableau4[[#This Row],[Si vous donnez des sessions de RPG en virtuel synchrone, quel est le nombre de rencontres dans une session?]]","v":0},{"$f":"Tableau4[[#This Row],[À quel moment les RPG sont-elles offertes ? (jour, soir)]]","v":0},{"$f":"Tableau4[[#This Row],[À quel moment les RPG sont-elles offertes ? (semaine, fin de semaine)]]","v":0},{"$f":"Tableau4[[#This Row],[À partir de combien de semaines de grossesse les RPG sont-elles offertes?]]","v":0},{"$f":"Tableau4[[#This Row],[Un coût est-il chargé pour participer aux RPG? ]]","v":0},{"$f":"Tableau4[[#This Row],[S''il y a un coût, quel est-il par session?]]","v":0},{"$f":"Tableau4[[#This Row],[Est-ce que des RPG en anglais sont offertes?]]","v":0},{"$f":"Tableau4[[#This Row],[Est-ce que des RPG en d''autres langues que le français et l''anglais sont offertes? ]]","v":0},{"$f":"Tableau4[[#This Row],[Si oui, spécifiez.]]","v":0},{"$f":"Tableau4[[#This Row],[Est-ce que des interprètes ou des outils permettant la traduction sont utilisés?]]","v":0},{"$f":"Tableau4[[#This Row],[ Si oui, spécifiez. ]]","v":0},{"$f":"Tableau4[[#This Row],[Quelles sont les thématiques principales discutées lors d''une session de RPG (offre de base) ? ]]","v":0},{"$f":"Tableau4[[#This Row],[Y a-t-il des RPG complémentaires offertes à la carte, sur des thèmes spécifiques ou pour des clientèles particulières? Si oui, précisez.]]","v":0},{"$f":"Tableau4[[#This Row],[Dans le cadre des sessions de RPG, y a-t-il une ou plusieurs rencontres offerte(s) en postnatal?]]","v":0},{"$f":"Tableau5[[#This Row],[Combien de personnes sont inscrites à des sessions de RPG en présentiel dans cette installation par année?]]","v":0},{"$f":"Tableau5[[#This Row],[Combien de personnes sont inscrites à des sessions de RPG en virtuel synchrone dans cette installation par année?]]","v":0},{"$f":"Tableau5[[#This Row],[Combien de personnes sont inscrites à des sessions de RPG en mode hybride (présentiel ET virtuel synchrone) dans cette installation par année?]]","v":0},{"$f":"Tableau5[[#This Row],[Quel est le nombre limite de participants par session de RPG en présentiel?]]","v":0},{"$f":"Tableau5[[#This Row],[Quel est le nombre limite de participants par session de RPG en virtuel synchrone ?]]","v":0},{"$f":"Tableau5[[#This Row],[Quel est le nombre limite de participants par session de RPG en mode hybride (présentiel ET virtuel synchrone) ?]]","v":0},{"$f":"Tableau5[[#This Row],[Combien de demandes d''inscriptions ont été refusées par année pour les RPG en présentiel dans cette installation?]]","v":0},{"$f":"Tableau5[[#This Row],[Combien de demandes d''inscriptions ont été refusées par année pour les RPG en virtuel synchrone dans cette installation?]]","v":0},{"$f":"Tableau5[[#This Row],[Combien de demandes d''inscriptions ont été refusées  par année pour les RPG en mode hybride (présentiel ET virtuel synchrone) dans cette installation?]]","v":0},{"$f":"Tableau5[[#This Row],[Quelles sont les raisons pour refuser des inscriptions?]]","v":0},{"$f":"Tableau5[[#This Row],[Est-ce qu''il y a des critères d''admissibilité pour les participants aux RPG (ex : primipares) Si oui, lesquels?]]","v":0},{"$f":"Tableau5[[#This Row],[Avez-vous une liste d''attente pour participer aux RPG ? Si oui, combien de personnes sont actuellement sur la liste d''attente?]]","v":0},{"$f":"Tableau5[[#This Row],[De quelle manière la promotion des RPG est-elle faite?]]","v":0},{"$f":"Tableau5[[#This Row],[Comment les participants ont entendu parler de votre offre de RPG?]]","v":0},{"$f":"Tableau5[[#This Row],[Quelles sont les méthodes utilisées pour s''inscrire aux RPG?]]","v":0},{"$f":"Tableau5[[#This Row],[Y a-t-il des stratégies mises en place pour rejoindre certaines clientèles ciblées telles : père ou coparent, nouveaux arrivants, personnes vivant en contexte de précarité socio-économiques?]]","v":0},{"$f":"Tableau5[[#This Row],[Si oui, quelles sont les stratégies utilisées pour rejoindre certaines clientèles ciblées telles : père ou coparent, nouveaux arrivants, personnes vivant en contexte de précarité socio-économiques?]]","v":0},{"$f":"Tableau6[[#This Row],[Combien de personnes enceintes participent aux RPG par année?]]","v":0},{"$f":"Tableau6[[#This Row],[Combien de partenaires ou personnes accompagnantes participent aux RPG par année?]]","v":0},{"$f":"Tableau6[[#This Row],[Combien de participants issus de l''immigration récente (moins de 5 ans) participent aux RPG par année?]]","v":0},{"$f":"Tableau6[[#This Row],[Combien de participants bénéficiant du programme Olo (non SIPPE) participent aux RPG par année?]]","v":0},{"$f":"Tableau6[[#This Row],[Combien de participants bénéficiant des SIPPE participent aux RPG par année?]]","v":0},{"$f":"Tableau6[[#This Row],[Combien de participants francophones participent aux RPG par année?]]","v":0},{"$f":"Tableau6[[#This Row],[Combien de participants anglophones participent aux RPG par année?]]","v":0},{"$f":"Tableau6[[#This Row],[Combien de participants allophones participent aux RPG par année?]]","v":0},{"$f":"Tableau6[[#This Row],[Est-ce qu''il y a un moyen mis en place pour sonder les besoins des participants avant le début des RPG? Ex: un sondage avant le début de la première rencontre.]]","v":0},{"$f":"Tableau6[[#This Row],[Est-ce qu''il y a un moyen mis en place pour sonder la satisfaction des participants après les RPG? Ex: un sondage à la fin des rencontres.]]","v":0},{"$f":"Tableau6[[#This Row],[Sur une échelle de 1 = aucun à 5 = beaucoup, quel est le niveau d''échanges entre les participants dans les RPG en présentiel?]]","v":0},{"$f":"Tableau6[[#This Row],[Sur une échelle de 1 = aucun à 5 = beaucoup, quel est le niveau d''échanges entre les participants dans les RPG en virtuel synchrone?]]","v":0},{"$f":"Tableau7[[#This Row],[Combien de personnes animent des RPG dans l''installation au cours d''une année typique?]]","v":0},{"$f":"Tableau7[[#This Row],[Quelle est la formation de base des personnes animatrices (ex : infirmière, nutritionniste, sage-femme ou autres)?]]","v":0},{"$f":"Tableau7[[#This Row],[Quel est le nombre d''années d''expérience (en moyenne) des personnes animatrices?]]","v":0},{"$f":"Tableau7[[#This Row],[Offrez-vous des formations aux personnes animatrices pour améliorer leurs connaissances et compétences?]]","v":0},{"$f":"Tableau7[[#This Row],[Si oui, lesquelles?]]","v":0},{"$f":"Tableau7[[#This Row],[Quels sont les outils utilisés pour animer les RPG ? (Ex : PPT, guide d’animation, outils d’animation, vidéos, documentation)]]","v":0}]

{"sheet":"Feuil3","index":8,"n_rows":0,"n_cols":0,"rows_kept":0,"cut":false,"hidden":false,"merged":[]}

{"sheet":"7. Calendrier","index":9,"n_rows":4,"n_cols":7,"rows_kept":4,"cut":false,"hidden":false,"merged":[[2,5,2,6],[2,2,2,3],[2,0,2,1],[1,0,1,6],[0,1,0,2]]}
[null,"Portrait des rencontres prénatales de groupe (RPG)"]
["Calendrier de l'offre des RPG"]
["IDENTIFICATION DE L'INSTALLATION",null,"DESCRIPTION DE L'OFFRE",null,"LANGUES","QUANTITÉ D'INSCRIPTIONS"]
["Indiquez les coordonnées de l'installation (CLSC, MdN, OC, CRP ou autre lieu offrant les RPG)","Indiquez le nom de la personne responsable des RPG dans le CLSC, MdN, OC, CRP ou autre lieu","Dates des sessions des RPG de base","Présentiel, Virtuel synchrone ou Hybride","RPG offerte en quelle langue?","Quel est le nombre limite de participants par session de RPG?","Quel est le nombre d'inscriptions confirmées?"]

{"sheet":"Feuil1","index":10,"n_rows":0,"n_cols":0,"rows_kept":0,"cut":false,"hidden":false,"merged":[]}

{"sheet":"Menus déroulants","index":11,"n_rows":98,"n_cols":31,"rows_kept":98,"cut":false,"hidden":true,"merged":[]}
[]
["CI(U)SSS",null,"TYPE DE MILIEU",null,"TERRITOIRES RLS",null,"NOMBRE DE SESSIONS DE RPG",null,"NOMBRE DE RPG  PAR SESSION",null,"PLAGES HORAIRES",null,"SEMAINES DE GROSSESSE RPG OFFERTES",null,"COÛT RPG",null,"SI PAYANT, QUEL EST LE COÛT PAR SESSION",null,"THÉMATIQUES DISCUTÉES",null,"RPG POSTNATAL",null,"RAISONS POUR REFUSER INSCRIPTIONS",null,"CRITÈRES D'ADMISSIBILITÉ",null,"CLIENTÈLES CIBLÉES OU PRIORISÉES",null,"INSCRIPTIONS PAR ANNÉE",null,"NOMBRE LIMITE D'INSCRIPTIONS "]
["CISSS du Bas-Saint-Laurent (01)",null,"CLSC",null,"RLS de Kamouraska",null,0,null,0,null,"Jour",null,"0 à 12 semaines",null,"Gratuit",null,"Moins de 20$",null,"La grossesse",null,"Oui",null,"Groupe complet",null,"Aucun",null,"Primipares",null,0,null,0]
["CIUSSS du Saguenay-Lac-Saint-Jean (02)",null,"Maison de naissance",null,"RLS de Rivière-du-Loup",null,1,null,1,null,"Soir",null,"13 à 16 semaines",null,"Payant",null,"20 à 40$",null,"La nutrition",null,"Non",null,"La langue",null,"Primipares",null,"Multipares",null,"1 À 20",null,"1 À 5"]
["CIUSSS de la Capitale-Nationale (03)",null,"Centre hospitalier",null,"RLS de Témiscouata",null,2,null,2,null,"Jour et Soir",null,"17 à 20 semaines",null,"Modulable selon revenu",null,"41 à 60$",null,"Les habitudes de vie",null,null,null,"Autre",null,"Seulement pour la clientèle suivie par cette installation",null,"Mères",null,"21 À 40",null,"6 À 10"]
["CIUSSS de la Mauricie-et-du-Centre-du-Québec (04)",null,"Org. communautaire",null,"RLS des Basques",null,3,null,3,null,null,null,"21 à 25 semaines",null,null,null,"61 à 80$",null,"Le travail et l'accouchement (incluant soulagement de la douleur)",null,null,null,null,null,"Autre",null,"Pères",null,"41 À 60",null,"11 À 15"]
["CIUSSS de l'Estrie - Centre hospitalier universitaire de Sherbrooke (05)",null,"Centre périnatalité sociale",null,"RLS de Rimouski",null,4,null,4,null,null,null,"26 à 30 semaines",null,null,null,"81 à 100$",null,"Les interventions obstétricales",null,null,null,null,null,null,null,"Autres membres de la famille",null,"61 À 80",null,"16 À 20"]
["CIUSSS de l'Ouest-de-l'Île-de-Montréal (06-1)",null,"Centre de ressources périnatales (CRP)",null,"RLS de La Mitis",null,5,null,5,null,null,null,"31 à 35 semaines",null,null,null,"101 à 120$",null,"La préparation à la naissance",null,"MOYEN POUR SONDER",null,null,null,null,null,"Autre",null,"81 À 100",null,"21 À 25"]
["CIUSSS du Centre-Ouest-de-l'Île-de-Montréal (06-2)",null,"Autre",null,"RLS de Matane",null,6,null,6,null,null,null,"36 semaines et plus",null,null,null,"121 à 140$",null,"Les soins du nouveau-né",null,"Oui",null,null,null,null,null,null,null,"101 À 120",null,"26 À 30"]
["CIUSSS du Centre-Sud-de-l'Île-de-Montréal (06-3)",null,null,null,"RLS de La Matapédia",null,7,null,7,null,null,null,null,null,null,null,"141 à 160$",null,"Les caractéristiques du nouveau-né",null,"Non",null,null,null,null,null,null,null,"121 À 140",null,"31 À 35"]
["CIUSSS du Nord-de-l'Île-de-Montréal (06-4)",null,null,null,"RLS du Domaine-du-Roy",null,8,null,8,null,null,null,null,null,null,null,"161 à 180$",null,"L'allaitement",null,null,null,null,null,null,null,"NIVEAU DE PARTICIPATION",null,"141 À 160",null,"36 À 40"]
["CIUSSS de l'Est-de-l'Île-de-Montréal (06-5)",null,null,null,"RLS de Maria-Chapdelaine",null,9,null,9,null,"PLAGES HORAIRES",null,null,null,null,null,"181 à 200$",null,"Le retour à la maison",null,null,null,null,null,null,null,"1 = aucun échange",null,"161 À 180",null,"41 À 45"]
["CISSS de l'Outaouais (07)",null,null,null,"RLS de Lac-Saint-Jean-Est",null,10,null,10,null,"Semaine",null,null,null,null,null,"201$ et plus",null,"La santé mentale périnatale",null,"RPG EN ANGLAIS",null,"FORMATION ANIMATRICES",null,null,null,"2 = peu d'échange, participants vont seulement répondre à certaines questions",null,"181 À 200",null,"46 À 50"]
["CISSS de l'Abitibi-Témiscamingue (08)",null,null,null,"RLS de Jonquière",null,11,null,11,null,"Fin de semaine",null,null,null,null,null,null,null,"La transition à la parentalité",null,"Oui",null,"Infirmière",null,null,null,"3 = quelques échanges durant les pauses, participants vont répondre et poser des questions",null,"201 À 220",null,"51 À 55"]
["CISSS de la Côte-Nord (09)",null,null,null,"RLS de Chicoutimi",null,12,null,12,null,"Semaine et Fin de semaine",null,null,null,null,null,"Ratio présentiel/virtuel",null,"Les rôles parentaux",null,"Non",null,"Sage-femme",null,null,null,"4 = échanges durant les pauses, participants vont répondre et poser des questions, animatrices disponibles après pour répondre aux questions",null,"221 À 240",null,"56 À 60"]
["CISSS du Nord-du-Québec (10)",null,null,null,"RLS de La Baie",null,13,null,13,null,null,null,null,null,null,null,"1-2 rencontres en présence, les autres en virtuel",null,"La paternité",null,null,null,"Nutritionniste",null,null,null,"5 = beaucoup d'échanges, activités incluses durant la rencontre (quiz, jeux, etc)",null,"241 À 260",null,"61 À 65"]
["CISSS de la Gaspésie (11-1)",null,null,null,"RLS de Portneuf",null,14,null,14,null,null,null,null,null,null,null,"50% en présence, 50% en virtuel",null,"La sexualité et la contraception",null,null,null,"Travailleuse sociale",null,null,null,null,null,"261 À 280",null,"66 À 70"]
["CISSS des Îles (11-2)",null,null,null,"RLS de Québec-Sud",null,15,null,15,null,null,null,null,null,null,null,"1-2 rencontres en virtuel, les autres en présence",null,"Autre",null,null,null,"Intervenante",null,null,null,null,null,"281 À 300",null,"71 À 75"]
["CISSS de Chaudière-Appalaches (12)",null,null,null,"RLS de Québec-Nord",null,16,null,null,null,null,null,null,null,null,null,null,null,null,null,null,null,"Principalement des infirmières",null,null,null,null,null,"301 À 320",null,"76 À 80"]
["CISSS de Laval (13)",null,null,null,"RLS de Charlevoix",null,17,null,null,null,null,null,null,null,null,null,null,null,null,null,null,null,"Combinaisons de formation (ex: nutritionniste offre une rencontre, infirmière offre une autre rencontre)",null,null,null,null,null,"321 À 340"]
["CISSS de Lanaudière (14)",null,null,null,"RLS du Haut-Saint-Maurice",null,18,null,null,null,null,null,null,null,null,null,null,null,null,null,null,null,"Autre",null,null,null,null,null,"341 À 360"]
["CISSS des Laurentides (15)",null,null,null,"RLS de la Vallée de la Batiscan",null,19,null,"NOMBRE ANNÉES EXPÉRIENCE",null,null,null,null,null,null,null,null,null,null,null,null,null,null,null,null,null,null,null,"361 À 380"]
["CISSS de la Montérégie-Centre (16-1)",null,null,null,"RLS de Maskinongé",null,20,null,1,null,null,null,null,null,null,null,null,null,null,null,null,null,null,null,null,null,null,null,"381 À 400"]
["CISSS de la Montérégie-Est (16-2)",null,null,null,"RLS du Centre-de-la-Mauricie",null,null,null,2]
["CISSS de la Montérégie-Ouest (16-3)",null,null,null,"RLS de Trois-Rivières",null,null,null,3]
["Établissement non fusionné",null,null,null,"RLS de Bécancour–Nicolet-Yamaska",null,null,null,4]
[null,null,null,null,"RLS de Drummond",null,null,null,5]
[null,null,null,null,"RLS d'Arthabaska-de l'Érable",null,null,null,6]
[null,null,null,null,"RLS de la Pommeraie",null,null,null,7]
[null,null,null,null,"RLS de la Haute-Yamaska",null,null,null,8]
[null,null,null,null,"RLS de Memphrémagog",null,null,null,9]
[null,null,null,null,"RLS de Coaticook",null,null,null,10]
[null,null,null,null,"RLS de Sherbrooke",null,null,null,11]
[null,null,null,null,"RLS de Val Saint-François",null,null,null,12]
[null,null,null,null,"RLS d'Asbestos",null,null,null,13]
[null,null,null,null,"RLS du Haut-Saint-François",null,null,null,14]
[null,null,null,null,"RLS du Granit",null,null,null,15]
[null,null,null,null,"RLS de Pierrefonds–Lac Saint-Louis",null,null,null,16]
[null,null,null,null,"RLS de Dorval-Lachine-Lasalle",null,null,null,17]
[null,null,null,null,"RLS de Côte-Saint-Luc–NDG–Montréal-Ouest",null,null,null,18]
[null,null,null,null,"RLS de Côte-des-Neiges–Métro–Parc-Extension",null,null,null,19]
[null,null,null,null,"RLS de Verdun–Côte St-Paul–St-Henri–Pointe-St-Charles",null,null,null,20]
[null,null,null,null,"RLS des Faubourgs–Plateau-Mont-Royal–St-Louis-du-Parc",null,null,null,21]
[null,null,null,null,"RLS du Nord de l'Île–Saint-Laurent",null,null,null,22]
[null,null,null,null,"RLS d'Ahuntsic–Montréal-Nord",null,null,null,23]
[null,null,null,null,"RLS de la Petite Patrie-Villeray",null,null,null,24]
[null,null,null,null,"RLS de Saint-Léonard–Saint-Michel",null,null,null,25]
[null,null,null,null,"RLS de Rivière-des-Prairies–Anjou–Montréal-Est",null,null,null,"26 et plus"]
[null,null,null,null,"RLS de Hochelaga–Mercier-Ouest–Rosemont"]
[null,null,null,null,"RLS du Pontiac"]
[null,null,null,null,"RLS de la Vallée-de-la-Gatineau"]
[null,null,null,null,"RLS des Collines-de-l'Outaouais"]
[null,null,null,null,"RLS de Grande-Rivière–Hull–Gatineau"]
[null,null,null,null,"RLS de la Vallée-de-la-Lièvre et de la Petite-Nation"]
[null,null,null,null,"RLS de l'Abitibi-Ouest"]
[null,null,null,null,"RLS de l'Abitibi"]
[null,null,null,null,"RLS de Rouyn-Noranda"]
[null,null,null,null,"RLS de la Vallée-de-l'Or"]
[null,null,null,null,"RLS du Témiscaming"]
[null,null,null,null,"RLS de Caniapiscau"]
[null,null,null,null,"RLS de la Haute-Côte-Nord–Manicouagan"]
[null,null,null,null,"RLS de Port-Cartier"]
[null,null,null,null,"RLS de Sept-Îles"]
[null,null,null,null,"RLS de la Minganie"]
[null,null,null,null,"RLS de la Basse-Côte-Nord"]
[null,null,null,null,"RLS de Kawawachikamach"]
[null,null,null,null,"Nord-du-Québec"]
[null,null,null,null,"RLS de la Baie-des-Chaleurs"]
[null,null,null,null,"RLS de la Haute-Gaspésie"]
[null,null,null,null,"RLS de La Côte-de-Gaspé"]
[null,null,null,null,"RLS du Rocher-Percé"]
[null,null,null,null,"RLS des Îles-de-la-Madeleine"]
[null,null,null,null,"RLS Alphonse-Desjardins"]
[null,null,null,null,"RLS de la région de Thetford"]
[null,null,null,null,"RLS de Beauce"]
[null,null,null,null,"RLS des Etchemins"]
[null,null,null,null,"RLS de Montmagny-L'Islet"]
[null,null,null,null,"RLS de Laval"]
[null,null,null,null,"RLS de Lanaudière-Nord"]
[null,null,null,null,"RLS de Lanaudière-Sud"]
[null,null,null,null,"RLS d'Antoine-Labelle"]
[null,null,null,null,"RLS des Laurentides"]
[null,null,null,null,"RLS des Pays-d'en-Haut"]
[null,null,null,null,"RLS d'Argenteuil"]
[null,null,null,null,"RLS de Deux-Montagnes–Mirabel-Sud"]
[null,null,null,null,"RLS de la Rivière-du-Nord–Mirabel-Nord"]
[null,null,null,null,"RLS de Thérèse-De Blainville"]
[null,null,null,null,"RLS de Champlain"]
[null,null,null,null,"RLS du Haut-Richelieu–Rouville"]
[null,null,null,null,"RLS Pierre-Boucher"]
[null,null,null,null,"RLS de Richelieu-Yamaska"]
[null,null,null,null,"RLS Pierre-De Saurel"]
[null,null,null,null,"RLS de Vaudreuil-Soulanges"]
[null,null,null,null,"RLS du Suroît"]
[null,null,null,null,"RLS du Haut-Saint-Laurent"]
[null,null,null,null,"RLS de Jardins-Roussillon"]
[null,null,null,null,"Nunavik"]
[null,null,null,null,"Terres-Cries-de-la-Baie-James"]

{"sheet":"Feuil2","index":12,"n_rows":0,"n_cols":0,"rows_kept":0,"cut":false,"hidden":false,"merged":[]}